{"text_format":"1","workbook":"xlsx","n_sheets":2,"sheets":["Abk","Dico"],"not_rendered":{"charts":0,"images":0,"macros":1,"external_links":0,"defined_names":2,"comments":0,"pivot_tables":0},"unopened":[],"bounds":{"document_bytes":16777216,"sheet_cells":100000,"rows_first":2000,"rows_last":500,"rows_between":2000,"halvings":0,"cell_chars":16384,"cell_head_chars":4096},"cells_cut":0,"cells_raw":0,"read":"whole","date_system":"1900"}

{"sheet":"Abk","index":0,"n_rows":12987,"n_cols":6,"rows_kept":12987,"cut":false,"hidden":false,"merged":[]}
["Date","Grp ","Rub","DE","Ex","N°"]
["C0503 M2107","ABK My $$$","/THÈMES DICO GROUPES","+++ (Important, NB: se met à la fin), 3DPRINT, ABC (Relatif à l'alphabet, test de lettrage), ABK (Abkürzungen), ACRY (Acronyme), ActiveX, AÉRO (Avion), ALIM, ANAT, Android, ANIM, APK, ARGENT (Argentique), ASP, ASTRO (Astronautique / Espace), AtP (ATeliers Perspectives remplacé par HS), AUDIO, AUTO, BIBLE, BIO, BOAT, CALC (Calculateurs), CdlA (C’est dans l’air), CEC (Câbles Et Connecteurs), CHIM, CINÉMA, CLIENT, COMM (Commercial), Commentaires, CONT (Contrat Contractuel), CPT (ComPuTer), CPT-Interface (Relatif aux interface informatique), CPU, CULI (ne plus utiliser, remplacé par ALIM), D- (Deutsch Allemand), DB (DateBase), DISASTER (Désastres), Desktop, DICO (et non plus F-), DOS, E- (english), ÉCOL (Écologie), ÉCON (Économie), ÉCOPOL (Économie Politique), ÉDUC (Éducation), ÉLEC (Électricité), ÉNERG, ÉTYM (Relatif à l'étymologie), Excel, FAMILLE, FFILE (Format de File), FINAN, FIT (Fitness, santé, médecine), France, GAME (Jeux pour enfants), GB (G.Brit), GDP (Gestion de projet), GÉOG, GÉOM, HDW (Hardware, matériel informatique ou électronique), HDD (Relatif aux disques durs informatiques), HIST, HS (HorizonSud), HTML+, HTML_ValidationChampForm, Humour, I- (Italien Italie), Inet+, IOS, Islam, Java, Journal, JUR (Juridique), KUNST (Art), LDC (Ligne De Commande), LING (Linguistique), Linux, LIVRE, supprimé LOCU (Locution, tournure de phrase) ->PROV, LPRG (Langage de PRoGrammation) abandonné, MacOS, MÉDIA, MÉDIC, MEM (Relatif à la mémoire informatique), MÉTÉO, MFP (Mouvement et Forme de Pensée), MIL, MINÉ, Musée, MUSI, My, NB, PAO, PHILO, PHOTO, PHYS, POLIT, PREHIST, PRINT (Relatif à l'imprimerie (÷TYPO; LIVRE)), PROCOM (Protocole de communication), PROF, PROV, PSY, REL, RELIU (Reliure), ROBOT, RS (Réseaux), RS-TLT (RS Types de liaison et de transmission physique), Russie, SALU (Salutation), SGL (SiGLe), Société (Nom d'une _, institut, organisation, association), SPAC (dans l'espace, diff. de ASTRO), SPh (Smartphone), SPORT, STAR (artiste, personalité, people), STAT, STW, Suisse, SW (Smart Watch et Watch), Tamara, TCOM (Télécomm), TECH, TRANSPORT, TRUC (Truc et Astuce/Optimisation/Personnalisation de Windows), TV, TYPO (Typographie et arts graphiques, Typography and  graphic art, Relatif à la typographie et au prépresse (÷PRINT; LIVRE)), Tx, UMPC Ultra-Mobile PC, USA, VBA+, VAE (Vélo à Assistance Électrique), VÉGÉ, VIDÉO, VOYAGE, VRAR (Virtual Reality, Augmented Reality), W2k, W7 (Windows 7 Seven), W8, W95, W98, W9x, W10, W11, Watch (annulé voir SW), Wme, W-NT, Word, WXP, WV (Vista), WW1, WW2 (1ère et Seconde guerre), XLG XLGM, YT (youtube)",null,7291]
["C9912 M0806","ABK","/Theq","DVD DVR MD CD LI JX BD=BandesDessinées PU=Pub ME=ModeEmploi CR=CD-R CW=CD-RW WH=WindowsHelp (file d'aide dans W) F_=File >Reste >En cours >Mono",null,7431]
[null,"ABK","- ; _","préfixe/suffixe sous entendu",null,7439]
[null,"ABK","/>PannConf   >OutAdm   >ong   >bou","Dans Windows, décrit les menus suivants: Panneau de configuration\n   >Outils adm   Onglet   Bouton\nN'est plus utilisé, >> o/ b/ etc.",null,7432]
["C9912 M0806","ABK","/>Q   2/>>   >TV   >CpS   >Wiki","Lien à Q+N° (Sources)   2/Autres liens",null,7464]
["C0508 M2109","ABK $$$","/Abréviations","! = montre un élément qui manque ou qu'on ne traduit pas\n$$$ = Indique que se trouve une question en suspens. Remplacé par Q-\n>> = renvoie à, voir (à) (et non plus ->)\n_BO = Best of\nCA = Chiffre d'affaires\nCdF = La Chaux-de-Fonds\nCdlA = C'est dans l'Air\nCpS = C'est pas Sorcier\nFri = Fribourg\ngd = grand\ngrp = groupe\nJpn = Japon, japonais, Japonais\nKa BP = milliers d'années Before Present\nLsne = Lausanne\nnb = nombreux\nns / vs = nous / vous\nPSol = Panneau(x) solaire(s)\nQ- = question(s) en suspens (posée au cours du texte)\nqq, qn,qc, qd = quelques -uns -chose, quand\nVsG = Villars-sur-Glâne"]
[null,"ABK","@","adverbe",null,7441]
[null,"ABK","'+A +D +G","+accusatif, datif ou génitif",null,7362]
[null,"ABK","÷","divisé, n'est pas égal/différent de",null,7350]
[null,"ABK","A","accusatif",null,7442]
[null,"ABK","a (ou selon contexte:) adj","adjectif",null,7443]
["C1905","ABK","a.l.","Années lumière"]
[null,"NON ABK","A+","Alléluia",null,7230]
[null,"ABK","ANT","antonyme",null,7235]
[null,"ABK","art.","article",null,7236]
[null,"ABK","auxl","auxiliaire",null,7237]
[null,"NON ABK","B+","Bible",null,7238]
["C0004","ABK","bg-Background\nbt-Bouton\nfg-Flag\nlg- Logo\npt-Pictograme\nsy-Symbole\nic-Icône","Uniquement valable pour les files. Il n'y a PAS ic-Icône",null,7560]
[null,"NON ABK","C+","Christ",null,7351]
[null,"ABK","c-à-d ou càd","c'est-à-dire",null,7357]
[null,"ABK","cath","catholique",null,7239]
[null,"ABK","cb","combien",null,7356]
[null,"ABK","cjc","conj. de coordination",null,7241]
[null,"ABK","cjs","conj. de subordination",null,7242]
[null,"ABK","COD","complément d'objet direct",null,7243]
[null,"ABK","COI","complément d'objet indirect",null,7244]
[null,"ABK","Cpl","complément",null,7245]
[null,"ABK","D","datif",null,7246]
[null,"ABK","D-","allemand",null,7248]
[null,"NON ABK","D+","Dieu",null,7247]
[null,"ABK","d16e ; m ; f","début/milieu/fin (+ chiffre) du Xe siècle",null,7249]
[null,"ABK","ddé","de(s) données",null,600]
[null,"ABK","dét","déterminant",null,7250]
[null,"ABK","Device","Périphérique",null,7383]
["C0209","NON ABK","DIAL","Dialecte Suisse-alémanique"]
[null,"ABK","diff.","différent(e,s),a",null,7251]
[null,"ABK","dir","directif",null,7252]
[null,"ABK","dsdé","des données",null,7387]
["C0205","ABK FFILE","DVX","DivX"]
[null,"ABK","E-","anglais (général)",null,7254]
[null,"NON ABK","E+","Esprit",null,7253]
[null,"ABK","env.","environ",null,7255]
[null,"ABK","etw","etwas",null,7256]
[null,"ABK","év.","évangélique / éventuellement",null,7258]
[null,"ABK","ex.","exemple",null,7259]
[null,"ABK","exc","exception(nellemt)",null,7260]
[null,"ABK","f","féminin",null,7261]
[null,"ABK","F-","France; français",null,7262]
[null,"ABK","f.","faire",null,7263]
[null,"ABK","fam","familier",null,7264]
[null,"ABK","fct","fonction",null,7265]
[null,"ABK","fig","figuré",null,7267]
[null,"ABK","flle(s)","feuille(s)",null,7415]
[null,"ABK","FO","Fibre optique",null,7379]
[null,"ABK","Ft","futur",null,7268]
[null,"ABK","g","genre",null,7269]
[null,"ABK","G","génitif",null,7270]
[null,"ABK","GB","Angleterre; anglais Britanique",null,7271]
[null,"ABK","gd","grand",null,7272]
[null,"ABK","GN","groupe nominal",null,7273]
["C0011","ABK GRP","GRP","Groupe. Fait partie d'un groupe dans le champ \"Groupe\"",null,7359]
[null,"ABK","GV","groupe verbal",null,7274]
[null,"ABK","h","hat / have / homme",null,7275]
[null,"NON ABK","H - F - D - G - I - J","Pour l'entête des MDs: Homme Femme Duo Groupe Instrumental Jazz",null,7449]
[null,"ABK","HDD","disque(s) dur(s)",null,7371]
["C0011","ABK GRP HTML-Tableau","HTML_Script",null,null,8021]
["C0011","ABK GRP HTML-TabularDataControl","HTML_Tableau",null,null,8022]
["C0011","ABK GRP HTML-ValidationChampForm","HTML_TabularDataControl",null,null,8023]
["C0011","ABK GRP HTML-ActiveX","HTML-ActiveX",null,null,7992]
["C0011","ABK GRP HTML-ASP","HTML-ASP",null,null,7993]
["C0011","ABK GRP HTML-Bannière","HTML-Bannière",null,null,7994]
["C0011","ABK GRP HTML-CdesDiv","HTML-CdesDiv",null,null,7995]
["C0011","ABK GRP HTML-CdesGénérales","HTML-CdesGénérales",null,null,7991]
["C0011","ABK GRP HTML-Cellule","HTML-Cellule",null,null,7997]
["C0011","ABK GRP HTML-CGI","HTML-CGI",null,null,7998]
["C0011","ABK GRP HTML-CSS","HTML-CSS",null,null,7999]
["C0011","ABK GRP HTML-Form","HTML-Form",null,null,8000]
["C0011","ABK GRP HTML-FormBase","HTML-FormBase",null,null,8001]
["C0011","ABK GRP HTML-FormBouton","HTML-FormBouton",null,null,8002]
["C0011","ABK GRP HTML-FormBouton CdeReset","HTML-FormBouton CdeReset",null,null,8004]
["C0011","ABK GRP HTML-FormBoutonCdeButton","HTML-FormBoutonCdeButton",null,null,8003]
["C0011","ABK GRP HTML-FormBoutonCdeSubmit","HTML-FormBoutonCdeSubmit",null,null,8005]
["C0011","ABK GRP HTML-FormBoutonRadio","HTML-FormBoutonRadio",null,null,8006]
["C0011","ABK GRP HTML-FormCaseAcocher","HTML-FormCaseAcocher",null,null,8007]
["C0011","ABK GRP HTML-FormMenuDéroulant","HTML-FormMenuDéroulant",null,null,8008]
["C0011","ABK GRP HTML-FormZoneTexte","HTML-FormZoneTexte",null,null,8009]
["C0011","ABK GRP HTML-FormZoneTxtDéroulante","HTML-FormZoneTxtDéroulante",null,null,8010]
["C0011","ABK GRP HTML-FormZoneTxtSimple","HTML-FormZoneTxtSimple",null,null,8011]
["C0011","ABK GRP HTML-Frameset","HTML-Frame",null,null,8013]
["C0011","ABK GRP HTML-ImageInteractive","HTML-Frameset",null,null,8014]
["C0011","ABK GRP HTML-Image","HTML-Image",null,null,7996]
["C0011","ABK GRP HTML-Liens","HTML-ImageInteractive",null,null,8015]
["C0011","ABK GRP HTML-Ligne","HTML-Liens",null,null,8016]
["C0011","ABK GRP HTML-Listes","HTML-Ligne",null,null,8017]
["C0011","ABK GRP HTML-Paragraphe","HTML-Listes",null,null,8018]
["C0011","ABK GRP HTML-Police","HTML-Paragraphe",null,null,8019]
["C0011","ABK GRP HTML-Script","HTML-Police",null,null,8020]
[null,"ABK","I","infinitif",null,7276]
[null,"ABK","i ; intr","intransitif",null,7277]
[null,"ABK","Inet","Internet",null,7372]
[null,"ABK","interj","interjection, exclamation >>Lexique FR-",null,7279]
["C1512 M1607","ABK Inet","IoT (Internet of Things) des objets","N'est pas une technologie mais un système des systèmes. \"3e Révolution inet\"\n   Ajout d'une puce connectée (RFID ou Wi-Fi)\n   Informations sur état et emplacement d'un dispositif (ex: des taxis libres ou occupés dans une ville, informe d'une panne et sa source)\n   Offre surtout de nb opportunités marketing…\n   Génère une qté massive de données\n   Lu que \"les dispositifs _ produisent bcp de données et que l'envoi de ces données vers le Cloud ne permet pas forcément de faire des économies... Le traitement par le Cloud exige bcp de bande passante et crée de la latence en fonction du type de connexion...\""]
[null,"ABK","j","jour",null,7280]
[null,"NON ABK","J+","Jésus",null,7281]
[null,"ABK","jdm ; jdn ; jds","jemand- +D +A +G",null,7282]
[null,"ABK","kausal","causalité",null,7363]
[null,"ABK","Lat","Latin",null,7283]
[null,"ABK","lg","long,a",null,7284]
[null,"ABK","lgt","longtemps,@",null,7285]
[null,"ABK GRP LING","LING - Linguistique","Linguistics ['liñgwistik], Relatif à la linguistique",null,4154]
[null,"ABK GRP LIVRE","LIVRE   2/:À la fin de ce _","Book [bûk] (Relatif au livre)   2/:At the back of the _",null,4155]
[null,"ABK","loc","locatif",null,7287]
[null,"ABK","m","masculin",null,7289]
[null,"ABK","M-A","Moyen-Âge",null,7290]
["C0011","ABK REDIR menu, onglet, bouton, barre d'outil, boîte de dialogue, tool (boîte d'outil) et palette","menu, onglet, bouton, barre d'outil, boîte de dialogue, tool (boîte d'outil) et palette","Menu. La syntaxe pour ce mot est \"m/Fichier, Ouvrir\" où \"m/\" indique que l'on doit accéder au \">Menu, >Fichier, >Ouvrir\"\n   Idem pour onglet: o/, bouton: b/, barre d'outil: bo/, boîte de dialogue: bdi/, tool (boîte d'outil): t/ et palette: p/",null,8461]
[null,"ABK GRP MINE","MINE","Relatif au monde minéral (appartenant au règne)",null,7366]
[null,"ABK","MM","Messieurs",null,7292]
[null,"ABK","mod","modalité (Vb de)",null,7293]
[null,"ABK","MS","Microsoft",null,7373]
[null,"ABK GRP MSEX","MSEX   2/Outl","MS Exchange SV   2/Outlook",null,7428]
[null,"ABK","n","nom",null,7294]
[null,"ABK","n/","notre",null,7295]
[null,"ABK","NB - Nombre","Number [nàmbë:r], (Relatif au nombre, chiffre, valeur) numeral ['nïûm(ë)rël]",null,4156]
["C0009","NON ABK","NON","Ne pas publier cette fiche (p.ex. sur Internet)",null,7801]
[null,"ABK","nt","neutre",null,7297]
[null,"ABK GRP NW","NW (N-NW)","Relatif à Net Ware (Novell NW)",null,7385]
[null,"ABK","NWK","Netzwerk,nt (D-) Network,n (E-) en F- on laisse RS",null,7444]
[null,"ABK","ø","dialecte (_al)",null,7348]
["M9912","ABK","o/ b/ m/ bo/ bdi/ t/ p/","onglet /bouton /menu /barre d'outil /boîte de dialogue /tool (boîte d'outil) /palette\n   utilisateur par user\n   onglet_ par o/ menu_ par m/ etc.",null,7429]
[null,"ABK","örtl.","örtlich (=local)",null,7298]
[null,"ABK","P","pluriel",null,7299]
[null,"ABK","p.","page",null,7300]
[null,"ABK","part","particule >>pfx, sfx",null,7301]
[null,"ABK","Password","mot de passe",null,7389]
[null,"ABK","pdt","pendant",null,7302]
["C0407","ABK","pE-   2/nE-   3//e","prononciation anglaise   2/nouveau en anglais   3/pas besoin d'apprendre, trop rare"]
[null,"ABK","péj","péjoratif",null,7303]
[null,"ABK","pfx","préfixe",null,7304]
[null,"ABK","Pilote (>>Driver)",null,null,1717]
[null,"ABK","postp","postposition = part@",null,7307]
[null,"ABK","Pp","participe passé",null,7309]
[null,"ABK","pp","préposition",null,7308]
[null,"ABK","Ppr","participe présent",null,7310]
[null,"ABK","pq","pourquoi",null,7311]
[null,"ABK","Pr","présent",null,7313]
[null,"ABK","pr","pronom",null,7312]
[null,"ABK","prg","programme",null,7361]
[null,"ABK","Print Queue","File d'attente d'impression",null,7427]
[null,"ABK","Programme (>>Prg)","Appli informatique",null,1817]
[null,"ABK","Pt","préterit (passé simple, imparfait)",null,7316]
[null,"ABK","pt","petit,a",null,7317]
[null,"ABK","qc","quelque chose",null,7318]
[null,"ABK","r","réflexif",null,7322]
[null,"ABK","RDV","Rendez-vous"]
[null,"ABK","rel.","relatif",null,7324]
[null,"ABK GRP RS_N-NW","RS_N-NW","Réseau, relatif à Novell NetWare",null,7396]
[null,"ABK GRP RS_N-NW_CST/CO","RS_N-NW_CST/CO","Réseau, relatif à Novell NetWare, Commande de station/console",null,7398]
[null,"ABK GRP RS_N-NW_NET.CFG","RS_N-NW_NET.CFG","Réseau, relatif à Novell NetWare, NET.CFG",null,7391]
[null,"ABK GRP RS_N-NW_OpSTW","RS_N-NW_OpSTW","Réseau, relatif à Novell NetWare, Optimisation STW",null,7399]
[null,"ABK GRP RS_N-NW_VLM","RS_N-NW_VLM","Réseau, relatif à Novell NetWare, VLM",null,7397]
[null,"ABK GRP RS_Sécurité","RS_Sécurité","Relatif à _ et aux pannes",null,7401]
[null,"ABK GRP RS-CEC","RS-CEC","câbles et connecteurs",null,7408]
[null,"ABK GRP RS-Classification","RS-Classification",null,null,7390]
[null,"ABK GRP RS-DDC","RS-DDC","RS Dispositifs de couplage",null,7395]
[null,"ABK GRP RS-HDW","RS-HDW","Hardware de RS",null,7394]
[null,"ABK GRP RS-NOS","RS-NOS","NOS, Nom d'un fabricant, etc.",null,7402]
[null,"ABK GRP RS-Procédure de cde","RS-Procédure de cde",null,null,7403]
[null,"ABK GRP RS-PROCOM","RS-PROCOM",null,null,7393]
[null,"ABK GRP RS-Protocole","RS-Protocole",null,null,7400]
[null,"ABK RS-Topologie physique","RS-Topologie physique",null,null,8397]
[null,"ABK","S","singulier",null,7325]
[null,"ABK","s-","sich",null,7327]
[null,"ABK","s.o.","someone (=qn)",null,7329]
[null,"NON ABK","S+","Seigneur",null,7326]
[null,"NON ABK","SE+ / ES+","Saint-Esprit / Esprit-Saint",null,7330]
[null,"ABK","sfx","suffixe",null,7331]
["C0011","NON ABK SGL","SGL","Fait partie du groupe SGL",null,7450]
[null,"ABK","spac","spatial, dans l'espace (=raümlich)",null,7332]
[null,"ABK","sth","something (=qc)",null,7333]
[null,"ABK GRP STW-BD","STW-BD","Relatif à _ base ddé",null,7435]
[null,"ABK GRP STW-OS","STW-OS","Relatif au OS",null,7377]
[null,"ABK","SYN","synonyme",null,7334]
[null,"ABK","t ; tr","transitif",null,7335]
[null,"ABK","t.","tun",null,7336]
[null,"ABK","tdu","trait d'union",null,7337]
[null,"ABK GRP TEL","TEL","Téléphone (déviation, explication, message, présentation)",null,7447]
[null,"ABK","tj","toujours",null,7338]
[null,"ABK","T-R","Token Ring",null,7386]
[null,"ABK","txt","texte",null,5532]
["C1905","ABK","UA","Unités astronomiques"]
[null,"ABK","US","USA. américain; anglais américain",null,2527]
[null,"ABK","usw","und so weiter (=etc)",null,6948]
[null,"ABK","v ; Vb","verbe",null,6951]
[null,"ABK","v/","votre",null,2624]
[null,"NON ABK","V0000 (AA,MM)","Vu, Enregistré, Créé, Muté",null,2551]
[null,"ABK","vx","vieux",null,6919]
[null,"NB","W","Watt",null,3862]
["C9912","ABK","Wd, Xl","Word et Excel de MS",null,2395]
[null,"ABK","WG","Workgroup ou Work Group",null,7381]
[null,"ABK","WS(s)","Workstation(s)",null,5830]
[null,"ABK","WW1 WW2","1ère Guerre mondiale 2e Guerre mondiale"]
[null,"ABK","y c.","y compris",null,2436]
[]
[]
[]
[]
[]
[]
[]
[]
[]
[]
[]
[]
[]
[]
[]
[]
[]
[]
[]
[]
[]
[]
[]
[]
[]
[]
[]
[]
[]
[]
[]
[]
[]
[]
[]
[]
[]
[]
[]
[]
[]
[]
[]
[]
[]
[]
[]
[]
[]
[]
[]
[]
[]
[]
[]
[]
[]
[]
[]
[]
[]
[]
[]
[]
[]
[]
[]
[]
[]
[]
[]
[]
[]
[]
[]
[]
[]
[]
[]
[]
[]
[]
[]
[]
[]
[]
[]
[]
[]
[]
[]
[]
[]
[]
[]
[]
[]
[]
[]
[]
[]
[]
[]
[]
[]
[]
[]
[]
[]
[]
[]
[]
[]
[]
[]
[]
[]
[]
[]
[]
[]
[]
[]
[]
[]
[]
[]
[]
[]
[]
[]
[]
[]
[]
[]
[]
[]
[]
[]
[]
[]
[]
[]
[]
[]
[]
[]
[]
[]
[]
[]
[]
[]
[]
[]
[]
[]
[]
[]
[]
[]
[]
[]
[]
[]
[]
[]
[]
[]
[]
[]
[]
[]
[]
[]
[]
[]
[]
[]
[]
[]
[]
[]
[]
[]
[]
[]
[]
[]
[]
[]
[]
[]
[]
[]
[]
[]
[]
[]
[]
[]
[]
[]
[]
[]
[]
[]
[]
[]
[]
[]
[]
[]
[]
[]
[]
[]
[]
[]
[]
[]
[]
[]
[]
[]
[]
[]
[]
[]
[]
[]
[]
[]
[]
[]
[]
[]
[]
[]
[]
[]
[]
[]
[]
[]
[]
[]
[]
[]
[]
[]
[]
[]
[]
[]
[]
[]
[]
[]
[]
[]
[]
[]
[]
[]
[]
[]
[]
[]
[]
[]
[]
[]
[]
[]
[]
[]
[]
[]
[]
[]
[]
[]
[]
[]
[]
[]
[]
[]
[]
[]
[]
[]
[]
[]
[]
[]
[]
[]
[]
[]
[]
[]
[]
[]
[]
[]
[]
[]
[]
[]
[]
[]
[]
[]
[]
[]
[]
[]
[]
[]
[]
[]
[]
[]
[]
[]
[]
[]
[]
[]
[]
[]
[]
[]
[]
[]
[]
[]
[]
[]
[]
[]
[]
[]
[]
[]
[]
[]
[]
[]
[]
[]
[]
[]
[]
[]
[]
[]
[]
[]
[]
[]
[]
[]
[]
[]
[]
[]
[]
[]
[]
[]
[]
[]
[]
[]
[]
[]
[]
[]
[]
[]
[]
[]
[]
[]
[]
[]
[]
[]
[]
[]
[]
[]
[]
[]
[]
[]
[]
[]
[]
[]
[]
[]
[]
[]
[]
[]
[]
[]
[]
[]
[]
[]
[]
[]
[]
[]
[]
[]
[]
[]
[]
[]
[]
[]
[]
[]
[]
[]
[]
[]
[]
[]
[]
[]
[]
[]
[]
[]
[]
[]
[]
[]
[]
[]
[]
[]
[]
[]
[]
[]
[]
[]
[]
[]
[]
[]
[]
[]
[]
[]
[]
[]
[]
[]
[]
[]
[]
[]
[]
[]
[]
[]
[]
[]
[]
[]
[]
[]
[]
[]
[]
[]
[]
[]
[]
[]
[]
[]
[]
[]
[]
[]
[]
[]
[]
[]
[]
[]
[]
[]
[]
[]
[]
[]
[]
[]
[]
[]
[]
[]
[]
[]
[]
[]
[]
[]
[]
[]
[]
[]
[]
[]
[]
[]
[]
[]
[]
[]
[]
[]
[]
[]
[]
[]
[]
[]
[]
[]
[]
[]
[]
[]
[]
[]
[]
[]
[]
[]
[]
[]
[]
[]
[]
[]
[]
[]
[]
[]
[]
[]
[]
[]
[]
[]
[]
[]
[]
[]
[]
[]
[]
[]
[]
[]
[]
[]
[]
[]
[]
[]
[]
[]
[]
[]
[]
[]
[]
[]
[]
[]
[]
[]
[]
[]
[]
[]
[]
[]
[]
[]
[]
[]
[]
[]
[]
[]
[]
[]
[]
[]
[]
[]
[]
[]
[]
[]
[]
[]
[]
[]
[]
[]
[]
[]
[]
[]
[]
[]
[]
[]
[]
[]
[]
[]
[]
[]
[]
[]
[]
[]
[]
[]
[]
[]
[]
[]
[]
[]
[]
[]
[]
[]
[]
[]
[]
[]
[]
[]
[]
[]
[]
[]
[]
[]
[]
[]
[]
[]
[]
[]
[]
[]
[]
[]
[]
[]
[]
[]
[]
[]
[]
[]
[]
[]
[]
[]
[]
[]
[]
[]
[]
[]
[]
[]
[]
[]
[]
[]
[]
[]
[]
[]
[]
[]
[]
[]
[]
[]
[]
[]
[]
[]
[]
[]
[]
[]
[]
[]
[]
[]
[]
[]
[]
[]
[]
[]
[]
[]
[]
[]
[]
[]
[]
[]
[]
[]
[]
[]
[]
[]
[]
[]
[]
[]
[]
[]
[]
[]
[]
[]
[]
[]
[]
[]
[]
[]
[]
[]
[]
[]
[]
[]
[]
[]
[]
[]
[]
[]
[]
[]
[]
[]
[]
[]
[]
[]
[]
[]
[]
[]
[]
[]
[]
[]
[]
[]
[]
[]
[]
[]
[]
[]
[]
[]
[]
[]
[]
[]
[]
[]
[]
[]
[]
[]
[]
[]
[]
[]
[]
[]
[]
[]
[]
[]
[]
[]
[]
[]
[]
[]
[]
[]
[]
[]
[]
[]
[]
[]
[]
[]
[]
[]
[]
[]
[]
[]
[]
[]
[]
[]
[]
[]
[]
[]
[]
[]
[]
[]
[]
[]
[]
[]
[]
[]
[]
[]
[]
[]
[]
[]
[]
[]
[]
[]
[]
[]
[]
[]
[]
[]
[]
[]
[]
[]
[]
[]
[]
[]
[]
[]
[]
[]
[]
[]
[]
[]
[]
[]
[]
[]
[]
[]
[]
[]
[]
[]
[]
[]
[]
[]
[]
[]
[]
[]
[]
[]
[]
[]
[]
[]
[]
[]
[]
[]
[]
[]
[]
[]
[]
[]
[]
[]
[]
[]
[]
[]
[]
[]
[]
[]
[]
[]
[]
[]
[]
[]
[]
[]
[]
[]
[]
[]
[]
[]
[]
[]
[]
[]
[]
[]
[]
[]
[]
[]
[]
[]
[]
[]
[]
[]
[]
[]
[]
[]
[]
[]
[]
[]
[]
[]
[]
[]
[]
[]
[]
[]
[]
[]
[]
[]
[]
[]
[]
[]
[]
[]
[]
[]
[]
[]
[]
[]
[]
[]
[]
[]
[]
[]
[]
[]
[]
[]
[]
[]
[]
[]
[]
[]
[]
[]
[]
[]
[]
[]
[]
[]
[]
[]
[]
[]
[]
[]
[]
[]
[]
[]
[]
[]
[]
[]
[]
[]
[]
[]
[]
[]
[]
[]
[]
[]
[]
[]
[]
[]
[]
[]
[]
[]
[]
[]
[]
[]
[]
[]
[]
[]
[]
[]
[]
[]
[]
[]
[]
[]
[]
[]
[]
[]
[]
[]
[]
[]
[]
[]
[]
[]
[]
[]
[]
[]
[]
[]
[]
[]
[]
[]
[]
[]
[]
[]
[]
[]
[]
[]
[]
[]
[]
[]
[]
[]
[]
[]
[]
[]
[]
[]
[]
[]
[]
[]
[]
[]
[]
[]
[]
[]
[]
[]
[]
[]
[]
[]
[]
[]
[]
[]
[]
[]
[]
[]
[]
[]
[]
[]
[]
[]
[]
[]
[]
[]
[]
[]
[]
[]
[]
[]
[]
[]
[]
[]
[]
[]
[]
[]
[]
[]
[]
[]
[]
[]
[]
[]
[]
[]
[]
[]
[]
[]
[]
[]
[]
[]
[]
[]
[]
[]
[]
[]
[]
[]
[]
[]
[]
[]
[]
[]
[]
[]
[]
[]
[]
[]
[]
[]
[]
[]
[]
[]
[]
[]
[]
[]
[]
[]
[]
[]
[]
[]
[]
[]
[]
[]
[]
[]
[]
[]
[]
[]
[]
[]
[]
[]
[]
[]
[]
[]
[]
[]
[]
[]
[]
[]
[]
[]
[]
[]
[]
[]
[]
[]
[]
[]
[]
[]
[]
[]
[]
[]
[]
[]
[]
[]
[]
[]
[]
[]
[]
[]
[]
[]
[]
[]
[]
[]
[]
[]
[]
[]
[]
[]
[]
[]
[]
[]
[]
[]
[]
[]
[]
[]
[]
[]
[]
[]
[]
[]
[]
[]
[]
[]
[]
[]
[]
[]
[]
[]
[]
[]
[]
[]
[]
[]
[]
[]
[]
[]
[]
[]
[]
[]
[]
[]
[]
[]
[]
[]
[]
[]
[]
[]
[]
[]
[]
[]
[]
[]
[]
[]
[]
[]
[]
[]
[]
[]
[]
[]
[]
[]
[]
[]
[]
[]
[]
[]
[]
[]
[]
[]
[]
[]
[]
[]
[]
[]
[]
[]
[]
[]
[]
[]
[]
[]
[]
[]
[]
[]
[]
[]
[]
[]
[]
[]
[]
[]
[]
[]
[]
[]
[]
[]
[]
[]
[]
[]
[]
[]
[]
[]
[]
[]
[]
[]
[]
[]
[]
[]
[]
[]
[]
[]
[]
[]
[]
[]
[]
[]
[]
[]
[]
[]
[]
[]
[]
[]
[]
[]
[]
[]
[]
[]
[]
[]
[]
[]
[]
[]
[]
[]
[]
[]
[]
[]
[]
[]
[]
[]
[]
[]
[]
[]
[]
[]
[]
[]
[]
[]
[]
[]
[]
[]
[]
[]
[]
[]
[]
[]
[]
[]
[]
[]
[]
[]
[]
[]
[]
[]
[]
[]
[]
[]
[]
[]
[]
[]
[]
[]
[]
[]
[]
[]
[]
[]
[]
[]
[]
[]
[]
[]
[]
[]
[]
[]
[]
[]
[]
[]
[]
[]
[]
[]
[]
[]
[]
[]
[]
[]
[]
[]
[]
[]
[]
[]
[]
[]
[]
[]
[]
[]
[]
[]
[]
[]
[]
[]
[]
[]
[]
[]
[]
[]
[]
[]
[]
[]
[]
[]
[]
[]
[]
[]
[]
[]
[]
[]
[]
[]
[]
[]
[]
[]
[]
[]
[]
[]
[]
[]
[]
[]
[]
[]
[]
[]
[]
[]
[]
[]
[]
[]
[]
[]
[]
[]
[]
[]
[]
[]
[]
[]
[]
[]
[]
[]
[]
[]
[]
[]
[]
[]
[]
[]
[]
[]
[]
[]
[]
[]
[]
[]
[]
[]
[]
[]
[]
[]
[]
[]
[]
[]
[]
[]
[]
[]
[]
[]
[]
[]
[]
[]
[]
[]
[]
[]
[]
[]
[]
[]
[]
[]
[]
[]
[]
[]
[]
[]
[]
[]
[]
[]
[]
[]
[]
[]
[]
[]
[]
[]
[]
[]
[]
[]
[]
[]
[]
[]
[]
[]
[]
[]
[]
[]
[]
[]
[]
[]
[]
[]
[]
[]
[]
[]
[]
[]
[]
[]
[]
[]
[]
[]
[]
[]
[]
[]
[]
[]
[]
[]
[]
[]
[]
[]
[]
[]
[]
[]
[]
[]
[]
[]
[]
[]
[]
[]
[]
[]
[]
[]
[]
[]
[]
[]
[]
[]
[]
[]
[]
[]
[]
[]
[]
[]
[]
[]
[]
[]
[]
[]
[]
[]
[]
[]
[]
[]
[]
[]
[]
[]
[]
[]
[]
[]
[]
[]
[]
[]
[]
[]
[]
[]
[]
[]
[]
[]
[]
[]
[]
[]
[]
[]
[]
[]
[]
[]
[]
[]
[]
[]
[]
[]
[]
[]
[]
[]
[]
[]
[]
[]
[]
[]
[]
[]
[]
[]
[]
[]
[]
[]
[]
[]
[]
[]
[]
[]
[]
[]
[]
[]
[]
[]
[]
[]
[]
[]
[]
[]
[]
[]
[]
[]
[]
[]
[]
[]
[]
[]
[]
[]
[]
[]
[]
[]
[]
[]
[]
[]
[]
[]
[]
[]
[]
[]
[]
[]
[]
[]
[]
[]
[]
[]
[]
[]
[]
[]
[]
[]
[]
[]
[]
[]
[]
[]
[]
[]
[]
[]
[]
[]
[]
[]
[]
[]
[]
[]
[]
[]
[]
[]
[]
[]
[]
[]
[]
[]
[]
[]
[]
[]
[]
[]
[]
[]
[]
[]
[]
[]
[]
[]
[]
[]
[]
[]
[]
[]
[]
[]
[]
[]
[]
[]
[]
[]
[]
[]
[]
[]
[]
[]
[]
[]
[]
[]
[]
[]
[]
[]
[]
[]
[]
[]
[]
[]
[]
[]
[]
[]
[]
[]
[]
[]
[]
[]
[]
[]
[]
[]
[]
[]
[]
[]
[]
[]
[]
[]
[]
[]
[]
[]
[]
[]
[]
[]
[]
[]
[]
[]
[]
[]
[]
[]
[]
[]
[]
[]
[]
[]
[]
[]
[]
[]
[]
[]
[]
[]
[]
[]
[]
[]
[]
[]
[]
[]
[]
[]
[]
[]
[]
[]
[]
[]
[]
[]
[]
[]
[]
[]
[]
[]
[]
[]
[]
[]
[]
[]
[]
[]
[]
[]
[]
[]
[]
[]
[]
[]
[]
[]
[]
[]
[]
[]
[]
[]
[]
[]
[]
[]
[]
[]
[]
[]
[]
[]
[]
[]
[]
[]
[]
[]
[]
[]
[]
[]
[]
[]
[]
[]
[]
[]
[]
[]
[]
[]
[]
[]
[]
[]
[]
[]
[]
[]
[]
[]
[]
[]
[]
[]
[]
[]
[]
[]
[]
[]
[]
[]
[]
[]
[]
[]
[]
[]
[]
[]
[]
[]
[]
[]
[]
[]
[]
[]
[]
[]
[]
[]
[]
[]
[]
[]
[]
[]
[]
[]
[]
[]
[]
[]
[]
[]
[]
[]
[]
[]
[]
[]
[]
[]
[]
[]
[]
[]
[]
[]
[]
[]
[]
[]
[]
[]
[]
[]
[]
[]
[]
[]
[]
[]
[]
[]
[]
[]
[]
[]
[]
[]
[]
[]
[]
[]
[]
[]
[]
[]
[]
[]
[]
[]
[]
[]
[]
[]
[]
[]
[]
[]
[]
[]
[]
[]
[]
[]
[]
[]
[]
[]
[]
[]
[]
[]
[]
[]
[]
[]
[]
[]
[]
[]
[]
[]
[]
[]
[]
[]
[]
[]
[]
[]
[]
[]
[]
[]
[]
[]
[]
[]
[]
[]
[]
[]
[]
[]
[]
[]
[]
[]
[]
[]
[]
[]
[]
[]
[]
[]
[]
[]
[]
[]
[]
[]
[]
[]
[]
[]
[]
[]
[]
[]
[]
[]
[]
[]
[]
[]
[]
[]
[]
[]
[]
[]
[]
[]
[]
[]
[]
[]
[]
[]
[]
[]
[]
[]
[]
[]
[]
[]
[]
[]
[]
[]
[]
[]
[]
[]
[]
[]
[]
[]
[]
[]
[]
[]
[]
[]
[]
[]
[]
[]
[]
[]
[]
[]
[]
[]
[]
[]
[]
[]
[]
[]
[]
[]
[]
[]
[]
[]
[]
[]
[]
[]
[]
[]
[]
[]
[]
[]
[]
[]
[]
[]
[]
[]
[]
[]
[]
[]
[]
[]
[]
[]
[]
[]
[]
[]
[]
[]
[]
[]
[]
[]
[]
[]
[]
[]
[]
[]
[]
[]
[]
[]
[]
[]
[]
[]
[]
[]
[]
[]
[]
[]
[]
[]
[]
[]
[]
[]
[]
[]
[]
[]
[]
[]
[]
[]
[]
[]
[]
[]
[]
[]
[]
[]
[]
[]
[]
[]
[]
[]
[]
[]
[]
[]
[]
[]
[]
[]
[]
[]
[]
[]
[]
[]
[]
[]
[]
[]
[]
[]
[]
[]
[]
[]
[]
[]
[]
[]
[]
[]
[]
[]
[]
[]
[]
[]
[]
[]
[]
[]
[]
[]
[]
[]
[]
[]
[]
[]
[]
[]
[]
[]
[]
[]
[]
[]
[]
[]
[]
[]
[]
[]
[]
[]
[]
[]
[]
[]
[]
[]
[]
[]
[]
[]
[]
[]
[]
[]
[]
[]
[]
[]
[]
[]
[]
[]
[]
[]
[]
[]
[]
[]
[]
[]
[]
[]
[]
[]
[]
[]
[]
[]
[]
[]
[]
[]
[]
[]
[]
[]
[]
[]
[]
[]
[]
[]
[]
[]
[]
[]
[]
[]
[]
[]
[]
[]
[]
[]
[]
[]
[]
[]
[]
[]
[]
[]
[]
[]
[]
[]
[]
[]
[]
[]
[]
[]
[]
[]
[]
[]
[]
[]
[]
[]
[]
[]
[]
[]
[]
[]
[]
[]
[]
[]
[]
[]
[]
[]
[]
[]
[]
[]
[]
[]
[]
[]
[]
[]
[]
[]
[]
[]
[]
[]
[]
[]
[]
[]
[]
[]
[]
[]
[]
[]
[]
[]
[]
[]
[]
[]
[]
[]
[]
[]
[]
[]
[]
[]
[]
[]
[]
[]
[]
[]
[]
[]
[]
[]
[]
[]
[]
[]
[]
[]
[]
[]
[]
[]
[]
[]
[]
[]
[]
[]
[]
[]
[]
[]
[]
[]
[]
[]
[]
[]
[]
[]
[]
[]
[]
[]
[]
[]
[]
[]
[]
[]
[]
[]
[]
[]
[]
[]
[]
[]
[]
[]
[]
[]
[]
[]
[]
[]
[]
[]
[]
[]
[]
[]
[]
[]
[]
[]
[]
[]
[]
[]
[]
[]
[]
[]
[]
[]
[]
[]
[]
[]
[]
[]
[]
[]
[]
[]
[]
[]
[]
[]
[]
[]
[]
[]
[]
[]
[]
[]
[]
[]
[]
[]
[]
[]
[]
[]
[]
[]
[]
[]
[]
[]
[]
[]
[]
[]
[]
[]
[]
[]
[]
[]
[]
[]
[]
[]
[]
[]
[]
[]
[]
[]
[]
[]
[]
[]
[]
[]
[]
[]
[]
[]
[]
[]
[]
[]
[]
[]
[]
[]
[]
[]
[]
[]
[]
[]
[]
[]
[]
[]
[]
[]
[]
[]
[]
[]
[]
[]
[]
[]
[]
[]
[]
[]
[]
[]
[]
[]
[]
[]
[]
[]
[]
[]
[]
[]
[]
[]
[]
[]
[]
[]
[]
[]
[]
[]
[]
[]
[]
[]
[]
[]
[]
[]
[]
[]
[]
[]
[]
[]
[]
[]
[]
[]
[]
[]
[]
[]
[]
[]
[]
[]
[]
[]
[]
[]
[]
[]
[]
[]
[]
[]
[]
[]
[]
[]
[]
[]
[]
[]
[]
[]
[]
[]
[]
[]
[]
[]
[]
[]
[]
[]
[]
[]
[]
[]
[]
[]
[]
[]
[]
[]
[]
[]
[]
[]
[]
[]
[]
[]
[]
[]
[]
[]
[]
[]
[]
[]
[]
[]
[]
[]
[]
[]
[]
[]
[]
[]
[]
[]
[]
[]
[]
[]
[]
[]
[]
[]
[]
[]
[]
[]
[]
[]
[]
[]
[]
[]
[]
[]
[]
[]
[]
[]
[]
[]
[]
[]
[]
[]
[]
[]
[]
[]
[]
[]
[]
[]
[]
[]
[]
[]
[]
[]
[]
[]
[]
[]
[]
[]
[]
[]
[]
[]
[]
[]
[]
[]
[]
[]
[]
[]
[]
[]
[]
[]
[]
[]
[]
[]
[]
[]
[]
[]
[]
[]
[]
[]
[]
[]
[]
[]
[]
[]
[]
[]
[]
[]
[]
[]
[]
[]
[]
[]
[]
[]
[]
[]
[]
[]
[]
[]
[]
[]
[]
[]
[]
[]
[]
[]
[]
[]
[]
[]
[]
[]
[]
[]
[]
[]
[]
[]
[]
[]
[]
[]
[]
[]
[]
[]
[]
[]
[]
[]
[]
[]
[]
[]
[]
[]
[]
[]
[]
[]
[]
[]
[]
[]
[]
[]
[]
[]
[]
[]
[]
[]
[]
[]
[]
[]
[]
[]
[]
[]
[]
[]
[]
[]
[]
[]
[]
[]
[]
[]
[]
[]
[]
[]
[]
[]
[]
[]
[]
[]
[]
[]
[]
[]
[]
[]
[]
[]
[]
[]
[]
[]
[]
[]
[]
[]
[]
[]
[]
[]
[]
[]
[]
[]
[]
[]
[]
[]
[]
[]
[]
[]
[]
[]
[]
[]
[]
[]
[]
[]
[]
[]
[]
[]
[]
[]
[]
[]
[]
[]
[]
[]
[]
[]
[]
[]
[]
[]
[]
[]
[]
[]
[]
[]
[]
[]
[]
[]
[]
[]
[]
[]
[]
[]
[]
[]
[]
[]
[]
[]
[]
[]
[]
[]
[]
[]
[]
[]
[]
[]
[]
[]
[]
[]
[]
[]
[]
[]
[]
[]
[]
[]
[]
[]
[]
[]
[]
[]
[]
[]
[]
[]
[]
[]
[]
[]
[]
[]
[]
[]
[]
[]
[]
[]
[]
[]
[]
[]
[]
[]
[]
[]
[]
[]
[]
[]
[]
[]
[]
[]
[]
[]
[]
[]
[]
[]
[]
[]
[]
[]
[]
[]
[]
[]
[]
[]
[]
[]
[]
[]
[]
[]
[]
[]
[]
[]
[]
[]
[]
[]
[]
[]
[]
[]
[]
[]
[]
[]
[]
[]
[]
[]
[]
[]
[]
[]
[]
[]
[]
[]
[]
[]
[]
[]
[]
[]
[]
[]
[]
[]
[]
[]
[]
[]
[]
[]
[]
[]
[]
[]
[]
[]
[]
[]
[]
[]
[]
[]
[]
[]
[]
[]
[]
[]
[]
[]
[]
[]
[]
[]
[]
[]
[]
[]
[]
[]
[]
[]
[]
[]
[]
[]
[]
[]
[]
[]
[]
[]
[]
[]
[]
[]
[]
[]
[]
[]
[]
[]
[]
[]
[]
[]
[]
[]
[]
[]
[]
[]
[]
[]
[]
[]
[]
[]
[]
[]
[]
[]
[]
[]
[]
[]
[]
[]
[]
[]
[]
[]
[]
[]
[]
[]
[]
[]
[]
[]
[]
[]
[]
[]
[]
[]
[]
[]
[]
[]
[]
[]
[]
[]
[]
[]
[]
[]
[]
[]
[]
[]
[]
[]
[]
[]
[]
[]
[]
[]
[]
[]
[]
[]
[]
[]
[]
[]
[]
[]
[]
[]
[]
[]
[]
[]
[]
[]
[]
[]
[]
[]
[]
[]
[]
[]
[]
[]
[]
[]
[]
[]
[]
[]
[]
[]
[]
[]
[]
[]
[]
[]
[]
[]
[]
[]
[]
[]
[]
[]
[]
[]
[]
[]
[]
[]
[]
[]
[]
[]
[]
[]
[]
[]
[]
[]
[]
[]
[]
[]
[]
[]
[]
[]
[]
[]
[]
[]
[]
[]
[]
[]
[]
[]
[]
[]
[]
[]
[]
[]
[]
[]
[]
[]
[]
[]
[]
[]
[]
[]
[]
[]
[]
[]
[]
[]
[]
[]
[]
[]
[]
[]
[]
[]
[]
[]
[]
[]
[]
[]
[]
[]
[]
[]
[]
[]
[]
[]
[]
[]
[]
[]
[]
[]
[]
[]
[]
[]
[]
[]
[]
[]
[]
[]
[]
[]
[]
[]
[]
[]
[]
[]
[]
[]
[]
[]
[]
[]
[]
[]
[]
[]
[]
[]
[]
[]
[]
[]
[]
[]
[]
[]
[]
[]
[]
[]
[]
[]
[]
[]
[]
[]
[]
[]
[]
[]
[]
[]
[]
[]
[]
[]
[]
[]
[]
[]
[]
[]
[]
[]
[]
[]
[]
[]
[]
[]
[]
[]
[]
[]
[]
[]
[]
[]
[]
[]
[]
[]
[]
[]
[]
[]
[]
[]
[]
[]
[]
[]
[]
[]
[]
[]
[]
[]
[]
[]
[]
[]
[]
[]
[]
[]
[]
[]
[]
[]
[]
[]
[]
[]
[]
[]
[]
[]
[]
[]
[]
[]
[]
[]
[]
[]
[]
[]
[]
[]
[]
[]
[]
[]
[]
[]
[]
[]
[]
[]
[]
[]
[]
[]
[]
[]
[]
[]
[]
[]
[]
[]
[]
[]
[]
[]
[]
[]
[]
[]
[]
[]
[]
[]
[]
[]
[]
[]
[]
[]
[]
[]
[]
[]
[]
[]
[]
[]
[]
[]
[]
[]
[]
[]
[]
[]
[]
[]
[]
[]
[]
[]
[]
[]
[]
[]
[]
[]
[]
[]
[]
[]
[]
[]
[]
[]
[]
[]
[]
[]
[]
[]
[]
[]
[]
[]
[]
[]
[]
[]
[]
[]
[]
[]
[]
[]
[]
[]
[]
[]
[]
[]
[]
[]
[]
[]
[]
[]
[]
[]
[]
[]
[]
[]
[]
[]
[]
[]
[]
[]
[]
[]
[]
[]
[]
[]
[]
[]
[]
[]
[]
[]
[]
[]
[]
[]
[]
[]
[]
[]
[]
[]
[]
[]
[]
[]
[]
[]
[]
[]
[]
[]
[]
[]
[]
[]
[]
[]
[]
[]
[]
[]
[]
[]
[]
[]
[]
[]
[]
[]
[]
[]
[]
[]
[]
[]
[]
[]
[]
[]
[]
[]
[]
[]
[]
[]
[]
[]
[]
[]
[]
[]
[]
[]
[]
[]
[]
[]
[]
[]
[]
[]
[]
[]
[]
[]
[]
[]
[]
[]
[]
[]
[]
[]
[]
[]
[]
[]
[]
[]
[]
[]
[]
[]
[]
[]
[]
[]
[]
[]
[]
[]
[]
[]
[]
[]
[]
[]
[]
[]
[]
[]
[]
[]
[]
[]
[]
[]
[]
[]
[]
[]
[]
[]
[]
[]
[]
[]
[]
[]
[]
[]
[]
[]
[]
[]
[]
[]
[]
[]
[]
[]
[]
[]
[]
[]
[]
[]
[]
[]
[]
[]
[]
[]
[]
[]
[]
[]
[]
[]
[]
[]
[]
[]
[]
[]
[]
[]
[]
[]
[]
[]
[]
[]
[]
[]
[]
[]
[]
[]
[]
[]
[]
[]
[]
[]
[]
[]
[]
[]
[]
[]
[]
[]
[]
[]
[]
[]
[]
[]
[]
[]
[]
[]
[]
[]
[]
[]
[]
[]
[]
[]
[]
[]
[]
[]
[]
[]
[]
[]
[]
[]
[]
[]
[]
[]
[]
[]
[]
[]
[]
[]
[]
[]
[]
[]
[]
[]
[]
[]
[]
[]
[]
[]
[]
[]
[]
[]
[]
[]
[]
[]
[]
[]
[]
[]
[]
[]
[]
[]
[]
[]
[]
[]
[]
[]
[]
[]
[]
[]
[]
[]
[]
[]
[]
[]
[]
[]
[]
[]
[]
[]
[]
[]
[]
[]
[]
[]
[]
[]
[]
[]
[]
[]
[]
[]
[]
[]
[]
[]
[]
[]
[]
[]
[]
[]
[]
[]
[]
[]
[]
[]
[]
[]
[]
[]
[]
[]
[]
[]
[]
[]
[]
[]
[]
[]
[]
[]
[]
[]
[]
[]
[]
[]
[]
[]
[]
[]
[]
[]
[]
[]
[]
[]
[]
[]
[]
[]
[]
[]
[]
[]
[]
[]
[]
[]
[]
[]
[]
[]
[]
[]
[]
[]
[]
[]
[]
[]
[]
[]
[]
[]
[]
[]
[]
[]
[]
[]
[]
[]
[]
[]
[]
[]
[]
[]
[]
[]
[]
[]
[]
[]
[]
[]
[]
[]
[]
[]
[]
[]
[]
[]
[]
[]
[]
[]
[]
[]
[]
[]
[]
[]
[]
[]
[]
[]
[]
[]
[]
[]
[]
[]
[]
[]
[]
[]
[]
[]
[]
[]
[]
[]
[]
[]
[]
[]
[]
[]
[]
[]
[]
[]
[]
[]
[]
[]
[]
[]
[]
[]
[]
[]
[]
[]
[]
[]
[]
[]
[]
[]
[]
[]
[]
[]
[]
[]
[]
[]
[]
[]
[]
[]
[]
[]
[]
[]
[]
[]
[]
[]
[]
[]
[]
[]
[]
[]
[]
[]
[]
[]
[]
[]
[]
[]
[]
[]
[]
[]
[]
[]
[]
[]
[]
[]
[]
[]
[]
[]
[]
[]
[]
[]
[]
[]
[]
[]
[]
[]
[]
[]
[]
[]
[]
[]
[]
[]
[]
[]
[]
[]
[]
[]
[]
[]
[]
[]
[]
[]
[]
[]
[]
[]
[]
[]
[]
[]
[]
[]
[]
[]
[]
[]
[]
[]
[]
[]
[]
[]
[]
[]
[]
[]
[]
[]
[]
[]
[]
[]
[]
[]
[]
[]
[]
[]
[]
[]
[]
[]
[]
[]
[]
[]
[]
[]
[]
[]
[]
[]
[]
[]
[]
[]
[]
[]
[]
[]
[]
[]
[]
[]
[]
[]
[]
[]
[]
[]
[]
[]
[]
[]
[]
[]
[]
[]
[]
[]
[]
[]
[]
[]
[]
[]
[]
[]
[]
[]
[]
[]
[]
[]
[]
[]
[]
[]
[]
[]
[]
[]
[]
[]
[]
[]
[]
[]
[]
[]
[]
[]
[]
[]
[]
[]
[]
[]
[]
[]
[]
[]
[]
[]
[]
[]
[]
[]
[]
[]
[]
[]
[]
[]
[]
[]
[]
[]
[]
[]
[]
[]
[]
[]
[]
[]
[]
[]
[]
[]
[]
[]
[]
[]
[]
[]
[]
[]
[]
[]
[]
[]
[]
[]
[]
[]
[]
[]
[]
[]
[]
[]
[]
[]
[]
[]
[]
[]
[]
[]
[]
[]
[]
[]
[]
[]
[]
[]
[]
[]
[]
[]
[]
[]
[]
[]
[]
[]
[]
[]
[]
[]
[]
[]
[]
[]
[]
[]
[]
[]
[]
[]
[]
[]
[]
[]
[]
[]
[]
[]
[]
[]
[]
[]
[]
[]
[]
[]
[]
[]
[]
[]
[]
[]
[]
[]
[]
[]
[]
[]
[]
[]
[]
[]
[]
[]
[]
[]
[]
[]
[]
[]
[]
[]
[]
[]
[]
[]
[]
[]
[]
[]
[]
[]
[]
[]
[]
[]
[]
[]
[]
[]
[]
[]
[]
[]
[]
[]
[]
[]
[]
[]
[]
[]
[]
[]
[]
[]
[]
[]
[]
[]
[]
[]
[]
[]
[]
[]
[]
[]
[]
[]
[]
[]
[]
[]
[]
[]
[]
[]
[]
[]
[]
[]
[]
[]
[]
[]
[]
[]
[]
[]
[]
[]
[]
[]
[]
[]
[]
[]
[]
[]
[]
[]
[]
[]
[]
[]
[]
[]
[]
[]
[]
[]
[]
[]
[]
[]
[]
[]
[]
[]
[]
[]
[]
[]
[]
[]
[]
[]
[]
[]
[]
[]
[]
[]
[]
[]
[]
[]
[]
[]
[]
[]
[]
[]
[]
[]
[]
[]
[]
[]
[]
[]
[]
[]
[]
[]
[]
[]
[]
[]
[]
[]
[]
[]
[]
[]
[]
[]
[]
[]
[]
[]
[]
[]
[]
[]
[]
[]
[]
[]
[]
[]
[]
[]
[]
[]
[]
[]
[]
[]
[]
[]
[]
[]
[]
[]
[]
[]
[]
[]
[]
[]
[]
[]
[]
[]
[]
[]
[]
[]
[]
[]
[]
[]
[]
[]
[]
[]
[]
[]
[]
[]
[]
[]
[]
[]
[]
[]
[]
[]
[]
[]
[]
[]
[]
[]
[]
[]
[]
[]
[]
[]
[]
[]
[]
[]
[]
[]
[]
[]
[]
[]
[]
[]
[]
[]
[]
[]
[]
[]
[]
[]
[]
[]
[]
[]
[]
[]
[]
[]
[]
[]
[]
[]
[]
[]
[]
[]
[]
[]
[]
[]
[]
[]
[]
[]
[]
[]
[]
[]
[]
[]
[]
[]
[]
[]
[]
[]
[]
[]
[]
[]
[]
[]
[]
[]
[]
[]
[]
[]
[]
[]
[]
[]
[]
[]
[]
[]
[]
[]
[]
[]
[]
[]
[]
[]
[]
[]
[]
[]
[]
[]
[]
[]
[]
[]
[]
[]
[]
[]
[]
[]
[]
[]
[]
[]
[]
[]
[]
[]
[]
[]
[]
[]
[]
[]
[]
[]
[]
[]
[]
[]
[]
[]
[]
[]
[]
[]
[]
[]
[]
[]
[]
[]
[]
[]
[]
[]
[]
[]
[]
[]
[]
[]
[]
[]
[]
[]
[]
[]
[]
[]
[]
[]
[]
[]
[]
[]
[]
[]
[]
[]
[]
[]
[]
[]
[]
[]
[]
[]
[]
[]
[]
[]
[]
[]
[]
[]
[]
[]
[]
[]
[]
[]
[]
[]
[]
[]
[]
[]
[]
[]
[]
[]
[]
[]
[]
[]
[]
[]
[]
[]
[]
[]
[]
[]
[]
[]
[]
[]
[]
[]
[]
[]
[]
[]
[]
[]
[]
[]
[]
[]
[]
[]
[]
[]
[]
[]
[]
[]
[]
[]
[]
[]
[]
[]
[]
[]
[]
[]
[]
[]
[]
[]
[]
[]
[]
[]
[]
[]
[]
[]
[]
[]
[]
[]
[]
[]
[]
[]
[]
[]
[]
[]
[]
[]
[]
[]
[]
[]
[]
[]
[]
[]
[]
[]
[]
[]
[]
[]
[]
[]
[]
[]
[]
[]
[]
[]
[]
[]
[]
[]
[]
[]
[]
[]
[]
[]
[]
[]
[]
[]
[]
[]
[]
[]
[]
[]
[]
[]
[]
[]
[]
[]
[]
[]
[]
[]
[]
[]
[]
[]
[]
[]
[]
[]
[]
[]
[]
[]
[]
[]
[]
[]
[]
[]
[]
[]
[]
[]
[]
[]
[]
[]
[]
[]
[]
[]
[]
[]
[]
[]
[]
[]
[]
[]
[]
[]
[]
[]
[]
[]
[]
[]
[]
[]
[]
[]
[]
[]
[]
[]
[]
[]
[]
[]
[]
[]
[]
[]
[]
[]
[]
[]
[]
[]
[]
[]
[]
[]
[]
[]
[]
[]
[]
[]
[]
[]
[]
[]
[]
[]
[]
[]
[]
[]
[]
[]
[]
[]
[]
[]
[]
[]
[]
[]
[]
[]
[]
[]
[]
[]
[]
[]
[]
[]
[]
[]
[]
[]
[]
[]
[]
[]
[]
[]
[]
[]
[]
[]
[]
[]
[]
[]
[]
[]
[]
[]
[]
[]
[]
[]
[]
[]
[]
[]
[]
[]
[]
[]
[]
[]
[]
[]
[]
[]
[]
[]
[]
[]
[]
[]
[]
[]
[]
[]
[]
[]
[]
[]
[]
[]
[]
[]
[]
[]
[]
[]
[]
[]
[]
[]
[]
[]
[]
[]
[]
[]
[]
[]
[]
[]
[]
[]
[]
[]
[]
[]
[]
[]
[]
[]
[]
[]
[]
[]
[]
[]
[]
[]
[]
[]
[]
[]
[]
[]
[]
[]
[]
[]
[]
[]
[]
[]
[]
[]
[]
[]
[]
[]
[]
[]
[]
[]
[]
[]
[]
[]
[]
[]
[]
[]
[]
[]
[]
[]
[]
[]
[]
[]
[]
[]
[]
[]
[]
[]
[]
[]
[]
[]
[]
[]
[]
[]
[]
[]
[]
[]
[]
[]
[]
[]
[]
[]
[]
[]
[]
[]
[]
[]
[]
[]
[]
[]
[]
[]
[]
[]
[]
[]
[]
[]
[]
[]
[]
[]
[]
[]
[]
[]
[]
[]
[]
[]
[]
[]
[]
[]
[]
[]
[]
[]
[]
[]
[]
[]
[]
[]
[]
[]
[]
[]
[]
[]
[]
[]
[]
[]
[]
[]
[]
[]
[]
[]
[]
[]
[]
[]
[]
[]
[]
[]
[]
[]
[]
[]
[]
[]
[]
[]
[]
[]
[]
[]
[]
[]
[]
[]
[]
[]
[]
[]
[]
[]
[]
[]
[]
[]
[]
[]
[]
[]
[]
[]
[]
[]
[]
[]
[]
[]
[]
[]
[]
[]
[]
[]
[]
[]
[]
[]
[]
[]
[]
[]
[]
[]
[]
[]
[]
[]
[]
[]
[]
[]
[]
[]
[]
[]
[]
[]
[]
[]
[]
[]
[]
[]
[]
[]
[]
[]
[]
[]
[]
[]
[]
[]
[]
[]
[]
[]
[]
[]
[]
[]
[]
[]
[]
[]
[]
[]
[]
[]
[]
[]
[]
[]
[]
[]
[]
[]
[]
[]
[]
[]
[]
[]
[]
[]
[]
[]
[]
[]
[]
[]
[]
[]
[]
[]
[]
[]
[]
[]
[]
[]
[]
[]
[]
[]
[]
[]
[]
[]
[]
[]
[]
[]
[]
[]
[]
[]
[]
[]
[]
[]
[]
[]
[]
[]
[]
[]
[]
[]
[]
[]
[]
[]
[]
[]
[]
[]
[]
[]
[]
[]
[]
[]
[]
[]
[]
[]
[]
[]
[]
[]
[]
[]
[]
[]
[]
[]
[]
[]
[]
[]
[]
[]
[]
[]
[]
[]
[]
[]
[]
[]
[]
[]
[]
[]
[]
[]
[]
[]
[]
[]
[]
[]
[]
[]
[]
[]
[]
[]
[]
[]
[]
[]
[]
[]
[]
[]
[]
[]
[]
[]
[]
[]
[]
[]
[]
[]
[]
[]
[]
[]
[]
[]
[]
[]
[]
[]
[]
[]
[]
[]
[]
[]
[]
[]
[]
[]
[]
[]
[]
[]
[]
[]
[]
[]
[]
[]
[]
[]
[]
[]
[]
[]
[]
[]
[]
[]
[]
[]
[]
[]
[]
[]
[]
[]
[]
[]
[]
[]
[]
[]
[]
[]
[]
[]
[]
[]
[]
[]
[]
[]
[]
[]
[]
[]
[]
[]
[]
[]
[]
[]
[]
[]
[]
[]
[]
[]
[]
[]
[]
[]
[]
[]
[]
[]
[]
[]
[]
[]
[]
[]
[]
[]
[]
[]
[]
[]
[]
[]
[]
[]
[]
[]
[]
[]
[]
[]
[]
[]
[]
[]
[]
[]
[]
[]
[]
[]
[]
[]
[]
[]
[]
[]
[]
[]
[]
[]
[]
[]
[]
[]
[]
[]
[]
[]
[]
[]
[]
[]
[]
[]
[]
[]
[]
[]
[]
[]
[]
[]
[]
[]
[]
[]
[]
[]
[]
[]
[]
[]
[]
[]
[]
[]
[]
[]
[]
[]
[]
[]
[]
[]
[]
[]
[]
[]
[]
[]
[]
[]
[]
[]
[]
[]
[]
[]
[]
[]
[]
[]
[]
[]
[]
[]
[]
[]
[]
[]
[]
[]
[]
[]
[]
[]
[]
[]
[]
[]
[]
[]
[]
[]
[]
[]
[]
[]
[]
[]
[]
[]
[]
[]
[]
[]
[]
[]
[]
[]
[]
[]
[]
[]
[]
[]
[]
[]
[]
[]
[]
[]
[]
[]
[]
[]
[]
[]
[]
[]
[]
[]
[]
[]
[]
[]
[]
[]
[]
[]
[]
[]
[]
[]
[]
[]
[]
[]
[]
[]
[]
[]
[]
[]
[]
[]
[]
[]
[]
[]
[]
[]
[]
[]
[]
[]
[]
[]
[]
[]
[]
[]
[]
[]
[]
[]
[]
[]
[]
[]
[]
[]
[]
[]
[]
[]
[]
[]
[]
[]
[]
[]
[]
[]
[]
[]
[]
[]
[]
[]
[]
[]
[]
[]
[]
[]
[]
[]
[]
[]
[]
[]
[]
[]
[]
[]
[]
[]
[]
[]
[]
[]
[]
[]
[]
[]
[]
[]
[]
[]
[]
[]
[]
[]
[]
[]
[]
[]
[]
[]
[]
[]
[]
[]
[]
[]
[]
[]
[]
[]
[]
[]
[]
[]
[]
[]
[]
[]
[]
[]
[]
[]
[]
[]
[]
[]
[]
[]
[]
[]
[]
[]
[]
[]
[]
[]
[]
[]
[]
[]
[]
[]
[]
[]
[]
[]
[]
[]
[]
[]
[]
[]
[]
[]
[]
[]
[]
[]
[]
[]
[]
[]
[]
[]
[]
[]
[]
[]
[]
[]
[]
[]
[]
[]
[]
[]
[]
[]
[]
[]
[]
[]
[]
[]
[]
[]
[]
[]
[]
[]
[]
[]
[]
[]
[]
[]
[]
[]
[]
[]
[]
[]
[]
[]
[]
[]
[]
[]
[]
[]
[]
[]
[]
[]
[]
[]
[]
[]
[]
[]
[]
[]
[]
[]
[]
[]
[]
[]
[]
[]
[]
[]
[]
[]
[]
[]
[]
[]
[]
[]
[]
[]
[]
[]
[]
[]
[]
[]
[]
[]
[]
[]
[]
[]
[]
[]
[]
[]
[]
[]
[]
[]
[]
[]
[]
[]
[]
[]
[]
[]
[]
[]
[]
[]
[]
[]
[]
[]
[]
[]
[]
[]
[]
[]
[]
[]
[]
[]
[]
[]
[]
[]
[]
[]
[]
[]
[]
[]
[]
[]
[]
[]
[]
[]
[]
[]
[]
[]
[]
[]
[]
[]
[]
[]
[]
[]
[]
[]
[]
[]
[]
[]
[]
[]
[]
[]
[]
[]
[]
[]
[]
[]
[]
[]
[]
[]
[]
[]
[]
[]
[]
[]
[]
[]
[]
[]
[]
[]
[]
[]
[]
[]
[]
[]
[]
[]
[]
[]
[]
[]
[]
[]
[]
[]
[]
[]
[]
[]
[]
[]
[]
[]
[]
[]
[]
[]
[]
[]
[]
[]
[]
[]
[]
[]
[]
[]
[]
[]
[]
[]
[]
[]
[]
[]
[]
[]
[]
[]
[]
[]
[]
[]
[]
[]
[]
[]
[]
[]
[]
[]
[]
[]
[]
[]
[]
[]
[]
[]
[]
[]
[]
[]
[]
[]
[]
[]
[]
[]
[]
[]
[]
[]
[]
[]
[]
[]
[]
[]
[]
[]
[]
[]
[]
[]
[]
[]
[]
[]
[]
[]
[]
[]
[]
[]
[]
[]
[]
[]
[]
[]
[]
[]
[]
[]
[]
[]
[]
[]
[]
[]
[]
[]
[]
[]
[]
[]
[]
[]
[]
[]
[]
[]
[]
[]
[]
[]
[]
[]
[]
[]
[]
[]
[]
[]
[]
[]
[]
[]
[]
[]
[]
[]
[]
[]
[]
[]
[]
[]
[]
[]
[]
[]
[]
[]
[]
[]
[]
[]
[]
[]
[]
[]
[]
[]
[]
[]
[]
[]
[]
[]
[]
[]
[]
[]
[]
[]
[]
[]
[]
[]
[]
[]
[]
[]
[]
[]
[]
[]
[]
[]
[]
[]
[]
[]
[]
[]
[]
[]
[]
[]
[]
[]
[]
[]
[]
[]
[]
[]
[]
[]
[]
[]
[]
[]
[]
[]
[]
[]
[]
[]
[]
[]
[]
[]
[]
[]
[]
[]
[]
[]
[]
[]
[]
[]
[]
[]
[]
[]
[]
[]
[]
[]
[]
[]
[]
[]
[]
[]
[]
[]
[]
[]
[]
[]
[]
[]
[]
[]
[]
[]
[]
[]
[]
[]
[]
[]
[]
[]
[]
[]
[]
[]
[]
[]
[]
[]
[]
[]
[]
[]
[]
[]
[]
[]
[]
[]
[]
[]
[]
[]
[]
[]
[]
[]
[]
[]
[]
[]
[]
[]
[]
[]
[]
[]
[]
[]
[]
[]
[]
[]
[]
[]
[]
[]
[]
[]
[]
[]
[]
[]
[]
[]
[]
[]
[]
[]
[]
[]
[]
[]
[]
[]
[]
[]
[]
[]
[]
[]
[]
[]
[]
[]
[]
[]
[]
[]
[]
[]
[]
[]
[]
[]
[]
[]
[]
[]
[]
[]
[]
[]
[]
[]
[]
[]
[]
[]
[]
[]
[]
[]
[]
[]
[]
[]
[]
[]
[]
[]
[]
[]
[]
[]
[]
[]
[]
[]
[]
[]
[]
[]
[]
[]
[]
[]
[]
[]
[]
[]
[]
[]
[]
[]
[]
[]
[]
[]
[]
[]
[]
[]
[]
[]
[]
[]
[]
[]
[]
[]
[]
[]
[]
[]
[]
[]
[]
[]
[]
[]
[]
[]
[]
[]
[]
[]
[]
[]
[]
[]
[]
[]
[]
[]
[]
[]
[]
[]
[]
[]
[]
[]
[]
[]
[]
[]
[]
[]
[]
[]
[]
[]
[]
[]
[]
[]
[]
[]
[]
[]
[]
[]
[]
[]
[]
[]
[]
[]
[]
[]
[]
[]
[]
[]
[]
[]
[]
[]
[]
[]
[]
[]
[]
[]
[]
[]
[]
[]
[]
[]
[]
[]
[]
[]
[]
[]
[]
[]
[]
[]
[]
[]
[]
[]
[]
[]
[]
[]
[]
[]
[]
[]
[]
[]
[]
[]
[]
[]
[]
[]
[]
[]
[]
[]
[]
[]
[]
[]
[]
[]
[]
[]
[]
[]
[]
[]
[]
[]
[]
[]
[]
[]
[]
[]
[]
[]
[]
[]
[]
[]
[]
[]
[]
[]
[]
[]
[]
[]
[]
[]
[]
[]
[]
[]
[]
[]
[]
[]
[]
[]
[]
[]
[]
[]
[]
[]
[]
[]
[]
[]
[]
[]
[]
[]
[]
[]
[]
[]
[]
[]
[]
[]
[]
[]
[]
[]
[]
[]
[]
[]
[]
[]
[]
[]
[]
[]
[]
[]
[]
[]
[]
[]
[]
[]
[]
[]
[]
[]
[]
[]
[]
[]
[]
[]
[]
[]
[]
[]
[]
[]
[]
[]
[]
[]
[]
[]
[]
[]
[]
[]
[]
[]
[]
[]
[]
[]
[]
[]
[]
[]
[]
[]
[]
[]
[]
[]
[]
[]
[]
[]
[]
[]
[]
[]
[]
[]
[]
[]
[]
[]
[]
[]
[]
[]
[]
[]
[]
[]
[]
[]
[]
[]
[]
[]
[]
[]
[]
[]
[]
[]
[]
[]
[]
[]
[]
[]
[]
[]
[]
[]
[]
[]
[]
[]
[]
[]
[]
[]
[]
[]
[]
[]
[]
[]
[]
[]
[]
[]
[]
[]
[]
[]
[]
[]
[]
[]
[]
[]
[]
[]
[]
[]
[]
[]
[]
[]
[]
[]
[]
[]
[]
[]
[]
[]
[]
[]
[]
[]
[]
[]
[]
[]
[]
[]
[]
[]
[]
[]
[]
[]
[]
[]
[]
[]
[]
[]
[]
[]
[]
[]
[]
[]
[]
[]
[]
[]
[]
[]
[]
[]
[]
[]
[]
[]
[]
[]
[]
[]
[]
[]
[]
[]
[]
[]
[]
[]
[]
[]
[]
[]
[]
[]
[]
[]
[]
[]
[]
[]
[]
[]
[]
[]
[]
[]
[]
[]
[]
[]
[]
[]
[]
[]
[]
[]
[]
[]
[]
[]
[]
[]
[]
[]
[]
[]
[]
[]
[]
[]
[]
[]
[]
[]
[]
[]
[]
[]
[]
[]
[]
[]
[]
[]
[]
[]
[]
[]
[]
[]
[]
[]
[]
[]
[]
[]
[]
[]
[]
[]
[]
[]
[]
[]
[]
[]
[]
[]
[]
[]
[]
[]
[]
[]
[]
[]
[]
[]
[]
[]
[]
[]
[]
[]
[]
[]
[]
[]
[]
[]
[]
[]
[]
[]
[]
[]
[]
[]
[]
[]
[]
[]
[]
[]
[]
[]
[]
[]
[]
[]
[]
[]
[]
[]
[]
[]
[]
[]
[]
[]
[]
[]
[]
[]
[]
[]
[]
[]
[]
[]
[]
[]
[]
[]
[]
[]
[]
[]
[]
[]
[]
[]
[]
[]
[]
[]
[]
[]
[]
[]
[]
[]
[]
[]
[]
[]
[]
[]
[]
[]
[]
[]
[]
[]
[]
[]
[]
[]
[]
[]
[]
[]
[]
[]
[]
[]
[]
[]
[]
[]
[]
[]
[]
[]
[]
[]
[]
[]
[]
[]
[]
[]
[]
[]
[]
[]
[]
[]
[]
[]
[]
[]
[]
[]
[]
[]
[]
[]
[]
[]
[]
[]
[]
[]
[]
[]
[]
[]
[]
[]
[]
[]
[]
[]
[]
[]
[]
[]
[]
[]
[]
[]
[]
[]
[]
[]
[]
[]
[]
[]
[]
[]
[]
[]
[]
[]
[]
[]
[]
[]
[]
[]
[]
[]
[]
[]
[]
[]
[]
[]
[]
[]
[]
[]
[]
[]
[]
[]
[]
[]
[]
[]
[]
[]
[]
[]
[]
[]
[]
[]
[]
[]
[]
[]
[]
[]
[]
[]
[]
[]
[]
[]
[]
[]
[]
[]
[]
[]
[]
[]
[]
[]
[]
[]
[]
[]
[]
[]
[]
[]
[]
[]
[]
[]
[]
[]
[]
[]
[]
[]
[]
[]
[]
[]
[]
[]
[]
[]
[]
[]
[]
[]
[]
[]
[]
[]
[]
[]
[]
[]
[]
[]
[]
[]
[]
[]
[]
[]
[]
[]
[]
[]
[]
[]
[]
[]
[]
[]
[]
[]
[]
[]
[]
[]
[]
[]
[]
[]
[]
[]
[]
[]
[]
[]
[]
[]
[]
[]
[]
[]
[]
[]
[]
[]
[]
[]
[]
[]
[]
[]
[]
[]
[]
[]
[]
[]
[]
[]
[]
[]
[]
[]
[]
[]
[]
[]
[]
[]
[]
[]
[]
[]
[]
[]
[]
[]
[]
[]
[]
[]
[]
[]
[]
[]
[]
[]
[]
[]
[]
[]
[]
[]
[]
[]
[]
[]
[]
[]
[]
[]
[]
[]
[]
[]
[]
[]
[]
[]
[]
[]
[]
[]
[]
[]
[]
[]
[]
[]
[]
[]
[]
[]
[]
[]
[]
[]
[]
[]
[]
[]
[]
[]
[]
[]
[]
[]
[]
[]
[]
[]
[]
[]
[]
[]
[]
[]
[]
[]
[]
[]
[]
[]
[]
[]
[]
[]
[]
[]
[]
[]
[]
[]
[]
[]
[]
[]
[]
[]
[]
[]
[]
[]
[]
[]
[]
[]
[]
[]
[]
[]
[]
[]
[]
[]
[]
[]
[]
[]
[]
[]
[]
[]
[]
[]
[]
[]
[]
[]
[]
[]
[]
[]
[]
[]
[]
[]
[]
[]
[]
[]
[]
[]
[]
[]
[]
[]
[]
[]
[]
[]
[]
[]
[]
[]
[]
[]
[]
[]
[]
[]
[]
[]
[]
[]
[]
[]
[]
[]
[]
[]
[]
[]
[]
[]
[]
[]
[]
[]
[]
[]
[]
[]
[]
[]
[]
[]
[]
[]
[]
[]
[]
[]
[]
[]
[]
[]
[]
[]
[]
[]
[]
[]
[]
[]
[]
[]
[]
[]
[]
[]
[]
[]
[]
[]
[]
[]
[]
[]
[]
[]
[]
[]
[]
[]
[]
[]
[]
[]
[]
[]
[]
[]
[]
[]
[]
[]
[]
[]
[]
[]
[]
[]
[]
[]
[]
[]
[]
[]
[]
[]
[]
[]
[]
[]
[]
[]
[]
[]
[]
[]
[]
[]
[]
[]
[]
[]
[]
[]
[]
[]
[]
[]
[]
[]
[]
[]
[]
[]
[]
[]
[]
[]
[]
[]
[]
[]
[]
[]
[]
[]
[]
[]
[]
[]
[]
[]
[]
[]
[]
[]
[]
[]
[]
[]
[]
[]
[]
[]
[]
[]
[]
[]
[]
[]
[]
[]
[]
[]
[]
[]
[]
[]
[]
[]
[]
[]
[]
[]
[]
[]
[]
[]
[]
[]
[]
[]
[]
[]
[]
[]
[]
[]
[]
[]
[]
[]
[]
[]
[]
[]
[]
[]
[]
[]
[]
[]
[]
[]
[]
[]
[]
[]
[]
[]
[]
[]
[]
[]
[]
[]
[]
[]
[]
[]
[]
[]
[]
[]
[]
[]
[]
[]
[]
[]
[]
[]
[]
[]
[]
[]
[]
[]
[]
[]
[]
[]
[]
[]
[]
[]
[]
[]
[]
[]
[]
[]
[]
[]
[]
[]
[]
[]
[]
[]
[]
[]
[]
[]
[]
[]
[]
[]
[]
[]
[]
[]
[]
[]
[]
[]
[]
[]
[]
[]
[]
[]
[]
[]
[]
[]
[]
[]
[]
[]
[]
[]
[]
[]
[]
[]
[]
[]
[]
[]
[]
[]
[]
[]
[]
[]
[]
[]
[]
[]
[]
[]
[]
[]
[]
[]
[]
[]
[]
[]
[]
[]
[]
[]
[]
[]
[]
[]
[]
[]
[]
[]
[]
[]
[]
[]
[]
[]
[]
[]
[]
[]
[]
[]
[]
[]
[]
[]
[]
[]
[]
[]
[]
[]
[]
[]
[]
[]
[]
[]
[]
[]
[]
[]
[]
[]
[]
[]
[]
[]
[]
[]
[]
[]
[]
[]
[]
[]
[]
[]
[]
[]
[]
[]
[]
[]
[]
[]
[]
[]
[]
[]
[]
[]
[]
[]
[]
[]
[]
[]
[]
[]
[]
[]
[]
[]
[]
[]
[]
[]
[]
[]
[]
[]
[]
[]
[]
[]
[]
[]
[]
[]
[]
[]
[]
[]
[]
[]
[]
[]
[]
[]
[]
[]
[]
[]
[]
[]
[]
[]
[]
[]
[]
[]
[]
[]
[]
[]
[]
[]
[]
[]
[]
[]
[]
[]
[]
[]
[]
[]
[]
[]
[]
[]
[]
[]
[]
[]
[]
[]
[]
[]
[]
[]
[]
[]
[]
[]
[]
[]
[]
[]
[]
[]
[]
[]
[]
[]
[]
[]
[]
[]
[]
[]
[]
[]
[]
[]
[]
[]
[]
[]
[]
[]
[]
[]
[]
[]
[]
[]
[]
[]
[]
[]
[]
[]
[]
[]
[]
[]
[]
[]
[]
[]
[]
[]
[]
[]
[]
[]
[]
[]
[]
[]
[]
[]
[]
[]
[]
[]
[]
[]
[]
[]
[]
[]
[]
[]
[]
[]
[]
[]
[]
[]
[]
[]
[]
[]
[]
[]
[]
[]
[]
[]
[]
[]
[]
[]
[]
[]
[]
[]
[]
[]
[]
[]
[]
[]
[]
[]
[]
[]
[]
[]
[]
[]
[]
[]
[]
[]
[]
[]
[]
[]
[]
[]
[]
[]
[]
[]
[]
[]
[]
[]
[]
[]
[]
[]
[]
[]
[]
[]
[]
[]
[]
[]
[]
[]
[]
[]
[]
[]
[]
[]
[]
[]
[]
[]
[]
[]
[]
[]
[]
[]
[]
[]
[]
[]
[]
[]
[]
[]
[]
[]
[]
[]
[]
[]
[]
[]
[]
[]
[]
[]
[]
[]
[]
[]
[]
[]
[]
[]
[]
[]
[]
[]
[]
[]
[]
[]
[]
[]
[]
[]
[]
[]
[]
[]
[]
[]
[]
[]
[]
[]
[]
[]
[]
[]
[]
[]
[]
[]
[]
[]
[]
[]
[]
[]
[]
[]
[]
[]
[]
[]
[]
[]
[]
[]
[]
[]
[]
[]
[]
[]
[]
[]
[]
[]
[]
[]
[]
[]
[]
[]
[]
[]
[]
[]
[]
[]
[]
[]
[]
[]
[]
[]
[]
[]
[]
[]
[]
[]
[]
[]
[]
[]
[]
[]
[]
[]
[]
[]
[]
[]
[]
[]
[]
[]
[]
[]
[]
[]
[]
[]
[]
[]
[]
[]
[]
[]
[]
[]
[]
[]
[]
[]
[]
[]
[]
[]
[]
[]
[]
[]
[]
[]
[]
[]
[]
[]
[]
[]
[]
[]
[]
[]
[]
[]
[]
[]
[]
[]
[]
[]
[]
[]
[]
[]
[]
[]
[]
[]
[]
[]
[]
[]
[]
[]
[]
[]
[]
[]
[]
[]
[]
[]
[]
[]
[]
[]
[]
[]
[]
[]
[]
[]
[]
[]
[]
[]
[]
[]
[]
[]
[]
[]
[]
[]
[]
[]
[]
[]
[]
[]
[]
[]
[]
[]
[]
[]
[]
[]
[]
[]
[]
[]
[]
[]
[]
[]
[]
[]
[]
[]
[]
[]
[]
[]
[]
[]
[]
[]
[]
[]
[]
[]
[]
[]
[]
[]
[]
[]
[]
[]
[]
[]
[]
[]
[]
[]
[]
[]
[]
[]
[]
[]
[]
[]
[]
[]
[]
[]
[]
[]
[]
[]
[]
[]
[]
[]
[]
[]
[]
[]
[]
[]
[]
[]
[]
[]
[]
[]
[]
[]
[]
[]
[]
[]
[]
[]
[]
[]
[]
[]
[]
[]
[]
[]
[]
[]
[]
[]
[]
[]
[]
[]
[]
[]
[]
[]
[]
[]
[]
[]
[]
[]
[]
[]
[]
[]
[]
[]
[]
[]
[]
[]
[]
[]
[]
[]
[]
[]
[]
[]
[]
[]
[]
[]
[]
[]
[]
[]
[]
[]
[]
[]
[]
[]
[]
[]
[]
[]
[]
[]
[]
[]
[]
[]
[]
[]
[]
[]
[]
[]
[]
[]
[]
[]
[]
[]
[]
[]
[]
[]
[]
[]
[]
[]
[]
[]
[]
[]
[]
[]
[]
[]
[]
[]
[]
[]
[]
[]
[]
[]
[]
[]
[]
[]
[]
[]
[]
[]
[]
[]
[]
[]
[]
[]
[]
[]
[]
[]
[]
[]
[]
[]
[]
[]
[]
[]
[]
[]
[]
[]
[]
[]
[]
[]
[]
[]
[]
[]
[]
[]
[]
[]
[]
[]
[]
[]
[]
[]
[]
[]
[]
[]
[]
[]
[]
[]
[]
[]
[]
[]
[]
[]
[]
[]
[]
[]
[]
[]
[]
[]
[]
[]
[]
[]
[]
[]
[]
[]
[]
[]
[]
[]
[]
[]
[]
[]
[]
[]
[]
[]
[]
[]
[]
[]
[]
[]
[]
[]
[]
[]
[]
[]
[]
[]
[]
[]
[]
[]
[]
[]
[]
[]
[]
[]
[]
[]
[]
[]
[]
[]
[]
[]
[]
[]
[]
[]
[]
[]
[]
[]
[]
[]
[]
[]
[]
[]
[]
[]
[]
[]
[]
[]
[]
[]
[]
[]
[]
[]
[]
[]
[]
[]
[]
[]
[]
[]
[]
[]
[]
[]
[]
[]
[]
[]
[]
[]
[]
[]
[]
[]
[]
[]
[]
[]
[]
[]
[]
[]
[]
[]
[]
[]
[]
[]
[]
[]
[]
[]
[]
[]
[]
[]
[]
[]
[]
[]
[]
[]
[]
[]
[]
[]
[]
[]
[]
[]
[]
[]
[]
[]
[]
[]
[]
[]
[]
[]
[]
[]
[]
[]
[]
[]
[]
[]
[]
[]
[]
[]
[]
[]
[]
[]
[]
[]
[]
[]
[]
[]
[]
[]
[]
[]
[]
[]
[]
[]
[]
[]
[]
[]
[]
[]
[]
[]
[]
[]
[]
[]
[]
[]
[]
[]
[]
[]
[]
[]
[]
[]
[]
[]
[]
[]
[]
[]
[]
[]
[]
[]
[]
[]
[]
[]
[]
[]
[]
[]
[]
[]
[]
[]
[]
[]
[]
[]
[]
[]
[]
[]
[]
[]
[]
[]
[]
[]
[]
[]
[]
[]
[]
[]
[]
[]
[]
[]
[]
[]
[]
[]
[]
[]
[]
[]
[]
[]
[]
[]
[]
[]
[]
[]
[]
[]
[]
[]
[]
[]
[]
[]
[]
[]
[]
[]
[]
[]
[]
[]
[]
[]
[]
[]
[]
[]
[]
[]
[]
[]
[]
[]
[]
[]
[]
[]
[]
[]
[]
[]
[]
[]
[]
[]
[]
[]
[]
[]
[]
[]
[]
[]
[]
[]
[]
[]
[]
[]
[]
[]
[]
[]
[]
[]
[]
[]
[]
[]
[]
[]
[]
[]
[]
[]
[]
[]
[]
[]
[]
[]
[]
[]
[]
[]
[]
[]
[]
[]
[]
[]
[]
[]
[]
[]
[]
[]
[]
[]
[]
[]
[]
[]
[]
[]
[]
[]
[]
[]
[]
[]
[]
[]
[]
[]
[]
[]
[]
[]
[]
[]
[]
[]
[]
[]
[]
[]
[]
[]
[]
[]
[]
[]
[]
[]
[]
[]
[]
[]
[]
[]
[]
[]
[]
[]
[]
[]
[]
[]
[]
[]
[]
[]
[]
[]
[]
[]
[]
[]
[]
[]
[]
[]
[]
[]
[]
[]
[]
[]
[]
[]
[]
[]
[]
[]
[]
[]
[]
[]
[]
[]
[]
[]
[]
[]
[]
[]
[]
[]
[]
[]
[]
[]
[]
[]
[]
[]
[]
[]
[]
[]
[]
[]
[]
[]
[]
[]
[]
[]
[]
[]
[]
[]
[]
[]
[]
[]
[]
[]
[]
[]
[]
[]
[]
[]
[]
[]
[]
[]
[]
[]
[]
[]
[]
[]
[]
[]
[]
[]
[]
[]
[]
[]
[]
[]
[]
[]
[]
[]
[]
[]
[]
[]
[]
[]
[]
[]
[]
[]
[]
[]
[]
[]
[]
[]
[]
[]
[]
[]
[]
[]
[]
[]
[]
[]
[]
[]
[]
[]
[]
[]
[]
[]
[]
[]
[]
[]
[]
[]
[]
[]
[]
[]
[]
[]
[]
[]
[]
[]
[]
[]
[]
[]
[]
[]
[]
[]
[]
[]
[]
[]
[]
[]
[]
[]
[]
[]
[]
[]
[]
[]
[]
[]
[]
[]
[]
[]
[]
[]
[]
[]
[]
[]
[]
[]
[]
[]
[]
[]
[]
[]
[]
[]
[]
[]
[]
[]
[]
[]
[]
[]
[]
[]
[]
[]
[]
[]
[]
[]
[]
[]
[]
[]
[]
[]
[]
[]
[]
[]
[]
[]
[]
[]
[]
[]
[]
[]
[]
[]
[]
[]
[]
[]
[]
[]
[]
[]
[]
[]
[]
[]
[]
[]
[]
[]
[]
[]
[]
[]
[]
[]
[]
[]
[]
[]
[]
[]
[]
[]
[]
[]
[]
[]
[]
[]
[]
[]
[]
[]
[]
[]
[]
[]
[]
[]
[]
[]
[]
[]
[]
[]
[]
[]
[]
[]
[]
[]
[]
[]
[]
[]
[]
[]
[]
[]
[]
[]
[]
[]
[]
[]
[]
[]
[]
[]
[]
[]
[]
[]
[]
[]
[]
[]
[]
[]
[]
[]
[]
[]
[]
[]
[]
[]
[]
[]
[]
[]
[]
[]
[]
[]
[]
[]
[]
[]
[]
[]
[]
[]
[]
[]
[]
[]
[]
[]
[]
[]
[]
[]
[]
[]
[]
[]
[]
[]
[]
[]
[]
[]
[]
[]
[]
[]
[]
[]
[]
[]
[]
[]
[]
[]
[]
[]
[]
[]
[]
[]
[]
[]
[]
[]
[]
[]
[]
[]
[]
[]
[]
[]
[]
[]
[]
[]
[]
[]
[]
[]
[]
[]
[]
[]
[]
[]
[]
[]
[]
[]
[]
[]
[]
[]
[]
[]
[]
[]
[]
[]
[]
[]
[]
[]
[]
[]
[]
[]
[]
[]
[]
[]
[]
[]
[]
[]
[]
[]
[]
[]
[]
[]
[]
[]
[]
[]
[]
[]
[]
[]
[]
[]
[]
[]
[]
[]
[]
[]
[]
[]
[]
[]
[]
[]
[]
[]
[]
[]
[]
[]
[]
[]
[]
[]
[]
[]
[]
[]
[]
[]
[]
[]
[]
[]
[]
[]
[]
[]
[]
[]
[]
[]
[]
[]
[]
[]
[]
[]
[]
[]
[]
[]
[]
[]
[]
[]
[]
[]
[]
[]
[]
[]
[]
[]
[]
[]
[]
[]
[]
[]
[]
[]
[]
[]
[]
[]
[]
[]
[]
[]
[]
[]
[]
[]
[]
[]
[]
[]
[]
[]
[]
[]
[]
[]
[]
[]
[]
[]
[]
[]
[]
[]
[]
[]
[]
[]
[]
[]
[]
[]
[]
[]
[]
[]
[]
[]
[]
[]
[]
[]
[]
[]
[]
[]
[]
[]
[]
[]
[]
[]
[]
[]
[]
[]
[]
[]
[]
[]
[]
[]
[]
[]
[]
[]
[]
[]
[]
[]
[]
[]
[]
[]
[]
[]
[]
[]
[]
[]
[]
[]
[]
[]
[]
[]
[]
[]
[]
[]
[]
[]
[]
[]
[]
[]
[]
[]
[]
[]
[]
[]
[]
[]
[]
[]
[]
[]
[]
[]
[]
[]
[]
[]
[]
[]
[]
[]
[]
[]
[]
[]
[]
[]
[]
[]
[]
[]
[]
[]
[]
[]
[]
[]
[]
[]
[]
[]
[]
[]
[]
[]
[]
[]
[]
[]
[]
[]
[]
[]
[]
[]
[]
[]
[]
[]
[]
[]
[]
[]
[]
[]
[]
[]
[]
[]
[]
[]
[]
[]
[]
[]
[]
[]
[]
[]
[]
[]
[]
[]
[]
[]
[]
[]
[]
[]
[]
[]
[]
[]
[]
[]
[]
[]
[]
[]
[]
[]
[]
[]
[]
[]
[]
[]
[]
[]
[]
[]
[]
[]
[]
[]
[]
[]
[]
[]
[]
[]
[]
[]
[]
[]
[]
[]
[]
[]
[]
[]
[]
[]
[]
[]
[]
[]
[]
[]
[]
[]
[]
[]
[]
[]
[]
[]
[]
[]
[]
[]
[]
[]
[]
[]
[]
[]
[]
[]
[]
[]
[]
[]
[]
[]
[]
[]
[]
[]
[]
[]
[]
[]
[]
[]
[]
[]
[]
[]
[]
[]
[]
[]
[]
[]
[]
[]
[]
[]
[]
[]
[]
[]
[]
[]
[]
[]
[]
[]
[]
[]
[]
[]
[]
[]
[]
[]
[]
[]
[]
[]
[]
[]
[]
[]
[]
[]
[]
[]
[]
[]
[]
[]
[]
[]
[]
[]
[]
[]
[]
[]
[]
[]
[]
[]
[]
[]
[]
[]
[]
[]
[]
[]
[]
[]
[]
[]
[]
[]
[]
[]
[]
[]
[]
[]
[]
[]
[]
[]
[]
[]
[]
[]
[]
[]
[]
[]
[]
[]
[]
[]
[]
[]
[]
[]
[]
[]
[]
[]
[]
[]
[]
[]
[]
[]
[]
[]
[]
[]
[]
[]
[]
[]
[]
[]
[]
[]
[]
[]
[]
[]
[]
[]
[]
[]
[]
[]
[]
[]
[]
[]
[]
[]
[]
[]
[]
[]
[]
[]
[]
[]
[]
[]
[]
[]
[]
[]
[]
[]
[]
[]
[]
[]
[]
[]
[]
[]
[]
[]
[]
[]
[]
[]
[]
[]
[]
[]
[]
[]
[]
[]
[]
[]
[]
[]
[]
[]
[]
[]
[]
[]
[]
[]
[]
[]
[]
[]
[]
[]
[]
[]
[]
[]
[]
[]
[]
[]
[]
[]
[]
[]
[]
[]
[]
[]
[]
[]
[]
[]
[]
[]
[]
[]
[]
[]
[]
[]
[]
[]
[]
[]
[]
[]
[]
[]
[]
[]
[]
[]
[]
[]
[]
[]
[]
[]
[]
[]
[]
[]
[]
[]
[]
[]
[]
[]
[]
[]
[]
[]
[]
[]
[]
[]
[]
[]
[]
[]
[]
[]
[]
[]
[]
[]
[]
[]
[]
[]
[]
[]
[]
[]
[]
[]
[]
[]
[]
[]
[]
[]
[]
[]
[]
[]
[]
[]
[]
[]
[]
[]
[]
[]
[]
[]
[]
[]
[]
[]
[]
[]
[]
[]
[]
[]
[]
[]
[]
[]
[]
[]
[]
[]
[]
[]
[]
[]
[]
[]
[]
[]
[]
[]
[]
[]
[]
[]
[]
[]
[]
[]
[]
[]
[]
[]
[]
[]
[]
[]
[]
[]
[]
[]
[]
[]
[]
[]
[]
[]
[]
[]
[]
[]
[]
[]
[]
[]
[]
[]
[]
[]
[]
[]
[]
[]
[]
[]
[]
[]
[]
[]
[]
[]
[]
[]
[]
[]
[]
[]
[]
[]
[]
[]
[]
[]
[]
[]
[]
[]
[]
[]
[]
[]
[]
[]
[]
[]
[]
[]
[]
[]
[]
[]
[]
[]
[]
[]
[]
[]
[]
[]
[]
[]
[]
[]
[]
[]
[]
[]
[]
[]
[]
[]
[]
[]
[]
[]
[]
[]
[]
[]
[]
[]
[]
[]
[]
[]
[]
[]
[]
[]
[]
[]
[]
[]
[]
[]
[]
[]
[]
[]
[]
[]
[]
[]
[]
[]
[]
[]
[]
[]
[]
[]
[]
[]
[]
[]
[]
[]
[]
[]
[]
[]
[]
[]
[]
[]
[]
[]
[]
[]
[]
[]
[]
[]
[]
[]
[]
[]
[]
[]
[]
[]
[]
[]
[]
[]
[]
[]
[]
[]
[]
[]
[]
[]
[]
[]
[]
[]
[]
[]
[]
[]
[]
[]
[]
[]
[]
[]
[]
[]
[]
[]
[]
[]
[]
[]
[]
[]
[]
[]
[]
[]
[]
[]
[]
[]
[]
[]
[]
[]
[]
[]
[]
[]
[]
[]
[]
[]
[]
[]
[]
[]
[]
[]
[]
[]
[]
[]
[]
[]
[]
[]
[]
[]
[]
[]
[]
[]
[]
[]
[]
[]
[]
[]
[]
[]
[]
[]
[]
[]
[]
[]
[]
[]
[]
[]
[]
[]
[]
[]
[]
[]
[]
[]
[]
[]
[]
[]
[]
[]
[]
[]
[]
[]
[]
[]
[]
[]
[]
[]
[]
[]
[]
[]
[]
[]
[]
[]
[]
[]
[]
[]
[]
[]
[]
[]
[]
[]
[]
[]
[]
[]
[]
[]
[]
[]
[]
[]
[]
[]
[]
[]
[]
[]
[]
[]
[]
[]
[]
[]
[]
[]
[]
[]
[]
[]
[]
[]
[]
[]
[]
[]
[]
[]
[]
[]
[]
[]
[]
[]
[]
[]
[]
[]
[]
[]
[]
[]
[]
[]
[]
[]
[]
[]
[]
[]
[]
[]
[]
[]
[]
[]
[]
[]
[]
[]
[]
[]
[]
[]
[]
[]
[]
[]
[]
[]
[]
[]
[]
[]
[]
[]
[]
[]
[]
[]
[]
[]
[]
[]
[]
[]
[]
[]
[]
[]
[]
[]
[]
[]
[]
[]
[]
[]
[]
[]
[]
[]
[]
[]
[]
[]
[]
[]
[]
[]
[]
[]
[]
[]
[]
[]
[]
[]
[]
[]
[]
[]
[]
[]
[]
[]
[]
[]
[]
[]
[]
[]
[]
[]
[]
[]
[]
[]
[]
[]
[]
[]
[]
[]
[]
[]
[]
[]
[]
[]
[]
[]
[]
[]
[]
[]
[]
[]
[]
[]
[]
[]
[]
[]
[]
[]
[]
[]
[]
[]
[]
[]
[]
[]
[]
[]
[]
[]
[]
[]
[]
[]
[]
[]
[]
[]
[]
[]
[]
[]
[]
[]
[]
[]
[]
[]
[]
[]
[]
[]
[]
[]
[]
[]
[]
[]
[]
[]
[]
[]
[]
[]
[]
[]
[]
[]
[]
[]
[]
[]
[]
[]
[]
[]
[]
[]
[]
[]
[]
[]
[]
[]
[]
[]
[]
[]
[]
[]
[]
[]
[]
[]
[]
[]
[]
[]
[]
[]
[]
[]
[]
[]
[]
[]
[]
[]
[]
[]
[]
[]
[]
[]
[]
[]
[]
[]
[]
[]
[]
[]
[]
[]
[]
[]
[]
[]
[]
[]
[]
[]
[]
[]
[]
[]
[]
[]
[]
[]
[]
[]
[]
[]
[]
[]
[]
[]
[]
[]
[]
[]
[]
[]
[]
[]
[]
[]
[]
[]
[]
[]
[]
[]
[]
[]
[]
[]
[]
[]
[]
[]
[]
[]
[]
[]
[]
[]
[]
[]
[]
[]
[]
[]
[]
[]
[]
[]
[]
[]
[]
[]
[]
[]
[]
[]
[]
[]
[]
[]
[]
[]
[]
[]
[]
[]
[]
[]
[]
[]
[]
[]
[]
[]
[]
[]
[]
[]
[]
[]
[]
[]
[]
[]
[]
[]
[]
[]
[]
[]
[]
[]
[]
[]
[]
[]
[]
[]
[]
[]
[]
[]
[]
[]
[]
[]
[]
[]
[]
[]
[]
[]
[]
[]
[]
[]
[]
[]
[]
[]
[]
[]
[]
[]
[]
[]
[]
[]
[]
[]
[]
[]
[]
[]
[]
[]
[]
[]
[]
[]
[]
[]
[]
[]
[]
[]
[]
[]
[]
[]
[]
[]
[]
[]
[]
[]
[]
[]
[]
[]
[]
[]
[]
[]
[]
[]
[]
[]
[]
[]
[]
[]
[]
[]
[]
[]
[]
[]
[]
[]
[]
[]
[]
[]
[]
[]
[]
[]
[]
[]
[]
[]
[]
[]
[]
[]
[]
[]
[]
[]
[]
[]
[]
[]
[]
[]
[]
[]
[]
[]
[]
[]
[]
[]
[]
[]
[]
[]
[]
[]
[]
[]
[]
[]
[]
[]
[]
[]
[]
[]
[]
[]
[]
[]
[]
[]
[]
[]
[]
[]
[]
[]
[]
[]
[]
[]
[]
[]
[]
[]
[]
[]
[]
[]
[]
[]
[]
[]
[]
[]
[]
[]
[]
[]
[]
[]
[]
[]
[]
[]
[]
[]
[]
[]
[]
[]
[]
[]
[]
[]
[]
[]
[]
[]
[]
[]
[]
[]
[]
[]
[]
[]
[]
[]
[]
[]
[]
[]
[]
[]
[]
[]
[]
[]
[]
[]
[]
[]
[]
[]
[]
[]
[]
[]
[]
[]
[]
[]
[]
[]
[]
[]
[]
[]
[]
[]
[]
[]
[]
[]
[]
[]
[]
[]
[]
[]
[]
[]
[]
[]
[]
[]
[]
[]
[]
[]
[]
[]
[]
[]
[]
[]
[]
[]
[]
[]
[]
[]
[]
[]
[]
[]
[]
[]
[]
[]
[]
[]
[]
[]
[]
[]
[]
[]
[]
[]
[]
[]
[]
[]
[]
[]
[]
[]
[]
[]
[]
[]
[]
[]
[]
[]
[]
[]
[]
[]
[]
[]
[]
[]
[]
[]
[]
[]
[]
[]
[]
[]
[]
[]
[]
[]
[]
[]
[]
[]
[]
[]
[]
[]
[]
[]
[]
[]
[]
[]
[]
[]
[]
[]
[]
[]
[]
[]
[]
[]
[]
[]
[]
[]
[]
[]
[]
[]
[]
[]
[]
[]
[]
[]
[]
[]
[]
[]
[]
[]
[]
[]
[]
[]
[]
[]
[]
[]
[]
[]
[]
[]
[]
[]
[]
[]
[]
[]
[]
[]
[]
[]
[]
[]
[]
[]
[]
[]
[]
[]
[]
[]
[]
[]
[]
[]
[]
[]
[]
[]
[]
[]
[]
[]
[]
[]
[]
[]
[]
[]
[]
[]
[]
[]
[]
[]
[]
[]
[]
[]
[]
[]
[]
[]
[]
[]
[]
[]
[]
[]
[]
[]
[]
[]
[]
[]
[]
[]
[]
[]
[]
[]
[]
[]
[]
[]
[]
[]
[]
[]
[]
[]
[]
[]
[]
[]
[]
[]
[]
[]
[]
[]
[]
[]
[]
[]
[]
[]
[]
[]
[]
[]
[]
[]
[]
[]
[]
[]
[]
[]
[]
[]
[]
[]
[]
[]
[]
[]
[]
[]
[]
[]
[]
[]
[]
[]
[]
[]
[]
[]
[]
[]
[]
[]
[]
[]
[]
[]
[]
[]
[]
[]
[]
[]
[]
[]
[]
[]
[]
[]
[]
[]
[]
[]
[]
[]
[]
[]
[]
[]
[]
[]
[]
[]
[]
[]
[]
[]
[]
[]
[]
[]
[]
[]
[]
[]
[]
[]
[]
[]
[]
[]
[]
[]
[]
[]
[]
[]
[]
[]
[]
[]
[]
[]
[]
[]
[]
[]
[]
[]
[]
[]
[]
[]
[]
[]
[]
[]
[]
[]
[]
[]
[]
[]
[]
[]
[]
[]
[]
[]
[]
[]
[]
[]
[]
[]
[]
[]
[]
[]
[]
[]
[]
[]
[]
[]
[]
[]
[]
[]
[]
[]
[]
[]
[]
[]
[]
[]
[]
[]
[]
[]
[]
[]
[]
[]
[]
[]
[]
[]
[]
[]
[]
[]
[]
[]
[]
[]
[]
[]
[]
[]
[]
[]
[]
[]
[]
[]
[]
[]
[]
[]
[]
[]
[]
[]
[]
[]
[]
[]
[]
[]
[]
[]
[]
[]
[]
[]
[]
[]
[]
[]
[]
[]
[]
[]
[]
[]
[]
[]
[]
[]
[]
[]
[]
[]
[]
[]
[]
[]
[]
[]
[]
[]
[]
[]
[]
[]
[]
[]
[]
[]
[]
[]
[]
[]
[]
[]
[]
[]
[]
[]
[]
[]
[]
[]
[]
[]
[]
[]
[]
[]
[]
[]
[]
[]
[]
[]
[]
[]
[]
[]
[]
[]
[]
[]
[]
[]
[]
[]
[]
[]
[]
[]
[]
[]
[]
[]
[]
[]
[]
[]
[]
[]
[]
[]
[]
[]
[]
[]
[]
[]
[]
[]
[]
[]
[]
[]
[]
[]
[]
[]
[]
[]
[]
[]
[]
[]
[]
[]
[]
[]
[]
[]
[]
[]
[]
[]
[]
[]
[]
[]
[]
[]
[]
[]
[]
[]
[]
[]
[]
[]
[]
[]
[]
[]
[]
[]
[]
[]
[]
[]
[]
[]
[]
[]
[]
[]
[]
[]
[]
[]
[]
[]
[]
[]
[]
[]
[]
[]
[]
[]
[]
[]
[]
[]
[]
[]
[]
[]
[]
[]
[]
[]
[]
[]
[]
[]
[]
[]
[]
[]
[]
[]
[]
[]
[]
[]
[]
[]
[]
[]
[]
[]
[]
[]
[]
[]
[]
[]
[]
[]
[]
[]
[]
[]
[]
[]
[]
[]
[]
[]
[]
[]
[]
[]
[]
[]
[]
[]
[]
[]
[]
[]
[]
[]
[]
[]
[]
[]
[]
[]
[]
[]
[]
[]
[]
[]
[]
[]
[]
[]
[]
[]
[]
[]
[]
[]
[]
[]
[]
[]
[]
[]
[]
[]
[]
[]
[]
[]
[]
[]
[]
[]
[]
[]
[]
[]
[]
[]
[]
[]
[]
[]
[]
[]
[]
[]
[]
[]
[]
[]
[]
[]
[]
[]
[]
[]
[]
[]
[]
[]
[]
[]
[]
[]
[]
[]
[]
[]
[]
[]
[]
[]
[]
[]
[]
[]
[]
[]
[]
[]
[]
[]
[]
[]
[]
[]
[]
[]
[]
[]
[]
[]
[]
[]
[]
[]
[]
[]
[]
[]
[]
[]
[]
[]
[]
[]
[]
[]
[]
[]
[]
[]
[]
[]
[]
[]
[]
[]
[]
[]
[]
[]
[]
[]
[]
[]
[]
[]
[]
[]
[]
[]
[]
[]
[]
[]
[]
[]
[]
[]
[]
[]
[]
[]
[]
[]
[]
[]
[]
[]
[]
[]
[]
[]
[]
[]
[]
[]
[]
[]
[]
[]
[]
[]
[]
[]
[]
[]
[]
[]
[]
[]
[]
[]
[]
[]
[]
[]
[]
[]
[]
[]
[]
[]
[]
[]
[]
[]
[]
[]
[]
[]
[]
[]
[]
[]
[]
[]
[]
[]
[]
[]
[]
[]
[]
[]
[]
[]
[]
[]
[]
[]
[]
[]
[]
[]
[]
[]
[]
[]
[]
[]
[]
[]
[]
[]
[]
[]
[]
[]
[]
[]
[]
[]
[]
[]
[]
[]
[]
[]
[]
[]
[]
[]
[]
[]
[]
[]
[]
[]
[]
[]
[]
[]
[]
[]
[]
[]
[]
[]
[]
[]
[]
[]
[]
[]
[]
[]
[]
[]
[]
[]
[]
[]
[]
[]
[]
[]
[]
[]
[]
[]
[]
[]
[]
[]
[]
[]
[]
[]
[]
[]
[]
[]
[]
[]
[]
[]
[]
[]
[]
[]
[]
[]
[]
[]
[]
[]
[]
[]
[]
[]
[]
[]
[]
[]
[]
[]
[]
[]
[]
[]
[]
[]
[]
[]
[]
[]
[]
[]
[]
[]
[]
[]
[]
[]
[]
[]
[]
[]
[]
[]
[]
[]
[]
[]
[]
[]
[]
[]
[]
[]
[]
[]
[]
[]
[]
[]
[]
[]
[]
[]
[]
[]
[]
[]
[]
[]
[]
[]
[]
[]
[]
[]
[]
[]
[]
[]
[]
[]
[]
[]
[]
[]
[]
[]
[]
[]
[]
[]
[]
[]
[]
[]
[]
[]
[]
[]
[]
[]
[]
[]
[]
[]
[]
[]
[]
[]
[]
[]
[]
[]
[]
[]
[]
[]
[]
[]
[]
[]
[]
[]
[]
[]
[]
[]
[]
[]
[]
[]
[]
[]
[]
[]
[]
[]
[]
[]
[]
[]
[]
[]
[]
[]
[]
[]
[]
[]
[]
[]
[]
[]
[]
[]
[]
[]
[]
[]
[]
[]
[]
[]
[]
[]
[]
[]
[]
[]
[]
[]
[]
[]
[]
[]
[]
[]
[]
[]
[]
[]
[]
[]
[]
[]
[]
[]
[]
[]
[]
[]
[]
[]
[]
[]
[]
[]
[]
[]
[]
[]
[]
[]
[]
[]
[]
[]
[]
[]
[]
[]
[]
[]
[]
[]
[]
[]
[]
[]
[]
[]
[]
[]
[]
[]
[]
[]
[]
[]
[]
[]
[]
[]
[]
[]
[]
[]
[]
[]
[]
[]
[]
[]
[]
[]
[]
[]
[]
[]
[]
[]
[]
[]
[]
[]
[]
[]
[]
[]
[]
[]
[]
[]
[]
[]
[]
[]
[]
[]
[]
[]
[]
[]
[]
[]
[]
[]
[]
[]
[]
[]
[]
[]
[]
[]
[]
[]
[]
[]
[]
[]
[]
[]
[]
[]
[]
[]
[]
[]
[]
[]
[]
[]
[]
[]
[]
[]
[]
[]
[]
[]
[]
[]
[]
[]
[]
[]
[]
[]
[]
[]
[]
[]
[]
[]
[]
[]
[]
[]
[]
[]
[]
[]
[]
[]
[]
[]
[]
[]
[]
[]
[]
[]
[]
[]
[]
[]
[]
[]
[]
[]
[]
[]
[]
[]
[]
[]
[]
[]
[]
[]
[]
[]
[]
[]
[]
[]
[]
[]
[]
[]
[]
[]
[]
[]
[]
[]
[]
[]
[]
[]
[]
[]
[]
[]
[]
[]
[]
[]
[]
[]
[]
[]
[]
[]
[]
[]
[]
[]
[]
[]
[]
[]
[]
[]
[]
[]
[]
[]
[]
[]
[]
[]
[]
[]
[]
[]
[]
[]
[]
[]
[]
[]
[]
[]
[]
[]
[]
[]
[]
[]
[]
[]
[]
[]
[]
[]
[]
[]
[]
[]
[]
[]
[]
[]
[]
[]
[]
[]
[]
[]
[]
[]
[]
[]
[]
[]
[]
[]
[]
[]
[]
[]
[]
[]
[]
[]
[]
[]
[]
[]
[]
[]
[]
[]
[]
[]
[]
[]
[]
[]
[]
[]
[]
[]
[]
[]
[]
[]
[]
[]
[]
[]
[]
[]
[]
[]
[]
[]
[]
[]
[]
[]
[]
[]
[]
[]
[]
[]
[]
[]
[]
[]
[]
[]
[]
[]
[]
[]
[]
[]
[]
[]
[]
[]
[]
[]
[]
[]
[]
[]
[]
[]
[]
[]
[]
[]
[]
[]
[]
[]
[]
[]
[]
[]
[null,"PHILO"]

{"sheet":"Dico","index":1,"n_rows":1581,"n_cols":6,"rows_kept":1581,"cut":false,"hidden":false,"merged":[]}
["Date","Groupe ","Rub","$$$","Exemple","N°"]
[null,"D-",":à la rigueur",":zur Not",null,1]
[null,"D-",":à partir d'ici   2/dès maintenant/demain   3/dès l'enfance",":von hier aus   2/von nun/morgen an   3/von klein auf",null,{"$f":"F2+1","v":2}]
[null,"D- PROV",":À qui désirez-vous parler ?   2/:Je désire/souhaiterais parler avec M. X",":Wen möchten Sie sprechen ?   2/:Ich möchte (gern) mit dem Herrn X sprechen (rede,Dial)",null,{"$f":"F3+1","v":3}]
[null,"D- PROV REL",":aimez-vs les uns les autres comme je vs ai aimé",":Ihr sollt einander lieben, so wie ich euch geliebt habe",null,4]
[null,"D- PROV",":Ajouter son grain de sel (Ajouter sa moutarde)",":Seinen Senf dazugeben",null,5]
[null,"D- PROV",":Allons voir!",":Mal sehen! <fam>",null,6]
[null,"D- CORR",":Après diff. comparaisons, notre choix s'est porté sur d'autres produits",":Nach verschiedenen Vergleichen, ist unsere Wahl auf andere Produkte gefallen",null,7]
[null,"DIAL",":as-tu?   2/j'ai un(e)",":hesch?   2/y ha(n) D=",null,8]
[null,"D- PROV",":au (dans le) fond, après tout",":im Grunde (genommen)",null,9]
[null,"D- SALU",":Avec amicales salutations",":Mit freundlichen Grüssen <ohne Punkt>",null,10]
[null,"D- PROV",":Avoir un chat dans la gorge (...une grenouille)",":Einen Frosch im Hals haben",null,11]
[null,"D-",":ça commence à me taper sur les nerfs",":das geht mir langsam auf die Nerven",null,12]
["M0906","D- PROV",":Ça je ne le sais pas encore   2/:ça ne lui fait rien...",":Das weiss ich noch nicht   2/:Das macht ihm nichts aus,",null,13]
[null,"D- PROV",":ça m'est égal!",":das ist mir egal!",null,14]
[null,"D-",":Ça vs dérange si...?",":Macht es Ihnen etw aus, wenn...?",null,15]
[null,"D- PROV",":Casser du sucre sur le dos de qn (Traîner qn dans le cacao)",":Jdm durch den Kacao ziehen",null,16]
[null,"D- PROV",":Casser les pieds de qn (Tomber sur le réveil de qn)",":Jdm auf den Wecker fallen",null,17]
[null,"D- PROV",":Ce ne sont pas mes oignons (Ce n'est pas ma bière)",":Das ist nicht mein Bier",null,18]
["M0201","D- PROV",":Cela dépend de vs (C'est votre choix)",":Das hängt von euch/Ihnen ab",null,19]
["M0201","D- PROV",":cela dépend... (Cela peut être l'un ou l'autre)",":es kommt darauf an",null,20]
[null,"DIAL",":c'est",":das isch D=",null,21]
[null,"D-",":C'est à droite/gauche de la bibliothèque",":Es ist rechts/links vom Büchergestell",null,22]
[null,"D-",":C'est carré, en métal",":Es ist viereckig, aus Metall",null,23]
[null,"D- PROV",":C'est la fin des haricots!",":Das ist (doch) die Höhe!",null,24]
[null,"D- PROV",":C'est une goutte d'eau dans la mer (C'est...eau sur la pierre brulante)",":Das ist ein Tropfen auf den heissen Stein",null,25]
[null,"ABK D-",":c'est-à-dire, cela veut dire",":das heisst (d.h.)",null,26]
[null,"D-",":chacun le sait (pourtant)",":das weiss (doch) jeder",null,27]
[null,"D- CORR",":Ci-joint vs recevez",":In der Beilage erhalten Sie",null,28]
[null,"D- PROV",":Comme on reconnait un arbre à ses fruits",":Wie man einen Baum an seiner Frucht erkennt",null,29]
[null,"D- CORR",":Conditions de livraison 2/:Livraison dans les x j. après réception de la commande",":Lieferungsbedingungen  2/:Lieferung innert X Tagen nach Eingang der Bestellung ",null,30]
[null,"D- CORR",":Conditions de paiement   2/:Payable dans les X j avec X% d'escompte",":Zahlungsbedingungen   2/:Zahlbar innert X Tage mit X% Skonto",null,31]
[null,"D- PRINT",":Couleurs; voir 1ère édition",":Farbführung/Andruck: siehe 1. Auflage",null,32]
[null,"D- PROV",":Couper l'herbe sous le pied de qn (Retirer le sol ss les pieds de qn)",":Jdm den Boden unter den Füssen wegziehen",null,33]
[null,"D-",":dans la vie de tt les jours/quotidienne",":im Alltag,m",null,34]
[null,"D- PROV",":de l'un à l'autre",":von einem zu dem andern",null,35]
["C0906","D-",":de mon point de vue",":auf meine Sicht",null,36]
[null,"D-",":de/en plus, il y a encore un (problème)   2/... d'autres (_s)",":und) dazu, es kommt noch ein (Problem)   2/_en/hat noch weitere (_e)",null,37]
[null,"D- CORR",":Demande d'offre - ...   2/:Merci pour v/demande d'offre",":Einziehen einer Offerte - Wir bitten um eine Offerte für ... gemäss...   2/:Besten Dank für Ihre Offertanfrage",null,38]
[null,"D- CORR",":En réponse à v/demande du",":In Beantwortung Ihrer Anfrage vom",null,39]
[null,"D- SALU",":En vous remerciant et restant...",":Wir danken Ihnen und verbleiben <Idiom>",null,40]
[null,"DIAL",":es-tu?   2/non je suis",":bisch?   2/nai i bi D=",null,41]
[null,"D- PROV",":Être au bout du tunnel (Être de l'autre côté de la montagne)",":Über den Berg sein",null,42]
[null,"D- PROV",":Être dans le pétrin (Être assis dans l'encre)",":In der Tinte sitzen",null,43]
[null,"D- PROV",":Faire d'une pierre deux coups (Taper deux mouches avec une tapette)",":Zwei Fliegen mit einer Klappe schlagen",null,44]
[null,"D- OFFRE",":Faites-ns svp savoir dès que possible la sorte de papier que vs avez retenu",":Bitte teilen Sie uns so rasch wie möglich Ihre gewünschte Papiervariante mit",null,45]
["M0906","D- PROV",":Garçon! Avez-vous de la truite? Désirez-vs une omelette avec des champigons? Oui je prends cela, et une eau minérale",":Herr Ober! haben Sie Forelle,f ? Möchten Sie Omelette mit Champignons? Ja, das nehme ich, und ein mineral Wasser",null,46]
[null,"D- PROV",":Il ne sait pas d'où il vient et _ il va. Où vas-tu?",":Er weiss nicht, woher er kommt und _hin er geht. Wo gehst du hin?",null,47]
[null,"D- PROV",":Il s'agit de la chose suivante:   2/ns allons donc/alors faire _:",":Es geht um folgendes:   2/wir werden also _ machen:",null,48]
[null,"D- PROV",":Il sait à quoi s'en tenir; il est fixé",":Er weiss Bescheid",null,49]
[null,"D-",":Ils sont sortis/partis (voyager)",":Sie sind rausgegangen/verreist/weggegangen",null,50]
[null,"D-",":J'aime les légumes, mais je n'_ pas les fruits",":Ich habe die Gemüse gern, aber ich _ Obst nicht gern",null,51]
[null,"D-",":je compte sur vs   2/je vs fais confiance",":ich zähle auf euch/Sie / ich rechne mit Ihnen   2/ich verlasse mich auf ...",null,52]
[null,"D- PROV",":je m'y connais!",":ich kenne mich aus!",null,53]
["M0906","D- PROV",":Je t'/vs assure   2/:Soyez assuré...",":Ich versichere dir/Ihnen   2/:Seien Sie versichert...",null,54]
[null,"DIAL",":je vais   2/ns allons",":ich gang   2/mir geu D=",null,55]
[null,"D- TEL",":Je vs prie de m'excuser, je n'ai pas compris v/nom / le nom de v/entreprise",":Bitte entschuldigen Sie mir, ich habe Ihren Namen/der Name Ihrer Firma nicht verstanden",null,56]
[null,"D- CORR",":Je vs remercie d'avance de v/compréhension",":Im voraus danke ich Ihnen für Ihr Verständnis",null,57]
[null,"D- CORR",":Je vs remercie de votre prompte réponse   2/:Une réponse rapide ns obligerait",":Ich danke für Ihre baldige Antwort   2/:Für rasche Antwort wären wir dankbar",null,58]
[null,"D- CORR",":J'espère / que vs pourrez répondre à mon désir / recevoir une réponse favorable",":Ich hoffe / , dass Sie meinem Wunsch entsprechen können / eine Zusage zu erhalten",null,59]
[null,"D- CORR",":J'espère que vs allez bien",":Ich hoffe, dass es Ihnen gut geht",null,60]
[null,"D- PROV JUR",":La loi du plus fort",":Das Recht des Stärkeren",null,61]
["C1106","D-",":Les fontaines sur la Place fédérale réjouissent jeunes et vieux tellement que...",":Die Fontänen auf den Bundesplatz beglücken Jung und Alt so sehr, dass...",null,62]
[null,"D- SALU",":Madame, Monsieur   2/:Cher Monsieur X",":Sehr geehrte Damen und Herren   2/:Sehr geehrter Herr X",null,63]
[null,"D- PROV",":Me voilà fixé   2/:je sais à quoi cela tient",":Nun weiss ich (wenigstens), woran ich bin   2/:ich weiss, woran das liegt",null,64]
[null,"D- PROV",":Mener qn en bateau (Attacher un ours sur qn)",":Jdm einen Bären aufbinden",null,65]
[null,"D- PROV",":Mener qn par le bout du nez (Enrouler qn autour du pt doigt)",":Jdm um den kleiner Finger wickeln",null,66]
[null,"D- SALU",":Merci pour v/peine et v/service tj rapide",":Für Ihre Bemühungen und den immer prompten Service besten Dank",null,{"$f":"F67+1","v":67}]
[null,"D- PROV",":Mettre à qn des bâtons dans les roues (Jeter un gourdin entre les jambes de qn)",":Jdm einen Knüppel zwischen die Beine werfen",null,68]
[null,"D- PROV",":Mettre la charrue avant les boeufs (Brider le cheval par la queue)",":Das Pferd beim Schwanz aufzäumen",null,69]
[null,"D- PROV",":Mettre les pieds dans la plat (...dans le pot de graisse)",":Ins Fettnäpfchen treten",null,70]
[null,"D- PROV",":Mettre qn en boîte (Mettre qn sur la pelle)",":Jdm auf die Schippe nehmen",null,71]
[null,"D- PROV",":N'avoir ni queue ni tête (N'avoir ni main ni pied)",":Weder Hand noch Fuss haben",null,72]
[null,"D- PROV",":ni plus ni moins",":nicht mehr und nicht weniger",null,73]
[null,"D- CORR",":N'oubliez pas d'indiquer",":Bitte unbedingt angeben",null,74]
[null,"D- CORR!",":Ns accusons réception de v/lettre et vs remercions de v/intérêt",":Wir bestätigen den Empfang Ihres Briefes und danken für Ihr Interesse",null,75]
[null,"D- CORR",":Ns avons examiné v/contreproposition à fond",":Wir haben Ihren Gegenvorschlag gründlich geprüft",null,76]
["M0002","D- CORR",":Ns ne pouvons malheureusement vs confier ce mandat car ns n'avons pas reçu confirmation du client",":Leider können wir Ihnen diesen Auftrag nicht erteilen, da wir vom Kunden eine Absage erhalten haben",null,77]
[null,"D- PROV",":Ns voilà quitte",":Nun/Jetzt sind wir quitt",null,78]
[null,"D- PROV",":On doit être prudent face à... (qn)",":Vor diese(n) ... muss mann sich in acht nehmen",null,79]
[null,"D- PROV",":On fait ce qu'on peut!",":Man tut, was man kann!",null,80]
[null,"D- PROV",":On ne fait rien sans rien",":Von nichts kommt nichts",null,81]
[null,"D- PROV",":Où en étais-je resté?",":Wo war ich stehengeblieben?",null,82]
[null,"D-",":Ouvre/Ferme {-le/la fenêtre/la bouche}!",":Mach {es/das Fenster/den Mund} auf/zu!",null,83]
["C1005","CPT D-",":pas de temps de préchauffage",":keine Vorwärmzeit",null,84]
[null,"D-",":pas décoloré",":keine Bläsen",null,85]
[null,"D- PROV",":Passer de la pommade à qn (Étaler du miel autour de la bouche de qn)",":Jdm Honig um den Mund schmieren",null,86]
[null,"D- PROV",":Passer un savon à qn (Laver la tête à qn)",":Jdm den Kopf waschen",null,87]
[null,"D-",":Peut-on se parquer ici? Non, on ne peut pas se parquer ici",":Darf man hier parken? Nein, hier darf man nicht parken",null,88]
[null,"D- CORR",":Pour vs être agréable / ns acceptons exceptionnellement v/proposition",":Um Ihnen entgegenzukommen / wir nehmen aushahmsweise Ihren Vorschlag an",null,89]
["C1806","D",":Préparez-vous à",":Bereiten Sie sich auf",null,90]
[null,"D- PROV",":Puis-je encore / (continer de) parler?",":Kann ich noch / (weiter) machen / fort fahren?",null,91]
[null,"D-",":Puis-je vs demander qc? Quoi donc?",":Darf ich Sie etw fragen? Was denn?",null,92]
[null,"D- CORR",":Qd seront-ils livrés?",":Wann werden sie geliefert?",null,93]
[null,"D- PROV",":Qu'aurais-je donc pu faire d'autre (, sinon)?",":Was hätte ich (sonst) auch tun sollen?",null,94]
[null,"D- TEL",":Quel est v/nom? Pouvez-vs me rappeler v/nom?",":Wie ist ihr Name? Können Sie mir Ihren Namen wiederholen?",null,95]
["C0906","D-",":Quelle heure est-il (maintenant)?",":Wie spät ist es jetzt?",null,96]
[null,"D-",":Qu'est-ce que/Quel genre de...?",":Was für ein(e,r) (P: welche)...?",null,97]
[null,"D-",":Qu'est-ce qu'il y a sur la table?",":Was {liegt/steht/ist/hat es} auf dem Tisch?",null,98]
[null,"D- CORR",":qui a retenu (toute) n/attention",":der unsere (ganze) Aufmerksamkeit auf s- gezogen hat",null,99]
[null,"D- PROV",":Retourner sa veste (Tourner son fanion selon le vent)",":Sein Fähnchen nach dem Wind drehen",null,100]
[null,"D- PROV",":Rouler sur l'or (Nager dans l'argent)",":Im Geld schwimmen",null,101]
[null,"D-",":sans mais et sans si",":ohne Wenn und Aber",null,102]
[null,"D-",":Santé!",":Zum Wohl! Prost! <interj>",null,103]
[null,"D- PROV",":Se jeter dans la gueule du loup (Se rendre dans l'antre du lion)",":S- in die Höhle des Löwen begeben",null,104]
[null,"D- PROV",":Sonner les cloches à qn (Monter sur le toit de qn)",":Jdm auf Dachs steigen",null,105]
[null,"D- OFFRE",":SVP faites-nous connaître jusqu'au 16.10 après-midi votre meilleure offre pour:",":Bitte teilen Sie uns bis 16.10 nachmittags Ihr bestes Angebot mit:",null,106]
[null,"D- PROV",":Tourner autour du pot (Tourner comme le chat autour de la pâtée brûlante)",":Wie die Katze um den heissen Brei gehen",null,107]
[null,"D- PROV",":Tu dois me raconter cela",":Das musst du mir erzählen",null,108]
["C0906","D- PHOTO",":Un appareil de photo noir-blanc ou couleur?",":Eine schwarz-weiss oder farbe Kamera,f ?",null,109]
[null,"D- PROV",":Un argument parmi bcp qui parle pour ns",":Eines von vielen Argumenten, das für uns spricht",null,110]
[null,"D- PROV",":un bon week-end",":ein schönes Wochenende",null,111]
[null,"D- PROV",":Une fois pour toutes",":Ein für allemal",null,112]
[null,"D- CORR",":Veuillez envoyer rapidement",":Wir bitten um sofortige Lieferung",null,113]
[null,"D- CORR",":Veuillez livrer aux conditions habituelles / franco gare du destinataire",":Bitte liefern Sie zu den üblichen Bedingungen / franko Bahnhof des Empfängers",null,114]
[null,"D- CORR",":Veuillez me soumettre une offre détaillée",":Unterbreiten Sir mir bitte ein ausführliches Angebot",null,115]
[null,"D- CORR",":Veuillez ns faire savoir à quel prix   2/:À quel prix /minimum/ pourriez-vs ns livrer?",":Teilen Sie uns bitte mit, zu welchem Preis   2/:Zu welchem (äussersten /od/äusserst berechneten) Preis könnten Sie uns ... liefern?",null,116]
[null,"D- CORR",":Veuillez svp nous soumettre une offre pour:",":Bitte unterbreiten Sie uns ein Angebot für:",null,117]
[null,"D- LING",":Vient ici!   2/:Va là(-bas)!",":Komm (mal) her!   2/:Geh (mal) hin!",null,118]
[null,"D-",":Voilà une règle, une gomme, une boîte",":Da ist ein Lineal, ein Radiergummi, eine Schachtel",null,119]
["C0906","D-",":Votre prochain rendez-vous. Les _ non décommandés 24h à l'avance seront facturés",":Ihr nächster Termin. _, die nicht 24 Std. vorher abgesagt werden, werden in Rechnung gestellt",null,120]
[null,"D- PROV REL",":vouloir et faire (accomplir, achever)",":Wollen,nt und Vollbringen",null,121]
[null,"D- PROV",":Y a-t-il qn?",":Ist hier jemand?",null,122]
[null,"D- LING @ particule combinée avec Vb","<mouvement de rapprochement p/rapp. à celui qui parle>","her_ <_r dans la langue courante>",null,123]
[null,"D- LING @ particule combinée avec Vb","<mouvement d'éloignement p/rapp. à celui qui parle>","hin_ <_r dans la langue courante>",null,124]
[null,"D- PART","<sens: en avant, de nouveau>","fort-,pfxVb (ETYM: ±vorwärts, weiter)",null,125]
[null,"D- PART","<sens: face à soi; GB: on>","an-,pfxVb",null,126]
[null,"D- MÉTÉO","1précipitations   2/dépression   3/couvert   4/chutes de neige   5/orage","1Niederschläge,fP Regen,m   2/Niedderung,f   3/bedeckt,a   4/Schneefälle,mP   5/Gewitter,nt",null,127]
[null,"D-","A","A",null,128]
[null,"D- SPAC","à (au), sur, par, en, au bord <Où, Pour où, Qd?>","an,pp+AD <räuml., zeitl., kausal>   2/,@",null,129]
[null,"D-","à (l'occasion de) quoi   2/:il était triste de ne pas avoir de but","wobei,@ (obwohl) <fragend a indirekt>   2/:er war traurig, _ er keinen Grund hatte","LETZT. wobei. er war traurig, wobei er keinen Grund hatte.",130]
[null,"DIAL","à <lieu> {Berne/pied}","z {Bern/Fuess} D=zu",null,{"$f":"F131+1","v":131}]
[null,"D-","à bord","an Bord",null,132]
[null,"D-","à cause de,pp+G en raison, pour, par la suite de, eu égards à   2/_ cela","wegen,pp+G   2/_ dem",null,133]
[null,"D-","à cela, de cela   2/:Pensez _","daran,@   2/:Denkt _",null,134]
[null,"D-","à côté, avec, compris, en même temps   2/:j'en suis, je suis de la partie","dabei,@ (mit etw zusammen)   2/:ich bin _","LETZT. dabei. ich bin dabei.",135]
[null,"D- SPAC","à côté,pp","neben,pp+AD",null,136]
[null,"D- TECH","à la machine","maschinell,a",null,137]
[null,"D-","à la main","von Hand",null,138]
[null,"D-","à la vérité, en effet, il est vrai   2/à savoir","zwar,@ (±allerdings)   2/und _ (±nämlich)",null,139]
[null,"D-","à moins que,cjs   2/sauf que,cjs","ausser wenn,cjs   2/ausser, dass,cjs",null,140]
[null,"D-","à partir (Qd?)   2/de (D'où?)   3/(départ à)","ab,@   2/_ <pp s/art>   3/_ <locution>",null,141]
[null,"D-","à partir, depuis, dès <sens spac, temps, qté>","ab,pp <+n+D(A) oft ohne Artikel> (von ... an/aus/auf)",null,142]
[null,"D-","à peine,@ presque pas","kaum,@",null,143]
[null,"D-","à propos","Apropos, bei dieser/passender Gelegenheit",null,144]
[null,"D-","à qui,pr+D   2/avec eux","denen,pr+D   2/mit _",null,145]
[null,"D-","à quoi (bon)?, pq, pour quelle raison   2/à la(au)quel","wozu,pr@+D <interr ind.>   2/<relativ: zu dem,der>",null,146]
[null,"D-","à quoi, sur lequel?   2/auquel","woran,pr@+AD <interr ind.>   2/<relativ: an dem, der>",null,147]
[null,"DIAL","à travers","queer / dure D=",null,148]
[null,"D- NB","à travers, par   2/divisé (/:÷ par)","durch,pp+A   2/_ (geteilt _)",null,149]
[null,"D-","à) savoir, car, c'est-à-dire, c'est que <introduit une explication>","nämlich,@ <fct cjs>",null,150]
[null,"D-","a)baisser, descendre, échouer   2/s'asseoir, prendre place, se poser (oiseau)","niederLassen,t (herunterlassen)   2/s-,r (s- setzen)",null,151]
[null,"D-","à, au, dans <qd on entre dans un bâtiment>   2/dans","in,pp+A (loc) in das:ins   2/im,pp+D (dir) f:in der",null,152]
[null,"D-","à, en,pp  / après,pp   2/après que, lorsque,cjs","nach,pp+D   2/_dem,cjs",null,153]
[null,"DIAL","à,<art défini f> {sa mère}","der {mueter} D=",null,154]
[null,"D-","à,pp chez (Pour où?)   2/pour (Quand?)   3/en outre","zu,pp+D (Wohin?) m:zum nt:zum f:zur   3/_dem",null,155]
[null,"DIAL","à; sur; pour; en; de","uf D=auf",null,156]
[null,"D-","abattre, précipiter (qc)","fällen,t+A (fällt _te h gefällt)",null,157]
[null,"D-","abattu   2/décourager","entmutig,a   2/_en,t+A",null,158]
[null,"D-","abréviation","Abkürzung(en),f (ABK)",null,159]
["C0906","D-","absence,f","Abwesenheit,f",null,160]
[null,"D-","absolu(ment),a&@","unbedingt,a&@",null,161]
["C0201","D-","acarien,m","Milbe,f",null,162]
["C0205","D-","accélérer,t","beschleunigen,t",null,163]
[null,"D- TYPO","accent aigu, circonflexe, grave","Akzent,m akut,a Zirkumflex,m Gravis,m",null,164]
[null,"D- LING","accentuer   2/accent, inflexion","betonen,t   2/_ung,f",null,165]
["M1109 M2010","D-","acceptable   2/in_","akzeptabel,a (annehmbar)   2/in_,a",null,166]
[null,"D-","acceptation, promesse   2/promettre, accepter","Zusage,f   2/_n,t&i",null,167]
["M0906","D-","accepter (risque, respons., personne) / supposer   2:/se sentir _é","anNehmen,t%+A (akzeptieren) (nahm h angenommen)   2/:sich angenommen fühlen",null,168]
[null,"D-","accès   2/_sible","Zugang,m   2/_lich,a",null,169]
[null,"CPT D-","accès séquentiel","segmentierer Zugriff,m",null,170]
[null,"D- SPORT","accomplir (faire)   2/se permettre, avoir les moyens financiers   3/performance, rendement","leisten,t+A   2/s-_,r (etw)   3/_ung,f",null,171]
[null,"D- COMM","accord, convention   2/_ commercial","Abkommen,nt   2/Handels_,nt",null,172]
[null,"DIAL","accordé","abg!schtimmt <idem on saute le 'e'> D=abgestimmt",null,173]
[null,"D-","accorder (voix, instrument)   2/être correct/vrai   3/accord; humeur, état d'âme   4/scrutin, plébicite, référendum; accord(age), harmonisation","stimmen,t   2/,i   3/_ung,f   4/(Volks)Ab_ung,f",null,174]
[null,"D- COMM NB","accroissement, développement, augmentation, mise aux enchères   2/«montée», raidillon, grimpette","Steigerung,f   2/Steig,m",null,175]
[null,"DIAL","acheter   2/_é   3/achats","chauffe   2/gchaut   3/ii_ D=kaufen   2/gekauft   3/Einkaüfe,fP",null,176]
[null,"D- COMM NB","acompte (d'un paiement)   2/mensualité   3/:Par _","Rate,f (Abschlags\\zahlung, An-, Voraus-)   2/Monats_   3/:Auf _n",null,177]
[null,"D-","actif,a   2/activité, fonctionnement","tätig,a   2/Tätigkeit,f",null,178]
[null,"D-","action, acte   2/faits, réalité   3/:c'est un _ que/le _ est que   4/:les _ parlent d'eux-mêmes","Tat(en),f   2/_sachen,fP   3/:T_sache ist, dass   4/:die _sachen sprechen deutlich genug",null,179]
[null,"D-","action, enjeu, mise (en jeu) / chassis, empiècement   2/disponible(-ilité), prêt à l'action","Einsatz,m   2/_bereit,a(-schaft,f)",null,180]
[null,"D-","actuel","aktuell,a",null,181]
[null,"DIAL","adieu","adie D=Auf Wiedersehen",null,182]
[null,"D-","administrer, gérer (gouverner)   2/_ateur, _ant, intendant   3/_ation, _ance, régie, gestion","verwalten,t   2/_r,m   3/_ung,f",null,183]
[null,"D- REL","admirer   2/_ation   3/_ateur   4/_able","bewundern,t+A   2/_ung,f   3/_er,m   4/_swert,a",null,184]
[null,"D- REL","adorer   2/_ateur   3/_ation","anBeten,t   2/_er,m   3/_ung,f",null,185]
[null,"DIAL","affaire   2/une bonne _","gschäft,nt   2/es guets _ D=Geschäft,nt",null,186]
[null,"D- COMM","affaire, magasin   2/d'_s, commercial   3/pour _","Geschäft,nt   2/_lich,a   3/_lich,@",null,187]
["C0201","D-","affaire,f cas,m","Angelegenheit,f",null,188]
[null,"D-","affecter à   2/affectation","zuweisen,t   2/_ung,f",null,189]
[null,"D-","affermir, consolider, renforcer   2/attacher, fixer, stabiliser   3/consistance, fermeté, solidité","festigen,t+A/r (fest machen, fest werden lassen)   2/be_   3/Festigkeit,f",null,190]
[null,"D-","affiche","Plakat,nt (Anschlagzettel,m Stellwand,f)",null,191]
["C0011","D-","affiner,t","verfeinern","LETZT. Möchten Sie Ihre Suche verfeinern?",192]
[null,"ANIM D- REL","agneau   2/viande d'_","Lamm(\"er),nt   2/_fleisch,nt",null,193]
[null,"D- RELIU","agrapheuse (_-piqueuse)","Sammelhefter,m",null,194]
[null,"DIAL","agréable   2/confortable","aagnääm   2/gmüetli(ch) D=",null,{"$f":"F195+1","v":195}]
[null,"D-","agréable, confortable, tranquille","gemütlich,a (bequem)",null,196]
[null,"ANIM D- PROF VÉGÉ","agriculteur   2/_ure","Landwirt,m   2/_schaft,f",null,197]
["C0506","D-","ah!","aha <oder> ah",null,198]
[null,"D- COMM","aide-mémoire","Aktennotiz,f (=Aktenvermerk,m)",null,199]
[null,"D-","aide-mémoire   2/marque, signe distinctif   3/sensible, visible, évident","Merk\\blatt,nt   2/_mal,nt   3/_lich,a",null,200]
[null,"ALIM D- PROV","aigre, acide, <fig:> amer, dur, pénible   2/:Rendre la vie dure à qn","sauer,a   2/:Jdm das Leben _ machen",null,201]
[null,"D-","aimable, gentil <formel>   2/:Voudriez-vs avoir l'amabilité de ...?   3/amabilité, _lesse","liebenswürdig,a <plus formel que 'lieb'>   2/:Wären Sie so _ und ...?   3/_keit,f",null,202]
[null,"D- Vb modalité","aimer bien   2/pouvoir, désirer (demande polie)   3/{Comment peut-il bien...?}","mögen (mag)   2/möchte (h gemocht/mögen, subj.I möge, II möchte)   3/{Wie mag er/sie ...?}",null,203]
[null,"D-","air, souffle, atmosphère   2/changement d'_   3/prendre l'_   4/aérer   5/aération","Luft,f   2/_wechsel,m   3/_ schöpfen   4/_\"en,t&i   5/_\"ung,f",null,204]
[null,"D-","ajout, adjonction, addition, note, annexe   2/add_nel, supplémentaire, compl-","Zusatz,m   2/_lich,a",null,205]
[null,"D- COMM","ajouter   2/en vouloir, garder rancune (à qn de qc)   3/supplément, additif, avenant   4/rancunier","nachTragen,t%+A(D) (_ägt _ug i _ge_) (hinzufügen)   2/_ (jdm etw)   3/Nachtrag,m   4/_\"d,a",null,206]
[null,"D-","ajouter (à), joindre","hinzuFügen,t (zu) (bei_, beiLegen)",null,207]
["C0301","D-","ajouter,t (à)","hinzuSetzen,t (zu)",null,208]
[null,"CPT D- TYPO","aligné,a à gauche","linksbündig,a",null,209]
[null,"D-","aligner   2/s'_ / (sur)",":in eine Reihe stellen, justieren, ausrichten   2/s- aufStellen / <POLITIQUE:> s- ausRichten (nach)",null,210]
[null,"D- LIVRE","alinéa","Absatz,m",null,211]
[null,"DIAL","allé","choo D=gekommen,Pp",null,212]
[null,"D-","alléger   2/_ (dette, impôt)   3/_ (souffrance)",":leichter machen   2/senken,t   3/lindern,t",null,213]
[null,"DIAL","aller","go / i gang   2/du gohsch  3er goht   4/mir geehn   5/dir geehnd   6/si/Si geehn D=gehen",null,214]
[null,"DIAL","aller   2/allé","gaa   2/ggange D=",null,215]
[null,"D-","aller (bien), être à la mesure/taille, convenir (avec)","passen,i (zu) (±vereinbaren)",null,216]
[null,"D-","aller (véhicule)","fahren (fährt fuhr i ge_)",null,217]
[null,"D- PROV","aller et retour","hin und zurück",null,218]
[null,"D-","allons, eh bien, par exemple!","na <interj>",null,219]
[null,"D-","allumer, mettre en marche / s'_","einSchalten,t+A / s-,r",null,220]
[null,"D-","allusion   2/faire _ (à qc)","Anspielung,f Andeutung,f   2/anSpielen,t+A (auf etw)",null,221]
["C0906","D- SPORT","alpinisme,m   2/alpiniste,m&f   3/guide,m&f   4/chaussures de montagne","Berg|steigen,nt   2/_steiger,m   3/_führer,m   4/_schuhe,mP",null,222]
[null,"D- REL","âme   2/mental, psychologique, psychique   3/relation d'aide   4/directeur de conscience","Seele,f   2/_lisch,a   3/_sorge,f   4/_sorger,m",null,223]
[null,"D-","améliorer, réformer   2/_ation","verbessern,t   2/_ung,f",null,224]
["C0906","D-","amoindrir, diminuer   2/_ssement,m diminution   3/minorité,f","minder|n,t   2/_ung,f   3/_heit,f",null,225]
[null,"D-","analogue (à) semblable","ähnlich,a (wie) (analog, gleichartig)",null,226]
[null,"D-","ancien,a   2/autrefois,@ en ce temps là","ehemalig,a   2/_als,@ (damals, früher)",null,227]
["M0811","D-","angle de vue","Blickwinkel,m",null,228]
[null,"DIAL","animation (mouvement)","betriib,m D=",null,229]
[null,"D-","annuler, éteindre (lumière, feu), effacer","löschen,t+A (=aus_)",null,230]
[null,"D-","ap)trans)porter, a)mener, conduire","bringen,t (_acht h gebracht)",null,231]
["M0010","CPT D- TECH","appareil, outil, instrument, ustencil, dispositif   2/unité d'entrée / de sortie","Gerät,nt   2/Eingabe_ / Ausgabe_",null,232]
[null,"D-","apparent(-ment), virtuel, en _ce","scheinbar,a&@",null,233]
[null,"D-","apparenté,a <fig:> analogue   2/p_t,m   3/_té,f","verwandt,a   2/_e(r),f   3/_schaft,f",null,234]
[null,"D-","appel, cri   2/appeler, crier","Ruf,m   2/_en,t% (rief h ge_en)",null,235]
[null,"D- LIVRE","appendice, supplément, annexe","Anhang,m",null,236]
["M0010","CPT D-","application   2/système d'exploitation (OS)","Anwendungsprogramm,nt   2/Betriebsystem,nt","LETZT. Ein Betriebssystem ist ein ständig im Speicher befindliches Hauptsteuerprogramm. Es setzt die Befehle des Anwenders um, wie z.B. Anzeigen, Drucken, Kopieren von Dateien, Auflisten aller Dateien eines Verzeichnisses oder das Ausführen eines bestimmten Programms.",237]
[null,"D- W9x","Appliquer","Übernehmen",null,238]
[null,"D-","apprécier, évaluer, estimer {juste}   2/-ation","schätzen,t (ein_) {richtig}   2/_ung,f (Bewertung,f Beurteilung,f)",null,239]
[null,"D- COMM","approbation, ratification","Genehmigung,f",null,240]
[null,"D-","approche, r_ment, convergence, approximation   2/approximatif","Annäherung,f   2/_end,a (circa, rund) <'an'=rapprochement>",null,241]
[null,"D-","appuyer, assister, soutenir (un vice), adhérer   2/soutien, assistance, adhérer","unterstützen,t (h un_zt)   2/_ung,f",null,242]
[null,"D-","appuyer, encourager, inciter, faire progresser   2/promouvoir   3/appui, encouragement, favorisation","fördern,t+A   2/be_  3_ung,f ETYM: \"Weiter nach vorn bringen\"",null,243]
[null,"D-","arracher, extraire, enlever (vêtements), dépouiller","ausZiehen,t%+A(D) (zog h _gezogen) (etw)",null,244]
[null,"D-","arrière-pensée   2/sournoiserie","Hinter\\gedanke,m   2/_hältigkeit,f",null,245]
[null,"D- SPAC","arrière-plan, fond, dessous   2/à l'_ / au premier plan   3/reléguer (qc) à l'_","Hintergrund,m   2/im _ / im Vordergrund   3/(etw) verdrängen (in den _ drängen)",null,246]
[null,"DIAL","arriver   2/_é","aachoo   2/_ D=ankommen",null,247]
[null,"D-","arriver (à qn), se passer/ produire, s'accomplir","geschehen,i%+D (_schah i _) (stattFinden, zuStossen)",null,248]
[null,"D- MIL","articulation / division (allg) classification, structure","Gliederung,f (Einteilung)",null,249]
[null,"DIAL","aspect   2/avoir l'_ de   3/elle a bonne mine","uusgsee   2/_   3/si gseet guet uus D=2ausSehen",null,250]
[null,"D- RELIU","assemblé(s),a","zusammengetragen,a",null,251]
[null,"D-","Assemblée Générale","Generalversammlung,f",null,252]
[null,"D-","asseoir, placer / s'   2/être assis/placé","setzen,t / s-   2/sitzen,i (sass h gesessen)",null,253]
["C0906","D- FIT","assurances maladie,fP   2/primes,fP","Krankenversicherungen,fP   2/Prämien,fP",null,254]
[null,"D- TECH","atelier   2/outil(lage), instrument","Werk\\statt,f   2/_zeug,nt",null,255]
[null,"D-","attaquer, contester","anFechten,t% (ficht, focht, h angefochten)",null,256]
[null,"D-","attentif, prévenant   2/_ion","aufmerksam,a   2/_keit,f",null,257]
[null,"D-","attention (!), estime   2/respecter (qn) / faire attention (à qc/qn)   3/faire _, respecter","Achtung,f (!)   2/_en,t (jdn) / _en,i (auf etw/jdn)   3/be_,t (achtgeben, aufpassen)",null,258]
[null,"D-","au cas où","falls,@",null,{"$f":"F259+1","v":259}]
["C0011","D-","au coin","Extérieur d'un coin: an der Ecke - Intérieur d'un coin: in der Ecke - \"an\" désigne \"alles was parallel\"",null,260]
[null,"D-","au lieu de (+I),cjs","anstatt ... dass/zu (+I),cjs",null,261]
[null,"D-","au lieu, à la place,pp   2/_ de cela   3/_ que   4/_ de <+I>","statt,pp+G   2/_ dessen   3/_ dass   4/_ zu <+I>",null,262]
[null,"D- SALU","au mieux","bestens,@",null,263]
[null,"D-","au moins,@   2/moindre,a","wenig\\stens,@   2/_ste(r,s),a",null,264]
[null,"D-","au moyen de,pp+G à l'aide de, en s'appuyant sur","anhand,pp+G (=an Hand)",null,265]
[null,"D-","au reste, au demeurant, à propos, d'ailleurs","übrigens,@",null,266]
[null,"DIAL","auch","au D=auch",null,267]
[null,"D-","aujourd'hui   2/actuel, d'_   3/de nos jours","heute,@ (=hüt,Dial)   2/_igen,a   3/heutzutag,@",null,268]
[null,"D-","aussi vite que possible <@>","raschmöglischt,@",null,269]
[null,"D-","autour de/à, en   2/pour, sur, de   3/fini, passé, révolu","um,pp+A   2/<div. Ausdrücke>   3/,@ (vorbei)   4/ums = um das",null,270]
[null,"D-","autour, à l'entour   2/_ de <raüml, zeitl> vers, environ {vers 2 heures}","herum,@   2/um _ (gegen) {um 2 Uhr _}",null,271]
[null,"D-","autre, différent","andere(r,s),pr&a",null,272]
[null,"DIAL","aux,<art définiP> {hommes} <aux canard>","de {manne} <mais deN änte> D=",null,273]
[null,"D-","avant tout, en premier lieu, (tout) d'abord","zunächst,@ (vor allem, zuerst)",null,274]
[null,"D-","avant, plus tôt, antérieurement (à) / plutôt, de préférence   2/_ que/de   3/:le _ sera le mieux","eher,@ (als) (früher, lieber)   2/ehe,cjc/cjs   3/:je _, je lieber",null,275]
["M0906","D-","avant,cjs   2/.........","bevor,cjs   2/nach _ (denke nach bevor du sprichst)",null,276]
[null,"D-","avarice   2/être avare   3/avare","Geiz,m   2/_en,i (h) (mit)   3/_ig,a",null,277]
[null,"D-","avec,pp   2/_ lequel","mit,pp+D   2/_ denen",null,278]
[null,"D-","avec/de/à cela, en, y   2/afin que, pour que   3/:C'est tout dire","damit,pr@+D   2/,cjs   3/:_ ist alles gesagt",null,279]
[null,"D-","avec/pour cela ; y ; en outre, de/en plus   2/:N'y pouvoir rien faire   3/:Que dites-vs _?","dazu,@ (zu diesem Zweck ; <örtlich> ; ausserdem)   2/:Nichts _  tun können   3/:Was sagen Sie _?",null,280]
[null,"D- JUR","avertir, prévenir, mettre en garde (contre)   2/_ssement","warnen,t+D (vor)   2/_ung,f",null,281]
[null,"D- FIT","aveugle,a   2/,m&f   3/échantillon en blanc   4/maquette d'un livre dont qq pages sont dessinées","blind,a   2/Blinder,m Blinde,f   3/_muster,m   4/_band,m Dummy",null,282]
[null,"D-","aveugler, éblouir   2/crever les yeux, _","verblenden,t (blind machen)   2/blenden,t",null,283]
[null,"D-","avid\\ité,f   2/_e,a","Gier,f   2/_ig,a",null,284]
["C2008","AÉRO D- MIL","avion de combat","Kampfjet,m",null,285]
[null,"D- JUR","avocat   2/juge (de paix)   3/procureur de la R.","Rechts)anwalt(in),m(f)   2/Friendens)Richter,m   3/Staatsanwalt,m",null,286]
[null,"DIAL","AVOIR / j'ai   2/tu as   3/il/elle/on a   4/ns avons   5/vs avez   6/ils ont   7/j'ai eu","HA / i cha   2/du hesch   3/er/si/es het   4/mir hänn(d)   5/dir händ   6/Sie/sie hänn(d)   7/y ha gha",null,287]
[null,"D-","avoir <fam>, recevoir, attraper, obtenir","kriegen,t <fam> (bekommen, erhalten)",null,288]
[null,"D-","avoir besoin (de qc), nécessiter   2/besoin, exigence, nécessaire (de)","bedürfen,i%+G (!) (_arf _urft h bedurft)   2/_nis(se),nt (nach)",null,289]
[null,"D-","avoir besoin (de qc/qn)","benötigen,t (etw/jdn)  ETYM: Not (brauchen)",null,290]
[null,"D- REL","avoir compassion (de qn)   2/pitié, miséricorde   3/digne de _","erbarmen,r+G (s- jds) (über jdm/mit)   2/,nt   3/_swert,a/_swürdig,a",null,291]
[null,"D-","avoir l'air, sembler; être efficace, agir","wirken,i (scheinen)",null,292]
[null,"D-","avoir lieu","stattFinden (h),i%",null,293]
[null,"D- Vb auxl","avoir, posséder, tenir   2/ayant   3/_ eu   4/_, crédit","haben,t (hatte h gehabt subjII hätte)   2/habend   3/gehabt haben   4/_,nt",null,294]
[null,"D-","B","B",null,295]
[null,"CPT D-","backup,m   2/\"back uper\",t   3/procédure de _   4/pilote, driver","Sicherstellung,f   2/sicherstellen,t   3/_slauf,m   4/Treiber,m",null,296]
[null,"D-","bagarre","Schlägerei,f",null,297]
["C0301","D-","baisser,t incliner","senken,t",null,298]
[null,"D-","balancer, se _, brandir, oscillier   2/oscilliation","schwingen,t% (schwang h g_ungen)   2/_ung,f",null,299]
[null,"D-","bande","Streif(en),m",null,300]
[null,"D- PRINT","bande étroite   2/_ large","schmal Band,nt (SB)   2/breit _ (BB)",null,301]
[null,"D- LIVRE","banderole","Banderole,f",null,302]
[null,"D- SPAC","bas   2/inférieur, vil   3/en _   4/à _!","nieder,a (niedrig)   2/,a   3/,@   4/_ mit! <interj>",null,303]
[null,"D-","bataille,f","Schlacht,f",null,304]
["C0507","AUDIO D-","batterie,f   2/batteur","Schlagzeug,nt   2/_er,m",null,305]
[null,"D-","bavarder   2/_age","plaudern,t   2/Ge_der,nt",null,306]
[null,"D-","beau   2/_té","schön,a (hübsch)   2/_heit,f",null,307]
[null,"D-","besoin (de)   2/avoir _ (de qc)   3/:Il suffit d'une parole","Bedarf,m (an)   2/bedürfen <selten ->benötigen> (_arf _urfte h _urft) / _  haben (an etw)   3/:Es _ nur eines Wortes",null,308]
[null,"D-","besoin, dénuement, détresse, adversité","Not(\"e),f",null,309]
[null,"D-","bien que,cjs quoi que, encore que","obwohl,cjs",null,310]
[null,"D- REL","bienheureux, ravi, comblé   2/béatitude, félicité   3/feu","glück)selig,a   2/S_keit,f   3/selig (verstorben)",null,311]
[null,"D-","bijou, parure   2/parer, orner (de)","Schmuck(e),m   2/\"_en,t (mit) (verschönern)",null,312]
[null,"D-","bizarre, étrange, singulier, curieux   2/_rie, _té, _arité, _osité","seltsam,a (sonderbar)   2/_keit,f",null,313]
[null,"D- PRINT","blanchet","Gummituch,nt",null,314]
[null,"D- FIT","blesser, endommager   2/_é   3/_é   4/_ure, lésion","verletzen,t (beschädigen)   2/_e(r),m   3/_t,a   4/_ung,f",null,315]
[null,"CPT D-","blocs de texte","Textbausteine,mP",null,316]
[null,"D-","boîte","Schachtel(n),f",null,317]
[null,"CPT D-","boîte (de dialogue)   2/onglet   3/icône   4/souris","Dialogbox(en),f Kasten,m   2/Einschnitt,m   3/Icon(s),Q-   4/Maus,nt",null,318]
["C0906","D-","bon marché,a / équitable, juste   2/réduire le prix de qc","billig,a (gerecht)   2/etw ver_en",null,319]
[null,"D- TYPO PRINT RELIU","bord débordant","Randabfallend,a",null,320]
[null,"D-","bouche-trou","Lückenbüsser,m",null,321]
[null,"D-","boucle   2/_r / attirer, séduire","Locke(n),f   2/_n,t",null,322]
[null,"D-","bouffon, fou, dément, dérangé   2/folie <état>   3/déplacer, déranger","verrück\\t,a (wahnsinnig)   2/_heit,f (Irresein,nt)   3/_en,t (verschieben)",null,{"$f":"F323+1","v":323}]
[null,"D- FIT","bouger, mouvoir, agiter   2/mouvement, _ation   3/immobile","bewegen,t   2/_ung,f   3/_ungslos,a",null,324]
[null,"D-","bouger, remuer / se _","regen,t / s- (->aufR_, er_)",null,325]
[null,"D- TYPO","bouleversement, révolution / mise en page","Umbruch,m",null,326]
[null,"D- VÉGÉ","branche,f","Ast,m (Äste,P)",null,327]
[null,"D-","briser   2/casser, rompre   3/se _   4/se _ qc","brechen,t%+A (_ach h gebrochen)   2/ab_   3/zer_ etw   4/s- etw _,r",null,328]
[null,"D- RELIU","brochage à fil métallique","Drahtheftung,f",null,329]
["M0906","D- MÉTÉO","brouillard,m   2/nébuleux,a","Nebel,m   2/_ig,a",null,330]
[null,"D-","bruit   2/faire du _   3/protection contre le _","Lärm(e),f   2/_en,i   3/_schutz,m",null,331]
[null,"D-","bulletin de versement","Einzahlungsschein,m (ES)",null,332]
[null,"D- W9x","Bureau","Desktop",null,333]
[null,"D- SPORT COMM","but, cible, objectif, cage de _, ligne d'arrivée   2/sans _   3/prix optimal","Ziel,nt   2/_los,a,@   3/_preis,m",null,334]
[null,"D-","but, objet, intention   2/dans ce _   3/À quel _?   4/intentionnel","Zweck(e(s,e),m   2/zu diesem _   3/Welchem _? (±Grund)   4/_mässig,a",null,335]
[null,"D-","C","C",null,336]
[null,"D- SPAC","çà et là, de long en large, de côté et d'autre (+ div. Vb)","hin und her (gehen/drehen/bewegen, usw)",null,337]
[null,"D-","cacher, dissimuler (dans)   2/_é, secret","verstecken,t (in)   2/_t,a",null,338]
[null,"D- TYPO","cadre","Rahmen,m",null,339]
[null,"D-","calculation   2/pré_","Kalkulation,f   2/Vor_",null,340]
[null,"D-","calme, silencieux / tranquille   2/calme,m","still,a (±ruhig)   2/Still,f",null,341]
["C0301","D- PHOTO","caméra réflex","ESR (einäugigen Spiegelreflexkamera)",null,342]
[null,"D- TYPO PROF","caméra,f (appareil de photo)","Kamera,f (Fotoapparat,m)  (Fach_ Grossformat_)",null,343]
[null,"D-","camp / entrepôt   2/stock   3/_er / (être) stocké","Lager,(-),nt (_haus)   2/_bestand,m   3/_n,i&t",null,344]
[null,"D- COMM CORR","candidature   2/lettre de _   3/candidat","Bewerbung,f   2/_schreiben,nt   3/B_er,m",null,345]
[null,"D-","capable   2/capacité","fähig,a   2/_keit,f",null,346]
[null,"D-","car   2/donc","denn,cjc   2/,@",null,347]
[null,"D-","caractéristique,a","eigenartig,a",null,348]
[null,"D- NB","carré   2/_   3/rectangle (-ulaire)   4/cube   5/rond,a&m","Quadrat,nt   2/_isch,a viereckig,a   3/Rechteck,nt (-ig,a)   4/Kubus,m   5/rund,a&m",null,349]
[null,"D-","carrément,@ franchement / tout droit, directement, parfaitement","geradezu,@",null,350]
["C0507","D-","carrosse,m","Kutsche,f",null,351]
[null,"D- PRINT","carte   2/_(s) postale(s)   3/_ de visite","Karte,f Karton   2/Post_ Ansicht_   3/Visiten_",null,352]
[null,"D- RELIU","carton qui s'emboîte","Stulpschachtel,f",null,353]
[null,"D-","cas {en aucun _}   2/:en tout _   3/:au _ où   4/chute <phys, fig>","Fall(\"e),m {auf keinen _}   2/:auf jeden _, auf alle \"_e   3/:im _\"e, daß   ",null,354]
[null,"D-","causalité","Kausalität,f",null,355]
[null,"D-","cause,f <actif>","Ursache,f (÷Sachlage,f: passiv)",null,356]
[null,"D-","ce(lle)-là, ceux(celles)-là   2/ce(t(te)s), ces <établit distinction/alternative>","jene(r,s),pr démonstr (±diese)   2/,a",null,357]
[null,"D- pr démonstr","ce(t(te), ces, celui(celle(ceux-ci <renvoie à une personne ou chose définie>   2/Tel est...","diese(r,s)   2/dies(es) ist... (± jene)",null,358]
[null,"D-","ceci","dies,pr (=diese)",null,359]
["C1511","D- TYPO","cédille,m","Cedille,f ç",null,360]
[null,"D-","ceinture","Gürtel,m",null,361]
[null,"D- @AD PART LING","CELÀ, à ... <substitut d'expressions ppositionnelles lorsque n désigne une chose>","da(r)_ <pfx de pr@+AD>",null,362]
["C0507","D-","célèbre,a","berühmt,a   2/Seine Romane waren welt_",null,363]
[null,"D-","célébrité,f","Ruhm,m",null,364]
[null,"D-","célibataire   2/uniquement, pur-, simpl-","ledig,a   2/_lich,@",null,365]
["C0906","D- BIO CPT","cellule,f / cabine,f (tél.)","Zelle,f (Telephon_,f)",null,366]
[null,"D- REL","cellule/groupe de prière/quartier","Hauskreis,m",null,367]
[null,"D-","celui qui..., celle, ceux qui... (pr démonstr.proposition relative)","der(das(die-jenige(r,s,n), der(as,ie)...",null,368]
[null,"D- TYPO","centrer   2/centre","zentrieren; auf Mitte setzen   2/Mitte,f Mittelpunkt,m",null,369]
[null,"D-","cependant <objection>, pourtant, et _ si","doch,@   2/je_,@ (aber)",null,370]
[null,"D-","cependant, pourtant,cjs","dennoch,cjs",null,371]
[null,"D-","certain, sûr, fixe / in_   2/sûrement, _ement   3/certitude   4/:Sans aucun doute! infailliblement","gewiss,a (festgelegt) / un_   2/,@   3/_heit,f   4/:Ganz _!",null,372]
["C0507","D-","certains,a","bestimmt,a",null,373]
["C2110","ANAT D-","cerveau","Gehirn,nt",null,374]
[null,"D- JUR","cessation, levée, révocation   2/abrogatoire","Aufheb\\ung,f   2/_end,a",null,375]
[null,"D-","cesser, s'arrêter, finir (de f. qc) {finissez-en!}","aufHören,i (etw zu t.) {_ Sie auf damit!}",null,376]
[null,"D-","c'est pq, pour cette raison","deshalb,@",null,377]
[null,"D-","c'est pq, voilà _, pour cela/cette raison   2/autour (de cela), tout autour","darum,pr@+A (drum) <kausal>   2/_ herum <örtl.>",null,378]
[null,"D-","c'est pq,cjs à cause de cela","deswegen,cjs",null,379]
[null,"CPT D-","champ, case   2/terrain (de sport)","Feld(er),nt",null,380]
[null,"D- SPORT","championnat   2/match de _","Meisterschaft,f   2/_kampf,m",null,381]
[null,"D-","changeant, variable","veränderlich,a (wechselhaft, METEO)",null,382]
[null,"D-","changement   2/modification","Wechsel,m   2/_ /  Ver(Änderung,f",null,383]
[null,"D-","changement, transformation   2/changer de   3/changer   4/déambuler   5/:Subir des _s   6/:Apporter des _s","Wandel,m (Änderung)   2/_n,t   3/s-_n,r   4/_n,i (gehen)   5/:Ein _ erleiden   6/:_ schaffen","LETZT. wandeln. Dabei wandelt er die Form, die das Gerät nutzt.",384]
["C0301","D-","changer de place, déplacer, muter","versetzen,t",null,385]
[null,"D-","changer, modifier","ändern,t+A (wechseln,t+A)",null,386]
[null,"D-","chaque","jede(r,s),a",null,{"$f":"F387+1","v":387}]
[null,"D- TECH","charge (fardeau)   2/<électr>","Last,f   2/Ladung,f",null,388]
[null,"D- FIT JUR NB","charger (de), soumettre à un effort / se   2/charge, _s, débit, effort, poids","belasten,t (mit) (Konto, Organ. Körper) (beschuldigen) / s-   2/_ung,f",null,389]
["M1802","CPT D-","charger, approvisionner   2/_, accabler (de)   3/_, expédier, embarquer   4/sur_   5/_ement, cargaison","laden,t% (lädt lud h ge_)   2/be_ (mit)   3/ver_,t   4/über_,t   5/L_ung,f",null,390]
["M1802","ANIM D-","chasse\\r   2/_   3/_eur,m","jagen,t&i   2/Jagd,f   3/_\"er,m",null,391]
[null,"D-","chaud {j'ai _}, acharné, passionné, ardent","heiss,a {mir ist _}",null,392]
[null,"D-","chef, tête   2/capital, principal, dominant, majeur   3/heure de pointe","Haupt(\"er),nt   2/_-,a   3/_geschäftszeit,f",null,393]
["M0906","D- PROF","chemin de fer   2/train   3/voie   4/monter/descendre   5/tram   6/gare principale   7/métro,m","Bahn,f   2/Zug,m   3/Gleis,nt   4/ein/aufSteigen   5/Strassen_ (Tram,nt)   6/Hauptbahnhof,m   7/U-_,f",null,394]
[null,"D- COMM NB","cher   2/trop _","teuer,a (kostbar, kostspielig)   2/zu _",null,395]
[null,"DIAL","chez","bym D=beim",null,396]
[null,"D- COMM NB","chiffre, nombre   2/payer   3/payement, versement   4/rembourser","Zahl,f (Ziffer, Nummer)   2/_en,i   3/_ung,f   4/zurück_en,t",null,397]
[null,"D-","choisir, sélectionner   2/:choix   3/j'ai choisi","ausWählen,t   2/Auswahl,f   3/:ich habe ausgewählt",null,398]
[null,"D- PROF","chômeur   2/_age","Arbeitslose,m   2/_igkeit,f",null,399]
["C0209","D-","choper (argo BD), attraper","vorknöpfen",null,400]
[null,"D-","choquant, scandaleux","anstössig,a",null,401]
[null,"D-","chrétien {christianisme}   2/juif   3/musulman   4/étranger","Christ(en),m {_entum,nt}   2/Jude(n)   3/Moslem(s)   4/Fremde(r), Ausländer(in)",null,402]
[null,"CPT D-","chute   2/tomber (d'en haut), s'écraser, faire une _, décrocher","Absturz,m   2/abstürzen,i",null,403]
[null,"D-","circonstance(s)","Umstand(\"e),m",null,404]
[null,"D- LIVRE","claquer, battre   2/<fam, fig> marcher à souhait   3/rabat","klappen,i (schlagen)   2/(in Ordnung gehen)   3/Klappe,f",null,405]
[null,"D- PRINT","classe matière (CM)","Stoffklasse,f (SK)",null,406]
[null,"D-","classer, archiver, déposer   2/_ment","abLegen,t   2/,nt",null,407]
[null,"D- COMM","classeur   2/répertoire (alph.)","Akten)Brief)Ordner,m   2/Register,nt",null,408]
["C0209","D-","clôture,f","Umzäunung,f",null,409]
[null,"D-","coffre-fort","Tresor,m",null,410]
[null,"D-","cohésion / enchaînement / ordre, contexte   2/être lié/rattaché (à)   3/:En rapport/liaison avec   4/:Dans cet ordre d'idées","Zusammenhang,m (Verbindung, Beziehung, Folge)   2/_Hängen,i% (mit)   3/:Im _ mit   4/:In diesem _",null,411]
[null,"D- TYPO","coins, marques de repérages d'alignement, hirondelles","Eckzeichen,fP",null,412]
[null,"D-","colère, irritation   2/en _, emporté","Zorn,m (Wut)   2/_ig,a (wütend)",null,413]
[null,"D- TECH","colle","Klebstoff,m Klebe,fDial",null,414]
[null,"D- PRINT","combien de cahier(s) / nb de passage(s) dans la machine","Durchgang gleiche Form",null,415]
[null,"D-","combler (trou, temps), remplir (questionn.)","ausFüllen,t+A",null,416]
[null,"D- COMM","commande, ordre, instruction   2/confirmation de _   3/flle de travail   4/pochette de tr.","Auftrag(\"e),m   2/_bestätigung,f   3/_blatt,nt   4/_tasche,f",null,417]
[null,"D- COMM","commander   2/annuler, résilier   3/commande","bestellen,t+A   2/ab_ (annulieren)   3/_ung,f",null,418]
[null,"D-","comme (égalité)   2/Et comment!   3/Comment?","wie,cjs   2/Und _!   3/_ bitte? <interj>",null,419]
[null,"D-","comme si,cjs   2/_ comme ça","als ob,cjs   2/so lala <fam>",null,420]
[null,"D-","comment (cela), pq?   2/_ donc!","wieso,@   2/_ denn!",null,421]
[null,"D-","commerce, négoce   2/agir, procéder, traiter, faire du _   3/traiter (de qc)   4/s'agir (de qc)","Handel,m   2/_n,i   3/(von etw) _   4/s- (um etw) _,r impers",null,422]
[null,"D- COMM","commercial(lement),a&@   2/employé de _","commerziell,a&@   2/kaufmännische(r) Angestellte(r)",null,423]
[null,"D-","commun, collectif   2/en _, ensemble","gemeinsam,a   2/,@",null,424]
[null,"D- REL","commune, paroisse, communauté","Gemeinde,f",null,425]
[null,"D-","communiquer, faire part (nouvelle), partager (qc à qn)","mitTeilen (jdm etw),t+A",null,426]
["C0906","D-","compact,a","kompakt,a",null,427]
[null,"D-","compagnie, société","Gesellschaft,f",null,428]
[null,"D-","comparaison, parallèle {en _ de}   2/_er (à)","Vergleich,m {im _ zu}   2/_en,t% (mit) (_ich h _ichen)",null,429]
[null,"D-","compatible, conciliable (avec)   2/_ilité   3/convenir, accorder, rendre _   4/convention, accord   5/à convenance après accord","vereinbar,a (mit)   2/_keit,f   3/_en,t (±passen)   4/_ung,f   5/nach _ung",null,430]
[null,"D-","complet, entier, total   2/_ement, tout à fait","völlig,a&@",null,431]
[null,"D-","complètement,@ absolument","durchaus,@ (vollständig, unbedingt)",null,432]
[null,"D-","comportement   2/retenir, contenir, réprimer, maîtriser / se comporter, se conduire","Verhalten,nt   2/,t% (_ählt _ielt h _) / s-,r",null,433]
[null,"D-","comportement, conduite   2/se comporter, se conduire   3/s'élever à (somme)","Betragen,nt (Verhalten)   2/s-_,ri%+D   3/,t (_ägt _ug h _) ",null,434]
["M2302","D- LING LITT","composition, synthèse, assemblage   2/condition préalable","Zusammensetzung,f   2/Voraussetzung,f",null,435]
[null,"D-","compréhensible","verständlich,a (begreiflich)",null,436]
[null,"D-","compréhension, vision / révision, inspection, examen","Einsicht,f (Verständnis)",null,437]
[null,"D- NB COMM","compter, énumérer   2/_age, recensement   3/dénombrable","zählen,t (h gezählt)   2/_ung,f   3/_bar,a",null,438]
[null,"CPT D-","compulser, consulter (un livre), chercher","nachSchlagen,t&i (in einem Buch)",null,439]
[null,"D- COMM","conclure, convenir, accorder, stipuler / défaire, ôter, détacher","abMachen,t",null,440]
[null,"D-","concorder, être en _ance/d'accord   2/_ance, accord, convergence   3/_ant, conforme","übereinstimmen,i (h ü_eingestimmt)   2/_ung,f   3/_end,a",null,441]
[null,"D- COMM","concurrence   2/_r   3/:Sou)tenir la _","Konkurenz,f (Wettbewerb,m)   2/_ machen   3/:Der _ die Spitze bieten",null,442]
[null,"D-","conduire, mener, guider   2/conduite, direction, gestion, leadership","führen,t (leiten)   2/_ung,f",null,443]
[null,"D-","conférence, rapport   2/présenter, réciter, chanter","Vortrag(\"e),m (Bericht)   2/vorTragen,t+A",null,444]
[null,"D-","confiance   2/avoir _ (en qn) / faire _ (à)   3/_dentiel   4/_dentiellement","Vertrauen,nt   2/,i (jdm) / (auf+A)   3/_lich,a   4/im _",null,445]
[null,"D-","confier (qc à qn)   2/se _ (à qn)","anVertrauen,t (jdm etw)   2/s- (jdm) _",null,446]
[null,"D-","confirmer, ré)affirmer, attester, valider (qn/qc)   2/s'avérer, se vérifier, se confirmer","bestätigen,t+A (jdm/etw) (bescheinigen, zustimmen)   2/s-",null,447]
[null,"D-","conformément,pp+D selon","gemäss,pp+D",null,448]
[null,"D-","confusion, pagaille, désordre, gâchis   2/brouillé, pêle-mêle, confus","Durcheinander,nt   2/,a,@....",null,449]
[null,"D-","connaissance   2/prendre _ de qc   3/prendre note de qc   4/en _ de cause","Kenntnis(se),f   2/von etw _ nehmen   3/etw zur _ nehmen   4/in _ der Sachlage",null,450]
[null,"D- W9x","Connexion directe par câble","PS-Direckt Verbindung",null,{"$f":"F451+1","v":451}]
[null,"D-","conscience <connaissance>","Bewusstsein,nt",null,452]
[null,"D-","conscience <morale>   2/_ieux   3/_ professionnelle","Gewissen,nt (±Bewusstsein,f)   2/_haft,a   3/_haftigkeit,f",null,453]
[null,"D-","conseil   2/deviner, _ler {Devine!}   3/devinette","Rat,m (_schlag,m)   2/_en,t (riet, ge_en) {_ einmal}   3/\"sel,nt",null,454]
[null,"D-","consent\\ir, approuver (qc/qn), donner son _ement/accord   2/_ement, accord   3/approbateur, _if   4/en signe d'accord","zuStimmen,i (jdm)   2/_ung,f   3/_end,a   4/_end,@",null,455]
[null,"D-","conséquence {tirer}   2/_ent","Konsequenz,f {ziehen} (Folge,f)   2/_ent,a",null,456]
[null,"D-","considération, égard   2/irresponsable, qui manque d'_   3/prévenant, plein d'_","Rücksicht,f   2/_slos,a   3/_svoll,a",null,457]
[null,"D-","considérer qn (comme qc)   2/:je _ comme mon devoir...   3/_ation, examen","betrachten,t jdn (als etw)   2/:ich _e es als meine Pflicht...   3/_ung,f",null,458]
["C0906 M0906","D-","considérer, prendre en considération   2/:Tu dois aussi _ cela","berücksichtigen,t   2/:Das muss du auch _",null,459]
["C0906","D-","consomm|ation,f   2/_er,t","Konsum,m   2/_ieren,t",null,460]
[null,"D-","construction   2/_ire, bâtir   3/chantier de _","Bau,m   2/_en,t   3/_stelle,f",null,461]
[null,"D-","contenir   2/se-   3/s'abstenir","enthalten,t%+A (_ällt _iel h _)   2/s-,r+G   3/seine Stimme _",null,462]
[null,"D-","contenu, contenance","Inhalt,m",null,463]
[null,"D- PRINT","continuation d'impression","Fortdruck,m",null,464]
[null,"D-","continuel(lement)","fortwährend,@ (immerwährend,a) immerzu,@",null,465]
["C0506","D-","continuellement,@","kontinuierlich,@",null,466]
[null,"D-","contr\\edire (qn)   2/_adiction   3/_adictoire","widersp\\rechen,t% (jdm)   2/_ruch,m   3/_rechend,a",null,467]
[null,"D-","contraindre, obliger (à/de)   2/:Je me vois _t (de partir)","zwingen,t (zwang h gezwungen) (zu)   2/:Ich sehe mich g_n (zureisen)",null,468]
["M0906","D-","contraire,m {bien au _}   2/,a","Gegenteil,nt {ganz im _}   2/_ig,a",null,469]
[null,"D-","contre,pp","gegen,pp+A",null,470]
[null,"D-","contre,pp <précède divers Vb: sens contre (soi)>","entgegen-,pp+D",null,471]
[null,"D-","contrée, région, campagne, site, quartier","Gegend,f (Landstrich)",null,472]
["C0010","D-","contrevenir, violer   2/infraction,f outrage   3/le droit d'auteur","verstossen,i (verstiess h verstossen)   2/Verstoss,m   3/Die Entwickler des ENIAC hatten gegen das Urheberrecht verstoßen.","LETZT. Verstoss. Die Entwickler des ENIAC hatten gegen das Urheberrecht verstoßen.",473]
[null,"D-","contribution supplémentaire, subvention","Zuschuss,m",null,474]
[null,"D-","convainc\\re (qn de qc), persuader (de) / _u   2/_viction   3/_ant","überZeugen,t (jdn von etw/von) / _gt   2/_ung,f   3/_d,a",null,475]
[null,"D-","converser, s'entretenir (de qc) / se divertir, s'amuser   2/entretenir, soutenir, divertir","unterhalten,r% s- (_ielt h _) (über etw)   2/,t+A",null,476]
[null,"D- COMM","conversion, change","Umrechnung,f",null,477]
[null,"D- W9x","Corbeille / Recycled","Papierkorb",null,478]
[null,"D-","corde","Seil,nt",null,479]
[null,"ANAT D-","corps, ventre","Leib,m (Körper, Bauch)",null,480]
[null,"D- TYPO","corrections d'auteur","Autorkorrekturen,fP",null,481]
[null,"D-","correspondre, être conforme (à)   2/_dant, proportionnel   3/_dance, conformité, analogie","entsprechen,t%+D (mit/zu) (_icht _ach h entsprochen) (passen, übereinStimmen)   2/_d,a   3/_ung,f",null,482]
["C0507","D-","corridor,m","Flur,m",null,483]
[null,"D-","cotisation, contribution","Mitgliederbeitrag,m   2/Anteil,m",null,484]
[null,"D- TYPO","couche sur la face   2/_ sur le dos   3/recto / verso","seitenrichtig (SR)   2/_verkehrt (SV)   3/Vorderseite,f / Rückenseite,f",null,485]
[null,"D- PRINT","couché,a (papier _)","gestrichen,a (Papier)",null,486]
[null,"D-","couchette, chaise longue","Liege,f",null,487]
[null,"D-","couler,i   2/:Il apprit 6 langues couramment parlées et écrites","fliessen,i% (floss h geflossen)   2/:Er lernte sechs Sprachen _d sprechen und schreiben",null,488]
[null,"D- SPORT","coup franc","Freistoss,m",null,489]
[null,"D- RELIU","coupe en tête","Kopfschnitt,m",null,490]
[null,"D-","cour,f","Hof,m",null,491]
[null,"D-","courage   2/_eux","Mut,m   2/_tig,a",null,492]
[null,"D- PROF","cours, enseignement   2/instruire, enseigner / s'","Unterricht,m   2/_en,t / s-",null,493]
[null,"D- COMM NB","cours/taux de change   2/monnaie","Wechsel)Kurs,m   2/Währung,f",null,494]
[null,"D-","course, cours, courant, roulement   2/courir, marcher   3/course, marche, pas de _   4/courant, en cours   5/dépassé, expiré, périmé","Lauf(\"e),m   2/_en,i% (_üft lief i ge_) (gehen)   3/_en,nt   4/_end,a   5/abge_en,a&Pp",null,495]
[null,"D-","court, bref / brièvement   2/récemment, l'autre jour","kurz,a&@   2/_\"lich,@",null,496]
[null,"D- COMM NB","coût, frais   2/s'élever à, _er   3/gratuit   4/devis   5/participation aux _s   6/centre de profit","Kosten,fP   2/,t+A (betragen)   3/_los,a   4/_anschlag,m   5/_beteiligung,f   6/_stellenf",null,497]
[null,"D- RELIU","couture au fil","Fadenheftung,f",null,498]
[null,"D- LIVRE","couverture   2/graphisme de _   3/jaquette   4/rabat(s) {_ de devant/derrière}   5/plat du dessus, 1ère de _   6/Xe de _   7/plat du dessous, 4e de _","Umschlag,f   2/_gestaltung,f   3/_klappe   4/hintere _ /vordere _   5/_seite eins   6/_ X   7/_ vier",null,499]
[null,"D- LIVRE","couverture de livre   2/bloc du _","Buchdecke,f Buch)Umschlag,f   2/_block,m",null,500]
[null,"D- RELIU","couverture toile","Leineneinband,m",null,501]
[null,"D- LIVRE","couverture, reliure (d'un livre)","Einband(\"e),m",null,502]
[null,"D-","crainte, peur, timidité   2/redoutable, effrayant   3/sans peur, intrépide, hardi","Furcht,f (Angst)   2/_bar,a (übertreibend)   3/_los,a",null,503]
[null,"D- REL","création   2/_eur   3/créature","Schöpfung,f   2/_er,m   3/Geschöpf,nt",null,504]
[null,"D-","créer, pro_, former, produire, dégager","erzeugen,t (÷herstellen)",null,505]
["C0906","D-","crise,f","Krise,f",null,506]
[null,"D-","croisement,m","Kreuzung,f",null,507]
[null,"D-","cuir","Leder,nt",null,508]
[null,"ALIM D-","cuisine   2/art culinaire","Küche,f   2/Kochkunst,f",null,509]
[null,"D-","curieux, singulier   2/_sement","merk\\würdig,a   2/_würdigweise,@",null,510]
[null,"D-","curiosité   2/curieux","Neugier,f   2/_ig,a",null,511]
[null,"D-","cynique   2/cynisme","zynisch,a   2/Zynismus,m",null,512]
[null,"D-","D","D",null,513]
[null,"D-","d'accord","einverstanden, in Ordnung, okay",null,514]
[null,"D-","danger   2/_eux","Gefahr(en),f   2/_\"lich,a",null,{"$f":"F515+1","v":515}]
[null,"D-","d'autant plus que","um so mehr",null,516]
[null,"D-","d'autre part, d'un autre côté","andererseits,@",null,517]
[null,"D-","de <D'où, De qui?>","von,pp+D",null,518]
[null,"D- SPAC","de haut en bas","auf und ab",null,519]
[null,"D-","de là, de ce côté-là   2/de là, d'où   3/c'est pq, pour cette raison","daher,@ <örtl.>   2/,@ <kausal>   3/_,cjs (aus der genannten Grund) (±deshalb)",null,520]
[null,"D-","de là, de/en cela   2/en profiter, y gagner   3/être au courant","davon,pr@+D   2/etw/mehr _ haben   3/_ wissen",null,521]
[null,"D- SPAC","de l'autre côté / là-bas","drüben,@ (auf der anderen Seite)",null,522]
[null,"D-","de l'autre côté, au-delà","jenseit\\ig,a   2/_s,@",null,523]
[null,"D-","de plus,@ en plus, d'ailleurs","ausserdem,@",null,524]
[null,"D-","de qui?,pr+G","Wessen?,pr+G",null,525]
[null,"D-","de quoi?   2/dont","wovon,pr@+D <interr ind.> (Von was?)   2/<relativ> (von dem/der)",null,526]
[null,"D-","de temps à autre, parfois, de temps en t.","hin und wieder",null,527]
[null,"D-","de toute façon","sowieso,@",null,528]
[null,"D- PART","de(é)-","ab-,pfxVb (von)",null,529]
[null,"D-","dé)montrer (reconnaiss.), prouver, rendre (à qn)   2/se révéler, s'avérer (que/être)   3/_able","erweisen,t%+D(A) (_st _ies h erwiesen) (÷be_: activ)   2/s-_,r (dass)   3/_lich,a",null,530]
[null,"D-","de, dans, à <D'où, De quelle provenance?>","aus,pp+D <Woher?>",null,531]
[null,"D- TYPO","de/en travers (=paysage/horizontal) (÷portrait/vertical)","quer,@ (÷hoch)",null,532]
[null,"D- TYPO PRINT","débord","übergriff,m",null,533]
[null,"D-","décevoir, désillusionner   2/déception, désillusion","enttäuschen,t   2/_ung,f",null,534]
[null,"D-","déci\\der (de(qc) <1>, trancher, déterminer   2/_sion, résolution, verdict   3/_sif, crucial","entscheid\\en,t+A (über(etw) / s-,r (für) (_ied h entschieden) (± beschliessen)   2/_(ung),f   3/_end,a (schlüssig)",null,535]
[null,"D-","décider (de), décréter, ordonner, déterminer (de), fixer (à), établir, désigner qn, destiner (à), disposer (de)","bestimmen,t (entscheiden, festSetzen, definieren, genau festLegen) (über/zu)",null,536]
[null,"D-","décontenancé, déconcerté","fassungslos,a",null,537]
[null,"D-","décrocher, ôter, enlever (lunettes)   2/décroître, maigrir   3/diminution, affaiblissement, déclin   4/diminuant, décroissant (lune)","abNehmen,t%+A(D)   2/,i%   3/A_,nt   4/_d,a",null,538]
[null,"D- SPAC","dedans   2/:au beau milieu de qc   3/:Vivre au jour le j.","hinein,@   2/:mitten in etw _   3/:In den Tag _ leben",null,539]
[null,"D- COMM","dédouaner   2/_ement   3/_ement d'im/exportation","verzollen,t   2/_ung   3/Ein/ausfuhr\\abfertigung,f",null,540]
[null,"D-","défaire, rompre (un lien), dissoudre / résoudre (devinette)   2/se séparer, se _","lösen,t+A   2/s-_,r (von) (aufgehen)",null,541]
[null,"D- MIL SPORT","défaite, échec   2/entrepôt, succursale","Niederlage,f",null,542]
[null,"D-","défendre (qn/qc) / se-_ (contre)   2/_se, plaidoyer   3/_seur, avocat","verteidigen,t+A (etw/jdm) (be)schützen) / s-_,r (gegen)   2/_ung,f   3/_er,m",null,543]
[null,"D-","définir, stipuler, fixer","festSetzen,t (bestimmen)",null,544]
["C0910","D-","définitif,a","endgültig,a",null,545]
["C0001","D- PAO","Définition nominale","Nennauflösung,f",null,546]
[null,"D-","dégagé, détaché, défait, parti   2/marche, allons(ez), oust(e)   3/:Qu'est-ce ce qu'il y a? Que ce passe-t-il?","los,a   2/,interj   3/:Was ist (denn) _?",null,547]
[null,"D- DIAL","dégueulasse, dégoûtant","grûzig,Dial",null,548]
[null,"D- SPAC","dehors, au _, en plein air, à l'étranger   2/du/de _   3/_   4/à l'intérieur","draussen,@loc   2/von _,@dir   3/nach _,@dir   4/drinnen",null,549]
[null,"D- COMM","délai, terme, date limite   2/_ de livraison   3/_ de paiement","Frist,f (Termin(s -e),m)   2/Liefer_ (Lieferungszeit,f)   3/Zahlungs_",null,550]
[null,"D-","délégation","Delegation,f Vertretung,f Abordnung,f",null,551]
[null,"D-","déliceux, appétissant, fameux, savoureux, succulent   2/friandise","lecker,a   2/_ei,f",null,552]
[null,"D- DIAL","demain","môrn,Dial",null,553]
[null,"D-","demain matin   2/ce _","morgen vormittag(s)   2/heute M/heute V ",null,554]
[null,"D-","demander, s'adresser, s'informer (de qc à qn)   2/demande","anFragen,i (bei jdm wegen/nach etw) (s- erkundigen, s- informieren)   2/A_ge,f",null,555]
[null,"D-","déménager   2/(se) changer (de vêtement)","umZiehen,i% (i umgezogen)   2/s-_,r",null,556]
[null,"D- NB","demi   2/moitié   3/un et demi","halb,a   2/Hälfte,f   3/einenhalb,inv (Jahr/Prozent/Meter)",null,557]
[null,"D- TYPO","Département corrections","Korrektorat,m",null,558]
[null,"D-","dépasser, devancer, doubler","überholen,t (h _t)",null,559]
[null,"D-","dépendant   2/in_  3d_ce   4/ind_ce","abhängig,a   2/un_,a   3/A_keit,f   4/U_keit,f",null,560]
["C0301","D-","dépendant,a","bezüglich,a",null,561]
[null,"D- COMM NB","dépense(s)   2/produit(s)","Aufwand,f   2/Ertrag,m",null,562]
[null,"D- RELIU","dépôt à la poste","Postaufgabe,f",null,563]
[null,"D-","depuis,pp   2/_ que,cjs","seit,pp+D   2/_(dem),cjs",null,564]
[null,"D-","déranger, importuner, incommoder, gêner","stören,t+A (behindern, belästigen)",null,565]
[null,"D- FIT","dermatologue   2/boutons   3/éruption   4/infection   5/gratter (se)   6/piquer","Dermatologe,m   2/Pikkel,fP   3/Ausschlag,m   4/Infektion,f   5/ab)Kratzen,t (s-)   6/stechen,t% (_icht _ach h gestochen)",null,566]
[null,"D-","dernier(ière)   2/pour la _ fois   3/(cette) dernier(ière)   4/récemment","letzte(r,s),@   2/zum _nmal   3/_r,a   4/_ens,@",null,567]
[null,"D- SPAC","derrière,pp   2/en arrière,@ à la fin","hinter,pp+AD   2/hinten,@",null,568]
[null,"D-","dès que,cjs","sobald,cjs",null,569]
[null,"D- SPAC","descendre   2/_ (vers ns)","hinunter gehen   2/herunter kommen",null,570]
[null,"D-","désignation, description","Bezeichnung,f",null,571]
[null,"D-","désirer ardemment, demander, réclamer   2/demande, réclamation","verlangen,t (÷erwarten: passiv)   2/V_,nt",null,572]
[null,"D-","desserré, lâche, décontracté, libertin   2/_r, assouplir","locker,a   2/_n,t",null,573]
[null,"D-","détacher / démarrer","losMachen,t",null,574]
[null,"D-","détacher de, enlever, séparer","abtrennen,t+A (los_, abLösen, entfernen, abteilen)",null,575]
[null,"D-","détail","Detail(s),nt",null,576]
[null,"D-","détester, exécrer, avoir en horreur   2/abomination   3/_able","verabscheuen,t   2/_ung,f   3/_ungswürdig",null,577]
[null,"D-","détester, haïr   2/laid, affreux","hassen,t   2/hässlich,a",null,578]
[null,"D-","détruire   2/destruction","zerstören,t   2/_ung,f",null,{"$f":"F579+1","v":579}]
["C0010","D-","Deutsch - Articles","N=ERASIEIE Der Das Die Die\u0006   A=ENASIEIE Den Das Die Die\u0006   D=EMEMEREN Dem Dem Der Den\u0006   G=ESESERER Des Des Der Der",null,580]
["C0010","D-","Deutsch - pp (déplacement=D stationnement=A)","pp+A: durch für gegen ohne um\u0006   pp+D: aus bei mit nach seit von zu\u0006   pp+A/D: an auf hinter in neben über unter vor zwischen",null,581]
[null,"D- NB","deux\\ièmement   2/trois-   3/quatr-","zwei\\tens,@   2/drit-   3/vier-",null,582]
[null,"D- SPAC","devant, à côté (de qc)   2/avoir cessé   3/passer devant/auprès de (qn)","vorüber,@ (an etw)   2/_ sein   3/(an jdm, etw) _Gehen,i (ist)",null,583]
[null,"D- SPAC","devant, il y a (avant)   2/_   3/_ (véhicule)","vor,pp+AD   2/_n,@   3/_ne,@",null,584]
[null,"D- SPAC","devant/avant (cela)","davor,@",null,585]
[null,"D- Vb auxl","devenir <+I=futur>   2/<+Substantif =idée de transformation>","werden,% (wirst wird wurde i geworden)   2/_ zu etw.",null,586]
[null,"D-","dévier, diverger   2/variation","abWeichen,i% (i)   2/Abweichung,f",null,587]
[null,"D-","dévisager <fig>","mustern,t (ansehen, ÷starren, blicken)",null,588]
[null,"D- Vb modalité","devoir, être contraint de, 'il faut que' <agir par nécessité mais sans volonté ext.>","müssen (muss _te h gemusst/müssen subj.I:müsse II:müsste)",null,589]
[null,"D- Vb modalité","devoir, être obligé (par qn) <ordre, reproche, imposé par un tiers>","sollen (soll _te gesollt/_ subj.I:_e II: _te)",null,590]
["C0004","D-","dextérité,f","Geschicklichkeit,f",null,591]
[null,"D-","dialogue","Dialog,m",null,592]
["M0507","D-","différence   2/_t   3/:Il ne se _ie pas essentiellement","Unterschied,f   2/_lich,a (±verschieden)   3/:Er u_scheidet sich nicht wesentlich",null,593]
[null,"D-","différer, remettre, ajourner / déplacer (meuble, etc) / faire le trafic de","verschieben,t% (_ob h verschoben)",null,594]
[null,"D-","dignité, honneur   2/digne   3/avec _ité   4/estimer, apprécier","Würde,f   2/_ig,a   3/,@   4/_igen,t (schätzen)",null,595]
[null,"D- TYPO PRINT RELIU","dimension","Abmessung,f",null,596]
[null,"D-","directive(s), instruction(s)","Weisung(en),f (Befehl, Vorschrift, Anleitung)   2/An_,f",null,597]
[null,"D-","diriger, être à la tête de   2/directeur, chef   3/direction / eau du robinet","leiten,t   2/_r,m (-in,f)   3/_ung,f (Führung) / _ungswasser,nt",null,598]
[null,"D-","diriger, instruire, ordonner","anWeisen,t%+AD (_st _ies h_angewiesen) (anleiten)",null,599]
["M0204","D-","discipline, matière, sujet, branche   2/case, compartiment, tiroir, rayon   3/la branche du multimédia","Fach,nt (Branche,f)   3/Media- ou  Multimediabranche",null,600]
[null,"D-","disparaître,i   2/_rition,f","verschwinden,i% (ist _unden)   2/,nt",null,601]
[null,"D-","disponible   2/_ilité","verfügbar,a   2/_keit,f",null,602]
[null,"D- CORR","disposer, décider, décréter   2/_ition   3/:Je suis à votre _","verfügen,t (festSetzen, bestimmen)   2/_ung,f   3/:Ich stehe ganz/gern zu Ihrer _",null,603]
[null,"D- TECH","disque   2/meûler, aiguiser, polir, tailler   3/disques à meuler   4/_ à ébarber/tronçonner","Scheibe,f   2/schleifen,t (schliff, h geschliffen)   3/Schleifscheiben,fP   4/Schrupp/Trenn_n (E- Grinding/Cutting discs)",null,604]
[null,"D-","dissimuler   2/se cacher   3/caché, couvert, voilé","verbergen,t% (_arg h _orgen)   2/s-   3/_orgen,a",null,605]
[null,"D-","dissoudre, liquider, diluer / rompre, annuler (contrat)   2/délayage, solution (problème), _bilisation, annulation, définition (CPT)","aufLösen,t   2/_ung,f",null,606]
["C0506","D-","distinct,a à part,@","gesondert,a&@",null,607]
[null,"D-","distingué","vornehm,a",null,608]
["M0010","D-","dit,a soi-disant, ainsi-nommé, prétendu, entre guillemets","sogennant,a",null,609]
[null,"D- NB","division, graduation, classification   2/répartition, partage, morcellement","Einteilung,f   2/Aufteilung,f",null,610]
["C0506","D-","divorce,m   2/_é,m   3/_r","Scheidung,f   2/Geschiedene,m&f   3/trennen",null,611]
[null,"D-","document, titre, pièce   2/_aire","Urkunde,f   2/_lich,a",null,612]
[null,"D- REL","dominer, régner (sur)   2/_ateur, maître   3/_ation, maîtrise, autorité, commandement, règne, empire","herrschen,i (über)   2/_r,m   3/_aft,f (Beherrschung)",null,613]
[null,"D-","don, faculté","Gabe(n),f",null,614]
[null,"D-","donc, alors, par conséquent","also,@&cj? (abschliessend, folglich)",null,615]
[null,"D-","donner sur», envoyer, expédier (paquet), remettre/passer/insérer (télégramme, annonce) / abandonner, renoncer (à), arrêter","aufGeben,t% (verzichten)",null,616]
[null,"D- RELIU","dos   2/largeur du _   3/_droit/rond","Rücken,m Bund,m   2/_breite,f   3/gerade/runder _",null,617]
["C0001","D- HDW","douchette, scanner à main","Handscanner, Lesestift",null,618]
[null,"D- FIT","douloureux, qui fait mal   2/:J'ai mal au ventre","weh,a   2/:Mein Bauch tut mir _",null,619]
[null,"D- REL","doute   2/_r (de qc/, que)   3/sceptique","Zweifel,nt   2/_n,i (an etw/, dass)   3/_nd,a",null,620]
["M0010","D-","douteux   2/sans (aucun) doute   3/de deux façons se sont...","zweifelhaft,a   2/zweifellos,@ / _frei   3/auf zweierlei Art haben sich...",null,621]
[null,"D- JUR","droit commercial   2/_ d'auteur   3/_ de douane   4/_ de naissance   5/_ de vote   6/_ pénal","Handelsrecht,nt   2/Uhreber_   3/Einfuhr)Zoll,m   4/Geburts_   5/Wahl_   5/Straf_",null,622]
[null,"D- LIVRE","droit de retour","Rückgaberecht,nt",null,623]
[null,"D-","droit, aligné, <caractère:> franc, sincère, loyal   2/tout droit   3/aller _ devant soi","gerade,a (±genau)   2/_aus,@   3/_ gehen",null,624]
[null,"D-","droit,m   2/assez   3/justement   4/avoir raison","Recht,nt   2/,@   3/mit _   4/_ haben",null,625]
[null,"D-","dur, ferme, solide, résistant","hart,a (\"er <compar>)",null,626]
[null,"D-","durée, période, temps   2/:à la longue, à perpette   3/état permanent/endémique","Dauer,f   2/:auf die _   3/_zustand,m",null,627]
[null,"D-","durer, continuer, persister   2/durable, stable   3/continuel, persistant   4/{une place} permanent{e}","dauern,i anD_,i   2/_haft,a   3/an_d,@ (fortwährend, immerzu)   4/_d,a {eine _e Stelle}",null,628]
[null,"D-","E","E",null,629]
[null,"D-","é)changer (piles)","ausWechseln,t (ausTauschen, ersetzen)",null,630]
[null,"D- LITT TYPO","ébauche, canevas, projet, brouillon, croquis, scénario","Entwurf,m",null,631]
[null,"D-","échange   2/_r (contre)   3/convertible","Umtauch,m (Aus_)   2/_en,t (gegen) (h umget_t)   3/_bar,a",null,632]
[null,"D- TYPO TECH","échelle (graduée), gamme","Skala,f (Stufenfolge,f)",null,633]
[null,"D- COMM NB","écoulement, débit, vente","Vertrieb,m (Verkauf)",null,634]
[null,"DIAL","écouter   2/_é   3/_e-voir","lose   2/glost   3/_ emol D=",null,635]
[null,"D- TYPO","écriture / caractère (d'imp.)  2style d'_, font","Schrift(e),f   2/_art,f, Font",null,636]
["C0202","D-","éducation,f  2/éduquer, élever","Erziehung,f   2/erziehen,t%",null,637]
[null,"D- TYPO","effacer, gommer (avec gomme)","ausradieren, löschen",null,638]
[null,"CPT D-","effacer, rayer, supprimer","streichen, löschen",null,639]
[null,"D-","effet   2/sans _  3/efficace   4/efficacité   5/degré d'efficacité","Wirkung,f   2/_slos,a   3/_svoll,a wirksam <Person: fähig>   4/Wirksamkeit,f   5/_sgrad,m",null,640]
[null,"D-","effort, application, aspiration   2/s'efforcer, s'appliquer, tâcher   3/tentative, essai (de f. qc)","Bestreben,nt   2/s-_,r (etw zu t.)   3/_ung,f",null,641]
[null,"D-","effrayer, terrifier   2/s'_ (de)   3/_oyable, épouvantable","erschrecken,t (h _t)   2/,i (_ak i _oken) (über, vor)   3/_end, _lich,a",null,642]
[null,"D- NB","égal (=), identique, le/la même","gleich,a (identisch) <viele Formen>",null,{"$f":"F643+1","v":643}]
[null,"D-","également, aussi bien, de même   2/merci _   3/pareillement","ebenfalls,@   2/danke _   3/gleichfalls,@",null,644]
[null,"D-","égalisation, compen-, harmoni-   2/compenser, égaliser, équilibrer, contrebalancer   3/compensateur","Ausgleich,m   2/ausG_en,t   3/ausg_end,a",null,645]
[null,"D-","égoïsme   2/_te","Selbsucht,f   2/_\"ig,a",null,646]
[null,"D-","eh bien ca! ça alors!   2/zut alors!","also, sowas!   2/verflixt! <interj>",null,647]
[null,"D-","élaborer, aménager, construire","erstellen,t (ausArbeiten)",null,648]
[null,"D- REL","élan   2/zèle, ardeur, assiduité   3/assidu, zèlé","Fleiss,m   2/Eifer,m   3/_ig,a",null,649]
[null,"D-","élan, énergie, impulsion, verve   2/florissant   3/manquant d'inspiration,@","Schwung(\"e),f (Impuls,m Elan,m)   2/_haft,a   3/_los,a",null,650]
[null,"D-","éloigné, lointain / étendu, vaste, spacieux","weit,a",null,651]
["C0209","D-","éloigné,a écarté, reculé, isolé","abgelegen,a (einsam)",null,652]
[null,"D-","éloigner / s'_ (de)   2/_é, lointain   3/distance","entfern\\en,t+A / s- (von),r   2/_t,a   3/E_ung,f (Abstand,m)",null,653]
["C0908","D-","Emballage original","OVP (Original Verpackung)",null,654]
[null,"D- RELIU","emballer sous plastique {_é sous plastique / _ sous plastique individuel}","einSweissen,t {mit Folie eingeschweisst / einzeln unter Plastik _}",null,655]
[null,"D-","embrouiller, confondre, déconcerter, stupéfier","verwirren,t",null,656]
[null,"D- RELIU","emmagasiner, stocker, empiler","abStapeln,t",null,657]
[null,"D-","empêcher (de faire) (±prévenir)   2/_ement","verhindern,t+A (zu t.)   2/_ung,f",null,658]
[null,"D-","emplir, farcir   2/se r_ (de)   3/r_ssage","füllen,t   2/s-_,r (mit)   3/_ung,f",null,659]
[null,"D-","employer (objet), appliquer (loi)   2/usage, utilisation, emploi, mise en pratique/application   3/_able (à)   4/exemple d'_","anWenden,t (±ver-)   2/_ung,f   3/_bar,a (auf)   4/_ungsbeispiel,nt",null,660]
["M0010","D-","employer, consacrer (temps, effort)   2/emploi, utilisation   3/_able (à)","verWenden,t (um)etw) (±brauchen)   2/_ung,f   3/_bar,a (zu)","LETZT. verwenden. Um die Verwendbarkeit von Computern für wissenschaftliche Anwendungen zu erreichen, entwickelte später die Firma IBM eine Sprache.",661]
[null,"D- PRINT","empreinte; surcharge (du noir)","Eindruck,m",null,662]
[null,"D-","empressement, disposition, _nibilité","Bereitschaft,f",null,663]
[null,"D-","en avant   2/en arrière","vorwärts,@   2/ruckwärts,@",null,664]
[null,"D- SPAC","en dedans,pp à l'intérieur","inherhalb,pp+G",null,665]
[null,"D- SPAC","en dehors,pp+G à l'extérieur","ausserhalb,pp+G",null,666]
[null,"D- SPAC","en face, envers","gegenüber,pp+D",null,667]
[null,"D-","en général   2/pas du tout","überhaupt,@   2/_ nicht",null,668]
["C0906","D-","en moyenne   2/Au-dessus/dessous de la _","im Schnitt / im Durch_   2/über/unter dem _",null,669]
["C1006","D-","en plus","zuzüglisch (zzgl.)",null,670]
[null,"D-","en réalité, vraiment, en fait, de fait   2/réel, véritable","tatsächlich,@   2/,a",null,671]
[null,"D-","en route","unterwegs,@",null,672]
[null,"D- DIAL","en somme","anen für siƒ,Dial",null,673]
[null,"D-","en tête,@ <zeitl.> devant, en avant   2/à l'avance, d'_, par _, par anticipation   3/probable(ment)","voraus,@ <zeitl.>   2/im _ (zuvor)   3/_sichtlich,a,@",null,674]
[null,"D-","en vue de...,pp+G au fins de...","zwecks,pp+G (=zum <zu diesem> Zweck...)",null,675]
[null,"D- SPAC","en/au/par le) dehors   2/hors (de)","heraus,@   2/aus _ (hinaus,@ weg,@)",null,676]
[null,"D- RELIU","encart, pièce jointe   2/_ agrafé","Beilage,f   2/Beihefter,m",null,677]
[null,"D-","enceinte   2/grossesse","schwanger,a   2/_haft,f",null,678]
[null,"D- !","encombrer, empêcher   2/obstacle, -ment   3/:Contre vents et marées","hindern,t (versperren)   2/_is(se),nt   3/:Trotz allen _issen",null,679]
[null,"DIAL","encore une fois","nomool D=",null,680]
[null,"D-","encourager","ermutigen (zu jdm),t+A",null,681]
[null,"D- LIVRE","encyclopédie, dictionnaire","Lexikon,nt",null,682]
["C0906","D- ÉCOL","énergie solaire   2/panneau _   3/installation/dispositif solaire","Solar|energie,f   2/_zelle,f   3/_anlage,f",null,683]
[null,"D-","enfin, finalement","endlich,@",null,684]
[null,"D-","enfoncer (porte, etc)   2/entrer (dans), adhérer (à)   3/intervenir (en fav. de qc/qn)","einTreten,t% (_itt _at h _ge_en)   2/_ (ist) (in)   3/,i% (für jdn/etw) (± vertreten)",null,685]
["C0507","D-","engager, enclencher, désigner","anStellen,t",null,686]
[null,"D-","enlèvement, prise à domicile","Abholung,f",null,687]
[null,"D-","enlever, aller/venir chercher/prendre","abHolen,t+A <örtl.>   2/holen <allg>",null,688]
[null,"D-","ennemi, adversaire   2/adversité","Feind(e)s-e),m   2/Not,f",null,689]
[null,"D- COMM","enquête, sondage","Umfrage,f",null,690]
[null,"D- PROF DIAL","enseigner (÷apprendre)   2/leçon (doctrine, théorie) / apprentissage   3/apprenti(e)","lehren,t (unterrichten) (÷lernen)   2/Lehre(n),f   3/_ling,m (_tochter,f(\")Dial)",null,691]
["C0010","D-","ensemble de règles","Regelwerk,nt",null,692]
[null,"D- TYPO","ensemble, montage d'éléments réalisés par procédé lithographique","Lithokombination,f",null,693]
[null,"D-","entendre   2/écouter   3/auditeur","hören,t   2/zu_,i   3/Zu_r,m",null,694]
[null,"D- FIT","entorse","Verstauchung,f",null,695]
[null,"D-","entre autres","unter anderem,pr",null,696]
[null,"D-","entre nous {soit dit}","unter uns,@ {gesagt}",null,697]
[null,"D-","entre(-)temps, sur ces entrefaites, pendant ce _","inswischen,@ (unterdessen, währendessen, mittlerweile,@)",null,698]
[null,"D- SPAC","entre,pp","zwischen,pp+AD",null,699]
["C0201","D- COMM","entreprises multinationales","Transnational Konzerne ",null,700]
[null,"D-","entretien   2/distraction, amusement","Unterhaltung,f",null,701]
[null,"D- NB","environ, à peu près","ungefähr,@ (circa, etwa)",null,702]
["C0301","D-","épaule(s),f","Schulter(n),f",null,703]
[null,"D- TYPO","épreuve","Abzug,m Proof,m",null,704]
[null,"D-","équilibré, (bien) proportionné, harmonieux   2/équilibre, pondération","ausgeglichen,a   2/_heit,f",null,705]
[null,"D-","équipe,f / couche,f","Schicht,f",null,706]
[null,"D-","équipement","Ausrüstung,f",null,{"$f":"F707+1","v":707}]
[null,"D-","équitable,a juste, honnête   2/équité,f","redlich,a   2/_keit,f",null,708]
[null,"D-","erreur   2/erroné   3/par erreur","Irrtum,m   2/_lich,a   3/_lich,@",null,709]
[null,"D-","espérons que / _ le !","hoffentlich,@",null,710]
[null,"D- REL","esprit   2/mental(ement), spirituel-   3/maladie ment-","Geist,m   2/_ig,a,@ (immateriel)   3/Geisteskrankheit,f",null,711]
[null,"D- REL","essai, épreuve, expérience   2/_yer, tenter (de f. qc)   3/tentation   4/tentateur","Versuch,m   2/_en,t (etw zu t.)   3/_ung,f   4/_er,m",null,712]
[null,"D-","essentiel, principal   2/:En substance (au fond, dans le fond, au fait)   3/:Le tout est de (savoir)","Hauptsache,f   2/:In der _ (im Grunde genommen)   3/:Die _ dabei ist zu (wissen)",null,713]
[null,"ANAT D- FIT","estomac   2/mal aux ventre","Magen,m   2/_schmerzen,fP",null,714]
[null,"D-","et","und,cjc",null,715]
[null,"D-","étage","Etage(n),f",null,716]
["M0201","D- TYPO","étager, graduer, dégrader (couleurs)   2/_ement, graduation, dégradation   3/réaction graduée","abStufen,t   2/_ung,f (Farb- Raster- verlauf,m)   3/abgestufe Reaktion",null,717]
["C0209","D-","étang,m pièce d'eau","Teich,m (_(e)s)",null,718]
[null,"D-","état, condition {en bon/mauvais _}","Zustand(\"e),f {in gutem/schlechtem _}",null,719]
[null,"D-","éteindre, fermer   2/convenir de, fixer   3/distinguer, repérer","ausMachen,t (erkennen, vereinbaren, abmachen)",null,720]
[null,"D-","éteindre, fermer (interrupteur sur 'off')","ausSchalten,t+A (ausLöschen <nur Licht>) (ausMachen)",null,721]
[null,"D- TECH LIVRE","étendue, longueur, portée, surface / (nb de page)","Umfang,m (Fläsche)",null,722]
[null,"D- RELIU","étiquetter sur le front","stirnseitig etikettieren",null,723]
[null,"D-","étrange, singulier, exceptionnel   2/prix réduit   3/cas _   4/privilège","sonder\\bar,a (merkwürdig)   2/_preis,m   3/_fall,m   4/_recht,nt",null,724]
["M0507","DIAL","ÊTRE / je suis   2/tu es   3/il/elle/on est   4/ns sommes   5/vs êtes   6/ils sont   7/j'ai été","SY / i bi   2/du bisch   3/er/si/es isch   4/mir sinn   5/dir sind   6/Si/si sinn   7/y bi gsii",null,725]
[null,"D-","être couché, étendu, se trouver (objet)","liegen,i% (liegt lag h gelegen)",null,726]
[null,"D-","être d'avis, estimer, penser, croire   2/opinion, avis, manière de voir, optique   3/:À mon avis","meinen,t (glauben, denken, sagen wollen)   2/_ung,f (Ansicht, Idee)   3/:Nach meiner _ung",null,727]
[null,"D-","être en fureur/rage (contre)   2/furieux   3/mettre en _   4/être en _ (contre qn)   5/se mettre en colère","wüten,i (h) (gegen)   2/_d/_ig,a   3/_ machen   4/_ sein (auf jdm)   5/_ werden",null,728]
[null,"D-","être vivant,m","Lebewesen(-),nt",null,729]
[null,"D- Vb auxl","être, exister, se trouver   2/avoir été   3/_, existence, essence","sein,i% (ist war i gewesen subjII wäre)   2/gewesen sein   3/,nt (Da_)",null,730]
[null,"D-","être, se tenir debout, se dresser, s'élever","stehen,i% (_ht _and h gestanden) (sich befinden, nicht weichen, ÷stellen,t)",null,731]
[null,"D-","étroit, serré, restreint, à peine suffisant <2possibilités>","eng,a (zum fahren)   2/knapp,a (zu klein/zu wenig)",null,732]
[null,"D-","étudier, s'exercer à, faire   2/s'exercer","üben,t   2/,i",null,733]
[null,"D- LING","étymologie","Etymologie,f ABK: ETYM",null,734]
[null,"D- REL","évangélique   2/±fondamentaliste","evangelisch,a   2/_kal,a",null,735]
[null,"D-","événement {un _ hist.}","Ereignis,nt {ein historisches _}",null,736]
[null,"D-","évidence   2/_ent   3/_emment","Evidenz,f   2/,@   3/_ent,a klar (offensichtlich, selbstverständlich)",null,737]
[null,"D-","évident(emment), manifeste-, apparent-   2/de toute évidence","offensichtlich,a&@   2/ganz _",null,738]
["C0301","D-","éviter,t","vermeiden,t",null,739]
[null,"D-","évolutif","evolutiv,aDial",null,740]
[null,"D- COMM","évolution du marché   2/part de _   3/étude de _","Markt\\entwicklung,f   2/_anteil,m   3/_forschung,f",null,741]
[null,"D-","exagérer, grossir, enjoliver / forcer la note   2/_ation   3/exagéré(-ment), excessif(-vement), trop","übertreiben,t% (h _trieben)   2/_ung,f   3/_trieben,a&@",null,742]
[null,"D-","exception   2/:à peu d'_ près","Ausnahme,f   2/:mit weniger _n",null,743]
["M0906","D-","exceptionnel, extraordinaire, particulier, spécial   2/en p_r   3/le spécial/particulier","besondere(r,s),a   2/im b_en   3/Besondere,nt",null,744]
[null,"D-","excitant ->passionnant, émouvant ->irritant, énervant   2/de manière sensationnelle","aufregend,a (spannend)   2/,@",null,745]
[null,"D-","exciter ->énerver / s'énerver (de qc/contre qn)","aufRegen,t / s- (über etw/jdn) <'auf'=achèvement>",null,746]
[null,"D-","exciter ->irriter ->éveiller, susciter   2/s'énerver (à cause de)   3/_ation","erregen,t (ärgern)   2/s-_,r (über+A)   3/_ung,f (÷auf_) <'er'=résultat obtenu suite à une action>",null,747]
[null,"D- TYPO","exclamation   2/point _ (!)","Ausruf,m   2/_ezeichen,nt",null,748]
[null,"D-","exclu, impossible","ausgeschlossen,a (unmöglich)",null,749]
[null,"D-","excursion, sortie","Ausflug,m",null,750]
[null,"D-","excuse, prétexte","Ausrede,f",null,751]
[null,"D- !","exécution / rédaction / exemplaire   2/duplicata, double, copie","Ausfertigung,f   2/zweite _",null,752]
[null,"D-","exécution, accomplissement, réalisation {mettre à _}","Ausführung,f (Arbeit, Auftrag, Plans) {zur _ bringen}",null,753]
[null,"D-","exemplaire utile","Nutzen,m",null,754]
[null,"D- COMM","exemplaire(s) à l'essai","Probeexemplar(en),nt Muster-, Ex. zur Ansicht",null,755]
[null,"D- REL","exhorter (à/au bien), faire une remontrance   2/_ation, recommandation / remontrance ","ermahnen,t+A (zu/zum Guten) (aufFördern,t)   2/_ung,f",null,756]
["M0507","D- COMM","exiger (réclamer, ordonner)   2/exigence (revendication, demande)","fordern,t+A (verlangen)   2/An)_rung,f <ETYM: «Verlangen dass etw/jdn hervorkommt»>",null,757]
["M0010","CPT D-","existence, persistance, permanence, stock   2/partie,f","Bestand,m   2/Bestandteil,m",null,758]
[null,"D-","exister, être, consister, être en vigueur   2/insister, appuyer (sur qc)   3/soutenir, réussir","bestehen,i%   2/_  (auf etw)   3/,t%+A (_steht _stand h bestanden)",null,759]
[null,"D- COMM","expédition   2/_eur   3/_ier   4/maison de VPC","Versand,m Sendung,f   2/Versender,m Ab_er   3/senden,t ab_, ver_en   4/V_haus,nt",null,760]
[null,"D-","exploitation, entreprise, marche, fonctionnement, service   2/en/hors service","Betrieb,m   2/in/ausser _",null,761]
[null,"D-","exposer, dé)montrer","darLegen,t (erklären)",null,762]
[null,"D- TYPO TECH","exposer,t&i   2/exposition,f (sur/sous _)   3/temps d'_","belichten,t&i   2/_ung,f (Über/Unter_)   3/_ungsdauer,f",null,763]
[null,"D-","exprès(_se)   2/_sément","ausdrücklich,a   2/,@",null,764]
[null,"D-","express -ès(sse)","express,a {_brief, _zug)",null,765]
[null,"D- LING LOCU","expression (phrase tt faite/type)   2/locution, tournure, façon de parler (fort/avec les mains)   3/idiome","Redewendung,f   2/Redensart,f   3/Idiom,nt",null,766]
[null,"CPT D- PROV","expression, tournure, expression <un seul mot>   2/liste imprimée","Ausdruck(\"e),m (÷ Redewendung, Redensart,f)  2_drucke",null,767]
[null,"D-","exprimer, dire, prononcer, articuler   2/s'expliquer (avec qn)","ausSprechen,t% (sagen)   2/s-,r% (mit jdm) (offen sprechen, besprechen)",null,768]
[null,"D-","extérieur,@   2/_ement,@ (÷intérieur-)   3/l'_","ausser,@   2/_lich,@ (÷inner-)   3/_enseite,f",null,769]
[null,"D- COMM NB","extourne   2/_r","Storno(s, -i),m   2/_ieren,t",null,770]
[null,"D- TYPO","extrait   2/_ de texte","Auszug,m   2/Text_",null,{"$f":"F771+1","v":771}]
[null,"D-","extraordinaire(ment), singulier-","ausserordentlich,a&@",null,772]
[null,"D-","F","F",null,773]
[null,"D- PRINT","fabrication, confection","Anfertigung,f",null,774]
[null,"D-","fabriquer, produire   2/_cation","herstellen,t   2/_ung,f",null,775]
[null,"D-","fâcher, contrarier, vexer   2/fâché, contrarié, vexé","ärgern,t   2/_lich,a",null,776]
[null,"D-","façon, manière   2/obéissant, sage","Art,f   2/_ig,a",null,777]
[null,"D- COMM NB","facture   2/note de crédit","Rechnung,f   2/Gutschrift,f",null,778]
[null,"D-","faible, piètre, indistinct   2/_sse(s)   3/(l'homme) _","schwach,a   2/_\"e(n),f   3/_e(n),m",null,779]
[null,"D-","faim   2/avoir _ (de)   3/affamé","Hunger,m   2/_ haben (nach)   3/_rig,a",null,780]
[null,"D-","faire (la) connaissance (de qn), apprendre à c. (qc)   2/faire plus ample c.","kennenLernen,t (jdn/etw)   2/jdn näher _",null,781]
[null,"D-","faire attention (à), prendre garde","aufPassen,i+A (auf etw) (h)",null,782]
[null,"D-","faire un signe de la tête","nicken,i",null,783]
[null,"D-","faire, produire","tun,t (tat h getan subjII:täte) (machen, ausführen, arbeiten, bewirken)","LETZT. Was kann ich für Sie tun?",784]
[null,"D-","faisabilité","Machbarkeit,f",null,785]
[null,"DIAL","fanfare","gugge music D=",null,786]
[null,"D-","fatiguer, éreinter","strapazieren,t",null,787]
[null,"D-","feindre, simuler, faire semblant   2/hypocrite,m   3/hypocrite,a   4/hypocrisie","heucheln,t&i   2/_chler,m   3/_chlerisch,a   4/_chelei,f",null,788]
[null,"D-","femme   2/_ au foyer   3/_ de ménage","Frau,f   2/Haus_   3/Putz_",null,789]
["C0301","D-","ferme,a solide, résistant, compact","derb,a (fest)",null,790]
[null,"D-","fermer, clore   2/en_   3/finalement","schliessen,t% (_oss h g_ossen) (enden)   2/ein_   3/_lich,@",null,791]
["C0209","D-","féroce,a cruel(lement),a+@","grausam,a",null,792]
[null,"D- RELIU","feuille d'expédition (sur un journal)","Deckblatt,nt",null,793]
[null,"D- PRINT","feuille, courbe, arc(het)   2/format des _s   3/_s pliées   4/_s coupées   5/_s mal imprimées   6/_ brutte/d'impression","Bogen(s,-),m   2/_format,nt   3/gefalzte _   4/nicht aufgeschnittene _   5/schlecht gedruckte _   6/Roh_ / Druck_",null,794]
["C0010 M0201","D- RS-CEC","fibre (de verre) optique   2/câble de _","Glasfiber,f   2/Glasfaserkabel,f",null,795]
[null,"CPT D-","fichier","Datei,f",null,796]
[null,"D-","fier (de), orgueilleux   2/orgueil, fierté","stolz (auf+A),a   2/,m (Hochmut)",null,797]
[null,"D- TYPO LIVRE","figurer, représenter   2/figure, illustration, reproduction, représentation   3/numéro d'_","abBilden,t+A   2/_ung,f <'ab'=copie d'un modèle ±abMalen>   3/Abbildungsnummer",null,798]
[null,"D-","filer, tisser (sa toile)","spinnen,t&i% (spann h gesponnen)",null,799]
[null,"D- TYPO","filet   2/_ couleur","Balken,m   2/Farb_",null,800]
[null,"D- TYPO PRINT","film   2/jeu de _   3/nb de pièce de _   4/_s originaux","Filme(e),m   2/_satz,m   3/_teile,mP   4/Original_e,mP",null,801]
[null,"D- TECH","film   2/ortho/pan)chromatique   3/_ n/b   4/sensibilité du _","Film(e),m   2/ortho/pan)chromatisch   3/Schwarzweiss_   4/_empfindlichkeit,f",null,802]
[null,"D-","fin(ement), délicat-, ra_é   2/Formidable!","fein,a,@   2/_!",null,803]
[null,"CPT D-","fissure, colonne   2/c. / fission   3/diviser, fendre","Spalte(n),f   2/_ung,f   3/_en,t",null,804]
[null,"D-","fixer, regarder fixement, scruter","starren,i (blicken, ÷mustern)",null,805]
[null,"D- TYPO","flèche,f","Pfeil,m",null,806]
[null,"D- PRINT","flexographie","Flexodruck,m",null,807]
[null,"D- REL","foi   2/croire (à) (qn)   3/croyant, confiant   4/croyant / les fidèles","Glaube,m (Überzeugung)   2/_n,t&i (an) (jdm)   3/_ig,a   4/_ige,mf / die _igen,mP",null,808]
[null,"D- TYPO","folio (nø de page)   2/pagination","Pagina,fDial   2/Paginierung,f",null,809]
[null,"D-","fondement (fond, base)","Grundlage,f (Fundament,nt)",null,810]
[null,"D-","force, pouvoir, violence, contrôle","Gewalt,f (Macht,f Kontrolle,f)",null,811]
[null,"D- TECH","forer, per_","bohren,t",null,812]
[null,"D- PRINT","format   2/_ max. possible","Format,nt   2/_ max. möglich",null,813]
[null,"D-","formation","Ausbildung,f",null,814]
[null,"D- RELIU","forme de découpe","Stanzform,f",null,815]
[null,"D-","forme, figure   2/façonner, former / se _r, prendre corps   3/:sous _ de","Gestalt,f (Form,f)   2/_en,t+A / s-   3/:in _ von",null,816]
[null,"D-","former   2/_ation","bilden,t+A   2/B_ung,f (->ab_, aus_, ein_)",null,817]
[null,"D-","fort   2/force","stark,a   2/Stärke,f",null,818]
[null,"D-","fort, bruyant, haut {trop _}","laut,a,@ (stark, lärmend, hörbar <ant:> leise, leicht) {zu _}",null,819]
["C0507","D- MIL","forteresse,f","Festung,f",null,820]
[null,"D-","fortune, facilité, capacité","Vermögen,nt",null,821]
[null,"D-","fou <personne>   2/folie   3/se tromper   4/inexact, faux","Irrer,m (Verrückter)   2/Irrsinn,m   3/s-_en,ri+D (in) (ist)   4/_ig,a (ungenau, falsch)",null,822]
[null,"D-","fouiller, chercher","suchen,t",null,823]
[null,"D-","foyer, maison   2/à la maison, chez soi   3/patrie   4/lieu de naissance   5/pays natal","Heim,nt   2/heim,@   3/_at,f   4/_atort,m   5/_atland,nt",null,824]
[null,"D- NB","fracture   2/fraction","Bruch(e),m",null,825]
[null,"D- LIVRE","fragment, section","Abschnitt,m",null,826]
[null,"D- COMM NB","frais de port (_ de trans_)   2/franc(o) de _","Versand\\kosten (Fracht_)   2/portofrei,@ Frei Haus",null,827]
["C0205","D-","français,a","franzose,a",null,828]
[null,"D- NB","francs suisses","Schweizer Franken,fP",null,829]
[null,"D- TYPO","frappe(s)","Anschlag(\"e / D:\"en),m",null,830]
[null,"D- REL","fraternel   2/amour _   3/amitié, camaraderie","brüderlich,a   2/_er Liebe   3/Bruderschaft,f",null,831]
[null,"D-","fréquent   2/_emment   3/_ce","häufig,a   2/,@   3/_keit,f",null,832]
[null,"D- COMM","fret, cargaison, chargement","Fracht,f",null,833]
[null,"D-","frotter","reiben,t",null,834]
["M2008","D-","fuite,f   2/fuir,t   3/réfugié,m","Flücht,f   2/_en,t   3/_ling,m (_lingsdrama)",null,{"$f":"F835+1","v":835}]
[null,"D-","fumée","Rauch,m",null,836]
[null,"CPT D-","fusionner","fusionieren,t zusammenschliessen",null,837]
[null,"D-","futur (le _)   2/_, à venir","Zukunft,f   2/künftig,a",null,838]
[null,"D-","G","G",null,839]
[null,"D-","garder, préserver (qn de qc)   2/prés., défendre","bewahren,t+A (jdn vor etw)   2/wahren,t",null,840]
[null,"D-","gaspiller, dissiper, mal employer   2/gaspillage, débauche","verschwenden,t (vergeuden)   2/_ung,f",null,841]
[null,"D- RELIU","gauffrage or","Goldfolienprägung,f",null,842]
[null,"D-","général, universel, global, ordinaire   2/partout   3/en _, _ement","allgemein,a (±gewöhnlich) >ABK: allg>   2/,@   3/im _en,@",null,843]
["M0906","D- SPORT","généreux   2/Grand Prix,m","grosszügig,a   2/Grosse Preis,m",null,844]
[null,"D- LITT","genres littéraires","literarische Gattungen",null,845]
[null,"D-","gentil, sage, agréable, cher <fam>   2/:Auriez-vs la _lesse...?   3/mignon, agréable","lieb,a <plus fam que '_enswürdig'>   2/:Würden Sie so _ sein...?   3/_lich,a",null,846]
["C0507 M0906","D-","glacier,m   2/glaciation","Gletscher,m (-)   2/Ver_ung,f",null,847]
[null,"ALIM D-","goûter   2/avoir du goût   3/goût   4/:À mon _","schmecken,t   2/,i   3/Geschmack,m   4/:Nach meinen G_",null,848]
[null,"D-","grâce à,pp à la faveur de","dank,pp+G",null,849]
[null,"D- REL","grâce de Dieu   2/volonté de _","Gottes Gnade,f   2/_ Wille,m (Wille von _)",null,850]
[null,"D- LIVRE","grand titre   2/faux _","Hauptitel,m   2/Schmutztitel,m",null,851]
[null,"D- TYPO","gratter (film)","wegKratzen,t",null,852]
[null,"D- PROF","grève   2/faire _   3/en _   4/droit de _","Streik,m   2/_en,i   3/_end,a   4/_recht,nt",null,853]
[null,"D-","grogner, gargouiller (ventre)","knurren,i (h)",null,854]
[null,"D- TYPO","guillemets   2/_ doubles   3/_ simples","Anführungszeichen,fP   2/doppelte _   3/einfache _",null,855]
[null,"D-","H","H",null,856]
[null,"D-","habit, vêtement   2/_ller, aller bien (à qn) / s'-   3/_llement","Kleid,nt (allg)   2/_en,t (jdm) / s-,r   3/_ung,f",null,857]
["M0906 M2008","D-","habituel / comme d'_de   2/hors de l'ordinaire   3/habitude,f","gewöhnlich,a (üblich,a)   2/ausser_   3/Gewonheit,f",null,858]
[null,"D-","hasard,m   2/par _, accidentellement   2/accidentel, fortuit   4/générateur de _","Zufall,m   2/zufällig,@   3/,a   4/_generator,m",null,859]
[null,"DIAL","Haus","ds'Houz D=Haus,nt",null,860]
[null,"D- SPAC","haut, à la surface {en _}   2/bas, au-dessous / sous   3/de h en b","oben,@ {nach _}   2/unten,@ / _r,pp   3/von _ bis _",null,861]
[null,"D-","heure, leçon, cours (scolaire)   2/:À la dernière minute   3/qui dure des _","Stunde(n),f   2/:In letzter Minute,f (_: selten) (÷Uhr)   3/_nlang,a",null,862]
[null,"D-","heureux(sement), chanceux-   2/par chance","glücklich,a&@   2/zum Glück",null,863]
[null,"DIAL","heute","hut D=heute",null,864]
[null,"D-","honnête, sincère   2/_té","ehrlich,a (fair, aufrichtig)   2/_keit,f",null,865]
[null,"D- REL","honneur, gloire   2/honorer   3/parole d'_","Ehre,f   2/_n,t   3/_nwort,nt",null,866]
[null,"D-","honte   2/avoir _, être _ux   3/:Je n'ai pas _","Scham,f   2/s- schämen,r   3/:Ich _\"e mich nicht",null,867]
[null,"D-","humeur   2/:de bonne _   3/lunatique","Laune,f   2/:gut ge_t   3/_isch,a",null,868]
[null,"D-","humide   2/_ité   3/moisissure","feucht,a (nass)   2/_igkeit,f   3/Schimmel,f",null,869]
[null,"D- REL","humilité, soumission   2/humble, soumis   3/humilier, abaisser","Demut,f   2/_ig,a   3/_igen,t",null,870]
[null,"D-","I","I",null,871]
[null,"D-","idéal,m   2/_,a parfait","Ideal,nt   2/,a",null,872]
[null,"D-","illusion","Illusion,f",null,873]
[null,"D- REL","image, symbole, parabole","Gleichnis,nt (Bild, Vergleich)",null,874]
["C0906","D-","image,f","Image,nt",null,875]
[null,"D-","immédiat, direct   2/_ment","unmittelbar,a   2/,@ (direkt, gerade, sofortig)",null,876]
["C0507","D-","imparfait,a défectueux","mangelhaft,a",null,877]
["M2009","D- COMM","impliqué, qui participe (concerné)   2/participer","beteiligt,a   2/_en,t",null,878]
[null,"D-","impondérable   2/_ilité","unwägbar,a   2/_keit,f",null,879]
[null,"CPT D-","importer   2/exporter","Herunterladen Hinzuladen   2/Fernladen",null,880]
[null,"D- PRINT","imposer / imposition","AusSchiessen,t&nt",null,881]
[null,"D- PRINT","impression au recto   2/_ au verso","Schöndruck,m   2/Wider_",null,882]
[null,"D- LIVRE","impression d'ouvrage de labeur (= en papier volumineux)","Werkdruck,m",null,883]
[null,"D- PRINT","impression typographique","Buchdruck,m",null,884]
[null,"D- PRINT","impression,f simultanée","Zusammendruck,m",null,885]
[null,"D- PRINT","imprimer   2/_ie   3/_eur   4/encre","drucke\\n,t   2/_rei,f   3/_r,n   4/_farbe,f",null,886]
[null,"D- PART","in- <préfixe d'a; contraire, inverse du sens initial>","un-,pfx",null,887]
[null,"D-","inadéquat, inéligible","ungeeignet,a",null,888]
[null,"ANAT D-","index (doigt)   2/pouce","ZeigeFinger,m   2/Daumen,m",null,889]
[null,"D-","Index national des prix à la consommation (tél 129)","Landesindex des Konsumentenpreise",null,890]
[null,"D-","indigner, soulever, révolter / s'   2/_ation","empören,t / s-   2/_ung,f",null,891]
[null,"D-","inébranlable","unerschütterlich,a",null,892]
[null,"D-","inférieur, faible, insignifiant <péj:> pauvre, piètre   2/moindre   3/mépris","gering,a   2/_ste<a superl>, _er<a compar>   3/_achtung,f (_schätzung,f Missachtung,f)",null,893]
["M2008","D- FIT","inflamation   2/infection","Entsündung,f   2/Infektion,f Ansteckung,f",null,894]
[null,"D-","influence (sur)   2/zone d'_   3/_t, puissant   4/_er   5/_çable   6/_, emprise","Einfluss,f (auf)   2/_bereich,m   3/_reich,a   4/be_en,t   5/be_bar,a   6/Be_ung,f",null,895]
[null,"D-","information","Auskunft,f (Bescheid, Weisung)",null,896]
[null,"CPT D-","informatique  2_ation","Informatik,f   2/_sierung,f",null,897]
[null,"D-","innombrable","unzählig(e),a",null,898]
[null,"D-","inscription, annonce   2/_er / s'   3/form. d'_   4/_ par tél.","Anmeldung,f   2/_en,t / s-,r   3/_eformular,nt   4/telephonische,a _",null,{"$f":"F899+1","v":899}]
[null,"D-","insensé, fou, dément   2/très, vachement, follement   3/devenir fou, perdre la raison   4/rendre fou   5/démence","wahnsinnig,a (verrückt)   2/,@   3/_ werden   4/jdm _ machen   5/Wahnsinn,m",null,900]
[null,"D-","insérer, emboîter, <fig:> ajouter / s'_ (dans)","einFügen,t / s-,r (in)",null,901]
[null,"DIAL","inst","é D=ins",null,902]
[null,"D-","instantané","sofortig,a",null,903]
[null,"CPT D-","intégration des images   2/écran","Bild,nt Integrierung   2/Bildschirm,m",null,904]
[null,"D-","intellect   2/_ualisme   3/_uel(le)","Verstand,m Intellekt,m   2/I_ualismus,m   3/v_esmässig,a I_uelle,a(_r,m)",null,905]
[null,"D-","intelligent, sensé, perspicace   2/_ce   3/se croire _","klug(er, am \"sten),a (vernünftig, intelligent)   2/_heit,f (Intelligenz,m Verstand,m)   3/s- für _ halten",null,906]
[null,"D-","intention,f   2/avoir l'_ de, envisager   3/_nel,a","Absicht,f   2/be_igen,Vb   3/ab_lich,a",null,907]
[null,"D-","intéressant   2/_é","interessant,a   2/_iert,a",null,908]
[null,"CPT D-","interface,f   2/_r,t","Schnittstelle,f   2/aufeinander abstimmen,t koppeln",null,909]
["C0202","D- LING","interprète,m","Interpret,m Dolmetscher,m","LETZT. Dolmetscher. Name. Der electronische Dolmetscher.",910]
[null,"D-","interpréter, expliquer   2/clair(ement), net-, précis-, explicite-, distinct-   3/sans équivoque, clair","deuten,t   2/_lich,a&@ (klar, gut unterscheidbar)   3/ein_ig,a",null,911]
[null,"D-","interrompre, couper (la parole à qn)   2/_uption, rupture","unterbrechen,t% (_ach h _ochen)   2/_ung,f",null,912]
[null,"D- TECH","interrupteur   2/guichet","Schalter,nt   2/,m",null,913]
[null,"D- TYPO","intervertir   2/film réversible","umkehren,t   2/Umkehrfilm,m",null,914]
[null,"D-","intimider   2/_ant   3/_ation","einSchüchtern,t   2/_d,a   3/_ung,f",null,915]
[null,"D- !","introduction","Einleitung,f",null,916]
[null,"D-","inversé","verschränkt,a",null,917]
[null,"D- PRINT","inverser de bas en haut, retourner","umstülpen,t (UST)",null,918]
[null,"D- PRINT","inverser de gauche à droite, tourner","umschlagen _| |_ (USL)",null,919]
[null,"D-","issue   2/sans _","Ausweg,m   2/_los,a",null,920]
[null,"D-","J","J",null,921]
[null,"D-","jalousie,f   2/jaloux,a","Eifersucht,f   2/_\"ig,a",null,922]
[null,"DIAL","je peux","i cha D=",null,923]
["M0906","D- MEDIA LIVRE","journal   2/revue   3/_ intime   4/_ radio   5/TV   6/téléviseur   7/nouvelles,fP à la radio/TV","Zeitung(en),f   2/Zeitschrift(en),f   3/Tagebuch,nt   4/Radio,nt   5/Fernsehen,nt   6/Fernsehgerät,nt   7/Radio/Fernseh)Nachrichten,fP",null,924]
[null,"D- JUR","jugement, sentence   2/_er (de), raisonner   3/condamner (à)","Urteil,nt   2/_en,i (über)   3/ver_en,t (zu)",null,925]
[null,"D- JUR","juger   2/_ement, appréciation","beurteilen,t   2/_ung,f",null,926]
[null,"CPT D-","jumper,m","Steckbrücken",null,927]
[null,"D-","jusqu'à un certain point {ça y est}   2/autant que   3/:_ que je m'en souvienne","soweit,@ {es ist _}   2/_ wie/als,cj   3/_ ich mich errinere",null,928]
[null,"D-","jusqu'à,pp   2/_ce que,cjs","bis,pp+A   2/,cjs",null,929]
[null,"D- JUR REL","juste, honnête   2/_ice, probité {demander _}","gerecht,a   2/_igkeit,f {fordern}",null,930]
[null,"D-","justement   2/plat, lisse","eben,@   2/,a",null,931]
[null,"D-","justificatif, reçu","Beleg(e),m",null,932]
[null,"D-","K","K",null,933]
[null,"DIAL","kein","kai D=kein",null,934]
[null,"D-","L","L",null,935]
[null,"D-","là-)dedans, en cela, y   3/:En cela vs vs trompez!","darin (fam: drin),@   2/d(a)rinnen,@   3/:_ irren Sie s-!",null,936]
[null,"D-","laisser (+I) <div. tournures idiomatiques>","lassen,t%+A (lässt liess h gelassen, subj.I lasse, II liesse)   2/s-,r",null,937]
[null,"D- RELIU","laquage, vernissage","Lackierung,f",null,938]
[null,"D-","latte   2/barre","Latte(n),f   2/Stange,f",null,939]
[null,"D- VÉGÉ","laurier","Lorbeer(en),nt",null,940]
[null,"D-","laver, nettoyer","waschen,t (ab_, putzen, reinigen)",null,941]
[null,"DIAL","le   2/un   3/la   4/une   5/les","der   2/e(n)   3/d   4/e   5/s D=der   2/ein   3/die   4/eine   5/die",null,942]
[null,"D- pr démonstr","le(s) même(s) <très précisément> <se décline comme a>","der(das(die-selbe(r,n) (±der gleiche)",null,943]
[null,"CPT D-","leçon   2/lecteur   3/lecture   4/lecteur","Lektion,f   2/_or,m (-in,f)   3/_üre,f   4/Lesegerät,nt",null,944]
[null,"D- JUR","légal <1>   2/_iser   3/_ité","legal,a   2/_isieren,t   3/_ität,f",null,945]
[null,"D- JUR","légal <2>, légitime, conforme à la loi   2/_ité   3/sans loi, anarchique   4/anarchie   5/conforme à la loi   6/_ité, légitimité","gesetz\\lich,a   2/_keit,f   3/_los,a   4/_losigkeit,f   5/_mässig,a   6/_mässigkeit,f",null,946]
[null,"D-","léger(emment), facile-   2/alléger, faciliter   3/prendre à la _ère","leicht,a&@   2/_er machen   3/_ nehmen",null,947]
[null,"D-","lentille","Linse(n),f",null,948]
[null,"D-","lever, élever","erheben,t% (_bt _hob h erhoben)",null,949]
[null,"D-","lever, soulever   2/se lever, monter","heben,t%+A (_bt hob h gehoben)   2/s-,r",null,950]
[null,"D-","lèvre","Lippe(n),f",null,951]
["C0906","D-","liberté du choix de la résidence","Freizügigkeit,f",null,952]
[null,"D-","lien, ceinture, ligue, pacte, union, alliance","Bund(\"e),m",null,953]
[null,"D-","lier, nouer, attacher   2/obligatoire, engageant   3/liaison, fixation, attache, lien","binden,t% (band h gebunden) (befestigen)   2/_d,a   3/_ung,f",null,954]
[null,"D- TYPO","ligne (de texte)   2/_ (graphique)   3/_ droite   4/interlignage,m","Zeile,f   2/Linie,f   3/gerade,a Linie   4/_nabstand,m",null,955]
["C0010","CPT D-","ligne louée   2/flux de données   3/communication informatique de RS   4/édition et formatage   5/services de communication","Mietleitung   2/Datenfluß   4/Computernetzwerkkommunikation   5/Editierung und Formatierung   6/Mitteilungsdiensten",null,956]
[null,"D- LITT","lire   2/_ à haute voix   2/parcourir","lesen,t% (_iest _ass h gelesen)   2/vorL_,t%   2/durch_,t%",null,957]
[null,"D- TYPO","lisible, déchiffrable   2/_ilité   3/il_","lesbar,a (leserlich)   2/_keit,f   3/un_lich,a",null,958]
[null,"CPT D- LIVRE","liste, catalogue, index, relevé, registre, dossier, répertoir   2/table des matière   3/_ auteurs","Verzeichnis(ses(se),nt   2/Hinhalts_   3/Autors_",null,959]
[null,"D- LITT","littérature","Littératur,f",null,960]
[null,"D- CORR","livraison à domicile   2/délivrance, remise","Anlieferung,f   2/Ablieferung,f",null,961]
[null,"D- LIVRE","livre   2/exposition de _   3/compte rendu, critique","Buch(e)s-\"er),nt   2/_austellung,f   3/_besprechung,f",null,962]
[null,"D- PROF","locomotive   2/conducteur de _","Lokomotiv\\e,f   2/_führer,m",null,{"$f":"F963+1","v":963}]
[null,"D-","logique","logisch,a",null,964]
[null,"D- JUR","loi   2/d'après la _   3/contrevenir à une _   4/dans l'esprit de la _","Gesetz,nt   2/nach dem _   3/ein _ überTreiten   4/im Sinne des _es",null,965]
[null,"D-","long   2/_ueur   3/al_é   4/à _ terme","lang,a (\"er, am -sten)   2/_\"e,f   3/_\"lich,a   4/_frist,a",null,966]
[null,"D- REL","louer (Dieu)   2/_, faire l'éloge de","preisen,t% (pries h gepriesen)   2/loben,t",null,967]
[null,"D-","loupe","Lupe,f",null,968]
[null,"D-","lourd, pesant, difficile   2/difficulteux, pénible / le plus _   4/difficulté","schwer,a   2/schwierig,a (_ zu t., lästig) / _ste,nt   4/_keit,f",null,969]
[null,"D-","loyal, fiable, solide   2/_auté","zuverlässig,a   2/_keit,f",null,970]
["C0507","D-","luge, tobogan","Schlitten,m",null,971]
[null,"D- TYPO","lumière,f   2/ozalid,m   3/sensibilité,f à la _","Licht, nt   2/_pause,f   3/_empfindlichkeit,f",null,972]
[null,"D-","l'un (à) l'autre (les uns...)   2/_ sur/après _   3/_ à _   4/_ contre/envers/pour _","einander,@ (der eine der andere)   2/auf_   3/zu_   4/gegen_ (gegenseitig)",null,973]
[null,"D-","l'un (avec) l'autre (les uns...), ensemble","miteinander,@ (±zusammen)",null,974]
[null,"D-","luxe   2/luxueux","Luxus,m   2/luxuriös,a",null,975]
[null,"D-","M","M",null,976]
[null,"CALC D-","machine à calculer","Tascherechner,m",null,977]
[null,"D- COMM","magasin","Laden(\"),m (Geschäft)",null,978]
[null,"D- REL","magnifique, superbe, glorieux   2/_cence, splendeur, majesté","herrlich,a (grossartig, prächtig)   2/_keit,f",null,979]
[null,"D-","maigre","mager,a",null,980]
[null,"D-","maint(s), plus d'un   2/plus d'un","mancher(e,es,P:e),pr&a   2/manch ein",null,981]
[null,"D-","mais <opposition>","sondern,cjc (÷aber)",null,982]
[null,"D-","majorité, pluralité","Mehrheit,f",null,983]
[null,"D- TYPO","majuscule   2/minuscule   3/littéralement","Grossbuchstabe,m   2/klein_   3/Buchstäblisch",null,984]
[null,"D-","malgré cela, pourtant","trotzdem,@ <fct cjs>",null,985]
[null,"D-","malgré,pp+G","trotz,pp+G",null,986]
[null,"D-","manière, façon","Weise,f (Art und Weise)",null,987]
[null,"D-","manifeste(mment), apparent-, évident-   2/se manifester/révéler   3/révélation","offenbar,a&@   2/_ werden   3/_ung,f",null,988]
[null,"D-","manoeuvre d'obstruction   2/politique d'_","Verschleppungs\\manöver,nt   2/-politik,nt",null,989]
["C0209","D-","marcher","schreiten,i% (schritt, i geschritten)",null,990]
[null,"D-","marcher, faire une excursion/randonnée   2/randonnée","wandern,i   2/_ung,f",null,991]
[null,"DIAL","mardi","zychtig D=Dienstag",null,992]
[null,"D- JUR","mariage, ménage   2/couple   3/conjugal   4/adultère   5/commettre un a_","Ehe,f   2/_paar,nt   3/_lich,a   4/_bruch,m   5/die _ brechen",null,993]
[null,"D-","marque, caractéristique(s), signe distinctif","Kennzeichen(-),nt",null,994]
["C0507","D-","maturité   2/:Le diplôme de _","Reife,f   2/:Der Zeugnis der _ / _zeugnis",null,995]
[null,"D-","méchant, infâme, vulgaire","gemein,a",null,996]
[null,"D- REL","méchant, mauvais, fâché   2/mal / diable","bös(e),a (ärgerlich, schlimm)   2/,nt /_,m (Satan,m Teufel,m)",null,997]
[null,"D- FIT","médecine   2/santé","Medizin,f   2/Gesundheit,f",null,998]
[null,"D-","mélang\\er, mêler, mixer   2/_e, amalgame","mischen,t   2/_ung,f",null,999]
[null,"D-","même,@ (que) (÷identique)","sogar,@",null,1000]
["C0906","D-","menacer,t&i","drohen,i / be_,t",null,1001]
[null,"D-","ménage   2/tenir son _","Haushalt,m   2/_en,i%",null,1002]
[null,"D-","mener (pousser un animal), faire marcher/tourner (roue), dribbler, enfoncer, creuser (tunnel), etc   2/avancer, pousser (plante)   3/activité","treiben,t% (trieb h getrieben)   2/,i   3/,nt",null,1003]
["C0301","D-","mener, conduire","herumFühren",null,1004]
[null,"D-","mensonge   2/_tir   3/_eur   4/faux, mensonger","Lüge,f   2/_en,i% (_ügt _og h gelogen)   3/_gner,m   4/_gnerisch,a",null,1005]
[null,"D-","mentalité, manière/façon de penser","Denkart,f",null,1006]
["C0301","D-","mentionner, introduire   2/mention","erwähnen,t   3/E_ung,f",null,1007]
[null,"D- W9x","Menu démarrer","Startmenü",null,1008]
[null,"CPT D-","menu,m   2/_ déroulant","Menü,nt   2/_auswahl",null,1009]
[null,"D-","mépriser   2/mépris","verachten,t   2/_ung,f",null,1010]
[null,"D- W9x","Mes documents","Eigene Dateien",null,1011]
[null,"D-","mesquinerie","Kleinlichkeit(en),f",null,1012]
[null,"D-","message, ambassade","Botschaft,f",null,1013]
[null,"D-","mesure   2/règle, norme, critère, échelle","Mass(e),nt   2/_stab(en),m",null,1014]
[null,"D- NB","mètre,m   2/litre,m {X L_ auf 100 K_)","Meter,m(&nt)   2/Liter,m&nt (Zenti_ Milli_ Kilo_ Quadrat_ Kubik _)",null,1015]
[null,"D-","mettre (sur), poser / placer, coucher, étendre   2/s'allonger   3/se coucher","legen,t (über)   2/s-,r   3/s- hin_,r",null,1016]
[null,"D-","mettre dehors, en évidence   2/se montrer, s'avérer (que)","herausStellen,t+D(A)   2/s-,r (richtig, usw) (s- zeigen)",null,1017]
[null,"D-","mettre, attirer, plaire à   2/monter, être en hausse   3/s'habiller   4/:Mets ta veste!","anZiehen,t% (anlocken, sympathisch sein)   2/,i% (Preis)   3/s-,t   4/:_e deine Jacke an!",null,1018]
[null,"D-","mettre, enfoncer   2/être enfoncé","stecken,t   2/,i",null,1019]
[null,"D-","meubles   2/tiroir,m   3/étagère,f  4armoire,f","Möbel,ntP   2/Schublade,f   3/Regal,nt   4/Schrank,m",null,1020]
[null,"D- TYPO","miroir, surface d'impression","Satzspiegel,m",null,1021]
[null,"D-","miser, mettre, placer (dans)   2/payer de sa personne / s'employer (à qc)   3/commencer, s'ouvrir, s'amorcer   4/:Il y a une nouvelle poussée de fièvre","einSetzen,t (in)   2/s- _ / s- (für etw) _   3/,i   4/:Das Fieber setzt wieder ein",null,1022]
[null,"D- REL","miséricord\\ieux   2/_e","barmherzig,a   2/_keit,f",null,1023]
[null,"D- LIVRE TYPO","modèle, projet   2/épreuve papier","Vorlage,f   2/Papier_",null,1024]
[null,"D- SPAC","monter   2/_ (vers ns)","hinauf gehen   2/herauf kommen",null,1025]
[null,"D-","monter, grimper, prendre de l'altitude","steigen,i% (stieg i gestiegen)",null,1026]
[null,"D-","montre, horloge, heure {Quelle h. est-il?}   2/:à X h.","Uhr(en),f {Wieviel _ ist es?} (÷ Stunde)   2/:um X _",null,{"$f":"F1027+1","v":1027}]
[null,"D-","moquerie, dérision   2/se _ (de)   3/_ur, railleur","Spott(e),m   2/_en,i (über)   3/_\"isch,a",null,1028]
["C0501","D- JUR","motif,m   2/alibi,m   3/contrat,m","Motiv,nt   2/Alibi,nt   3/Vertrag,m",null,1029]
["C0301","D-","muet,a silencieux, taciturne","stumm,a",null,1030]
[null,"D-","multiple,a   2/_icité,f","vielfältig,a   2/_keit,f (Vielfalt,f)",null,1031]
[null,"D-","mutuel, réciproque   2/réciprocité","gegenseitig,a (gegeneinander,@)   2/_keit,f",null,1032]
[null,"D-","N","N",null,1033]
[null,"D-","nature, caractère, essence, spécificité   2/essentiel   2/essentiellement, substanciellement","Wesen,nt   2/wesentlich,a&@",null,1034]
[null,"D- FIT","nausée,f","Übelkeit,f",null,1035]
[null,"DIAL","ne pas   2/rien   3/pas de / +P","nöd   2/nüüt   3/kai / _ni +P D=",null,1036]
[null,"D-","nécessaire   2/_ité","notwendig,a (erforderlich)   2/_keit,f (Bedürfnis,nt)",null,1037]
[null,"D-","négocier,t   2/négociation,f","abwicklen   2/A_ung,f",null,1038]
[null,"D- MÉTÉO","neige {boule de _}   2/_r {il _}","Schnee,m {_ball,m}   2/schneien,i impersonnel {es _t}",null,1039]
[null,"D-","nettoyer, astiquer, polir   2/:Se laver les dents","putzen,t (±reinigen)   2/s- die Zähne _",null,1040]
[null,"D-","nettoyer, décrasser, décrotter   2/_age   3/pureté, netteté, propreté / innocence","reinigen,t (±putzen)   2/_ung,f   2/Reinheit,f",null,1041]
[null,"D-","ni ... ni ...   2/:Vs ne voyiez ni ne compreniez ni ne vs convertissiez","weder ... noch (...noch),cj   2/:Sie _ sehen _ verstehen, _ zu mir umkehren können","Dieses Produkt kann weder storniert noch retourniert werden",1042]
[null,"DIAL","nicht","nit D=nicht",null,1043]
[null,"D-","nier","leugnen,t&i",null,1044]
[null,"D-","n'importe (pour peu que ce soit possible)   2/qn, _ qui   3/_ comment   4/_ quoi   5/_ lequel, quiconque","irgend,@   2/_wer,pr   3/_wie,@   4/_etwas   5/_ein",null,1045]
["C1201","D-","niveau à bulles","Wasserwaage,m",null,1046]
[null,"D-","nomenclature","Nomenklatur,f (Fachausdrücke)",null,1047]
[null,"D-","noms propres,mP","Eigennamen,mP",null,1048]
[null,"D-","non seulement... mais encore, aussi bien... que","sowohl... als/wie auch,cjs",null,1049]
[null,"D-","non seulement...mais encore,cjc","nicht nur...sondern auch,cjc",null,1050]
[null,"D-","normalement","normalweise,@",null,1051]
[null,"D- CORR","not(ic)e   2/:prendre des _","Notiz(en),f   2/:sich _en machen",null,1052]
[null,"D-","note, mention, remarque   2/_er","Vermerk,m   2/_en,t+A","LETZT. Drei Hauptkategorien von Telekommunikationsanwendungen sollen hier zur Sprache kommen:",1053]
[null,"D-","notion, concept, idée","Begriff,m",null,1054]
[null,"D-","notoire, manifeste, public   2/au vu et au su de tt le monde   3/notoriété","offenkundig,a   2/,@   3/_keit,f",null,1055]
[null,"D-","nourrir, ravitailler   2/approvisionement, nourriture","verpflegen,t   2/_ung,f",null,1056]
[null,"ALIM D-","nourriture   2/menu,m","Speise,f   2/_plan,m",null,1057]
[null,"D-","nulle part   2/(pour) quelque part, n'importe où","nirgends,@ _wo(hin)   2/irgendwo(hin),@",null,1058]
[null,"D-","O","O",null,1059]
[null,"D- REL","obéir   2/_ssance   3/_ssant","gehorchen,i+D (jdm)   2/_sam,m   3/_sam,a",null,1060]
[null,"D-","objecti\\vité   2/_f   3/_vement","Objectiv\\ität,f   2/,a   3/,@",null,1061]
["M0506","D-","objection, hésitation   2/:faire _ à","Einwand(\"e),m   2/:_ erheben gegen",null,1062]
[null,"D-","objet, chose","Gegenstand(\"e),m","LETZT. Die Daten können einen bestimmten Informationsgegenstand beinhalten.",1063]
["C0506","D-","objet,m   2/_,m article,m","Objekt,nt   2/Gegenstand(\"e),m",null,1064]
[null,"D-","observer + respecter (date, règle, contrat)   2/_ation","einHalten,t (± respektieren: fürchten)   2/_ung,f",null,1065]
[null,"D-","obtenir   2/obtention","beschaffen,t   2/B_ung,f",null,1066]
["C0202","D-","occupation,f emploi, travail","Beschäftigung,f",null,1067]
[null,"D-","occuper s' (de qn/qc)   2/concerner   3/chagrin, peine   4/misérable, chétif","kümmern s-,r (um jdm/etw)   2/,t   3/Kümmer,m   4/_lich,a",null,1068]
[null,"D-","odeur   2/sentir, flairer, deviner   3/_, avoir une _   4/(_ de) parfum","Geruch,m   2/riechen,t% (roch h gerochen)   3/,i   4/Wohl_,m",null,1069]
[null,"D-","odeur, parfum   2/exhaler un p., sentir bon {cela sent le ...}   3/léger, flou, aérien   4/parfum","Duft(\"e),f   2/_en,i {es _et nach ...}   3/_ig,a   4/Parfüm,nt",null,1070]
[null,"D-","oeuvrer/travailler à, s'occuper (de), étudier, adapter, corriger, traiter (CPT)","bearbeiten,t (etw)",null,1071]
[null,"D- NB","office des poursuites","Beitreibungsamt,nt",null,1072]
[null,"D-","offrir, proposer, mettre en vente   2/se proposer, s'offrir   3/offre et demande","anBieten,t% (bot h angeboten)   2/s-_,r (Mensch, Gelegeheit)   3/Angebot und Nachfrage",null,1073]
[null,"D- TYPO","ombre","Schatten,m",null,1074]
[null,"D-","omettre, négliger, manquer   2/s'abstenir (de qc/de f. qc), se retenir   3/omission, négligence / abstention","unterlassen,t+A (h _) (vergessen)   2/_ (etw)   3/_ung,f",null,1075]
[null,"D- FIT","onguent,m pommade,f   2/oindre","Salbe,f   2/_n,t",null,1076]
[null,"D-","opportunis\\te   2/_me","Opportunis\\te,m   2/_mus,m",null,1077]
[null,"D-","opposé, contraire, contraste, différence, contradiction   2/opposé","Gegensatz,m (Gegenteil,nt Kontrast,m)   2/_\"lich,a",null,1078]
[null,"D-","ordinateur tout-usage","Allzweckcomputer",null,1079]
[null,"D-","ordure(s), déchet(s)","Abfall(\"e),m",null,1080]
[null,"D-","organisation   2/organiser, agencer","Gestaltung,f   2/_en,t+A",null,1081]
[null,"D-","organiser, arranger, faire les préparatifs   2/_ation, manifestation   3/_sateur","veranstalten,t (h _tet)   2/_ung,f   3/_er,m",null,1082]
[null,"D-","orgueil   2/_leux","Hochmut,m (Stolz)   2/_\"ig,a",null,1083]
[null,"D- LING","origine   2/_l, initial   3/langue d'origine","Ursprung,m   2/_\"lich,a   3/Ursprache,f",null,1084]
[null,"CPT D- TYPO","orthographe,f   2/correcteur d'_","Rechtschreibung,f   2/_skorrektor,m (Q-)",null,1085]
[null,"D-","oser (f. qc), risquer, aventurer / se risquer (à qc)","wagen,t (etw zu t.) / s- (an etw) _,r",null,1086]
[null,"D-","ou <choix>","oder,cjc",null,1087]
[null,"D-","ou bien ... ou bien","entweder...oder,cjc",null,1088]
[null,"D-","oublier, omettre, manquer (de f. qc)   2/s'_","vergessen,t%+A (_iss _ass h _) (etw zu tun)   2/s-_,r",null,1089]
[null,"D-","oui, bien, mais, et même   2/Après tout!   3/surtout pas","ja,@ (sogar)   2/Na _!   3/ja nicht",null,1090]
[null,"D-","outre,pp excepté, sauf, en dehors de, à l'exception","ausser,pp+D",null,{"$f":"F1091+1","v":1091}]
["C0205","D-","ouvrir (fig)","erschliessen,t% (Herz, Markt)","LETZT. erschliessen. Verb. Parallelverarbeitung könnte eventuell Möglichkeiten erschließen, zu einem gewissen Grad.",1092]
[null,"D-","P","P",null,1093]
[null,"ABK D-","p.i (par intérim, chargé pour cette fois)   2/petite procuration   3/procuration générale","i.A. (im Auftrag)   2/i.V. (in Vertretung)   3/pp(a). (per Prokura)",null,1094]
["C0801","D-","panneau solaire","Solar-Modul",null,1095]
[null,"D-","papier   2/_ à écrire   3/_ à lettre   4/_ machine à écrire   5/_ buvard   6/_ carbone   7/(vieux) _ à jeter","Papier,nt   2/Schreib_   3/Brief_   4/Schreibmaschine_   5/Lösch_   6/Kohl_   7/Alt_",null,1096]
[null,"D-","par ailleurs, en plus, par-dessus le marché (fam)","überdies,@",null,1097]
["C0209","D-","par ici,@ de ce côté-ci","hierher,@",null,1098]
[null,"D- CORR","Par la présente","Hiermit,@",null,1099]
[null,"D-","par quoi, comment?   2/par où   3/par le(la)quel(le)","wodurch,pr@+A <interr ind.>   2/<relativ>   3/(durch den,das,die)",null,1100]
[null,"D-","par(-)là   2/par (ce)là, _ ce moyen, de cette façon   3/étant donné que...","dadurch,pr@+A <örtl.>   2/<Mittel>   3/_, dass",null,1101]
[null,"D- MIL SPORT","parade, défense, résistance   2/parer, repousser, écarter","Abwehr,f   2/_en,t",null,1102]
[null,"D-","paradoxe   2/_al   3/_alement","Paradox,nt   2/,a   3/_erweise,@",null,1103]
[null,"D-","parce que,cjs","weil,cjs",null,1104]
[null,"D- REL","pardonner, remettre   2/rémission (des péchés)","vergeben,t (_ib _ab h _) (verzeihen, entschuldigen)   2/_ung,f",null,1105]
[null,"D-","pareillement, de même, idem (moins précis que \"selbe\")","desgleichen,@ (±ebenso)",null,1106]
[null,"D-","pareillement, semblablement","ebenso,@",null,1107]
[null,"D- TYPO","parenthèses, agrafes   2/crochets pointus (<>)","Klammern,mP   2/Spitz_",null,1108]
[null,"D-","parents, membres ","Angehörigen,mP",null,1109]
[null,"D-","pari   2/_er","Wette,f   2/_n,t&i",null,1110]
[null,"D-","parquer, garer   2/se _   3/_age, stationnement","parken,t   2/,i   3/,nt",null,1111]
[null,"D-","part, portion, quote-part","Anteil,m",null,1112]
["M0010","CPT D- TECH","part,f   2/pièce détachée, élément   3/puce (électronique) microprocesseur, CPU   4/circuit imprimé (la plaque)   5/circuit intégré (le module)","Teil(e),m (od),nt   2/Bau_   3/Chip,m   4/Schaltkreis,m   5/Chipschaltkreis,m","LETZT. Chip. Der Chip ist ein sehr kleines Plättchen aus Silikon zum Speichern der Informationen in EDV-Anlagen.",1113]
[null,"D-","particulièrement, principalement, surtout   2/pas spécialement","besonders,@   2/nicht _",null,1114]
[null,"D-","parvenir à, atteindre, attraper (qn/qc)   2/faisable, accessible","erreichen,t+A (jdm/etw)   2/_bar,a (zugänglich)",null,1115]
[null,"D-","pas ici/là, parti, absent","fort,@ (weg)",null,1116]
[null,"D-","pas,art déf. / aucun   2/plus <opposition>","kein,art déf.   2/_",null,1117]
[null,"D- PRINT","passage (en machine)   2/nb de _(s) (dans la machine) par forme","Durchgang,m   2/_ gleiche Form",null,1118]
[null,"D-","passé (le temps _)   2/_","Vergangen\\heit,f   2/,a",null,1119]
[null,"D-","passé, fini   2/:C'est fini, c'en est fait","vorbei,@ <zeitl.>   2/:Es ist _",null,1120]
[null,"D-","passer la nuit, coucher, loger","übernachten,i (h _t)",null,1121]
[null,"D-","patron","Vorgesetzte,m&f",null,1122]
[null,"D-","pauvreté, indigence","Armut,f",null,1123]
[null,"D-","pays / campagne, terrain   2/atterrir   3/paysage, contrée, campagne   4/:À la _ c.","Land(\"er),nt   2/_en,i   3/_schaft,f   4/:auf dem _e",null,1124]
[null,"ANIM D- PROF","pêcheur   2/_er   3/filet(s)","Fischer,m   2/_n,i&t   3/Netzt(e),nt",null,1125]
[null,"D-","peine   2/ardu, pénible(-ment)   3/se donner de la _","Mühe,f   2/mühsam,a&@   3/s- _ geben",null,1126]
[null,"D-","pendant, durant   2/_ que, tandis que","während,pp+G   2/,cjs",null,1127]
[null,"D- FIT","pénible, fatigant   2/crevant   3/effort, fatigue   4/:Il faut de grands efforts","anstrengend,a   2/sehr _   3/_ung,f   4/:Es bedarf grosser Anstrengungen",null,1128]
[null,"D-","penser (à), réfléchir   2/imaginable, _able / in(m_   3/casse-tête","denken,t,i% (dachte h gedacht) (an)   2/_bar,a / un_   3/_aufgabe,f",null,1129]
[null,"D-","percevoir, a_, s'a_ de, discerner, observer   2/perception, discernement","wahrNehmen,t% (bermerken)   2/_ung,f",null,1130]
[null,"D- LIVRE","périodique,m   2/périodique,a","Periodikum(a),m   2/periodisch,a",null,1131]
["M0010","CPT D-","périphérique   2/fax   3/répondeur tél.   4/imprimante (matricielle/à jet d'encre)   5/lecteur (contrôleur)   6/carte d'extension   7/connecteur d'extension   8/barrettes de mémoire   9/boîtier","Peripheriegeräte   2/Faxgeräte   3/Anrufbeantworter   4/Drucker (Nadel_/Tintenstrahl_)   5/Laufwerk,nt (-Kontroller)   6/Erweiterungskarte   7/Steckplatz   8/Speichersteckkarten   9/Computergehäuse",null,1132]
[null,"D-","permettre (à qn de f. qc) / se _   2/_ission, autorisation","erlauben,t (jdm etw zu t.) / s-_,r   2/_bnis,f",null,1133]
[null,"D-","permettre <formel>, accorder, autoriser","gestatten,t+AD",null,1134]
[null,"D-","personne (la _)   2/_l, privé / en _, _llement   3/_l / (le _)","Person,f   2/\"_lich,a/@   3/_al,a / _,nt",null,1135]
[null,"D-","personnes présentes,fP","Anwesenden,fP",null,1136]
[null,"D-","peser, avoir un poids de   2/peser (action de)","wiegen,i% (wiegt wog h gewogen)   2/ab_,t",null,1137]
[null,"D-","peser, considérer, examiner, songer (à)   2/considération","erwägen,t% (_og h erwogen) (zu) (=wägen,t% h gewogen)   2/_ung,f",null,1138]
["C0010","D-","péter,t","furzen,t",null,1139]
[null,"ALIM D-","petit morceau, escalope   2/tailler","Schnitzel,nt   2/schnitzen,t",null,1140]
["C2208","D- FAMILLE","petits-enfants   2/mes _","Enkel   2/Meine _",null,1141]
["C1004","D- TECH","pétrole   2/carbone","Erd Ôl   2/Kohlenstoff",null,1142]
["C0906","D-","peut-être,@ [\"possiblement\"]","möglicherweise,@",null,1143]
[null,"D-","physique,f   2/,a","Physik,f  2_alisch,a",null,1144]
[null,"D- NB","pièce de 5 fr.   2/billet de 100 fr.","fünf Francken Stück   2/hundert Francken Schein",null,1145]
[null,"D-","pièce, place, région, espace, spacialité","Raum(\"e),m",null,1146]
["C0906","ANAT D-","pied,m   2/piéton,m","Fuss,m   2/_gänger,mP",null,1147]
[null,"D- MINE REL","pierre {_ précieuse / _ angulaire}   2/roc, rocher","Stein,m {Edel_,m / Eck_,m}   2/Fels,m",null,1148]
[null,"D- REL","pieux   2/piété","fromm,a   2/\"igkeit,f",null,1149]
[null,"D-","piloter, diriger, guider, conduire   2/conducteur   3/direction","lenken,t (Fahrzeug, Menschen)   2/_er,m (Fahrer)   3/_ung,f (Leitung)",null,1150]
["M9911","CPT D-","pirate informatique","Hacker,m",null,1151]
[null,"D- REL","pitié   2/faire _, exciter la _   3/avoir _ (de)","Mitleid,nt   2/_ erregen,t+A   3/(mit jdm) _ haben",null,1152]
["C0906","D-","placer au centre ('faire la netteté')","fokusieren",null,1153]
[null,"D- MINE","plage   2/rive   3/sable","Strand,m   2/Ufer,nt   3/Sand,m",null,1154]
[null,"D-","plaisanterie, blague   2/_er   3/:Pour rire/plaisanter   4/:Vs voulez rire!?","Scherz,m   2/_en,i   3/:Zum Spass/_   4/:Sie _en!?",null,{"$f":"F1155+1","v":1155}]
[null,"D-","plaisanterie, calembour   2/amusant, spirituel","Witz(e),m   2/_ig,a",null,1156]
[null,"D-","plaisir, joie   2/:Si vs avez envie   3/drôle, joyeux, gai","Lust,f   2/:Wenn Sie _ haben   3/_ig,a (komisch, fröhlich)",null,1157]
[null,"D-","plan, projet, dessein   2/projeter   3/_ification","Plan(\"e),m   2/_en,t   2/_ung,f",null,1158]
["C0202","D-","planer","schweben",null,1159]
[null,"D- PRINT CPT","plaque   2/disque dur","Platte(n),f   2/Fest_",null,1160]
[null,"D-","plate-forme élévatrice (lift)","Hebebühne,f",null,1161]
[null,"D-","pleurer   2/_nicher","weinen,t   2/flennen,i (h)",null,1162]
[null,"D- RELIU","pli // {3x parallèle, 1x en travers} ","Parallelbruch,m {3mal parallel (Zickzack), 1mal quer}",null,1163]
[null,"D- RELIU","pli accordéon (litt: zigzag)   2/_ en croix   3/pli roulé (2 plis //)","Zickzack,m   2/Kreuzbruch,m   3/Wickelfalz,m",null,1164]
[null,"D- RELIU TECH","plier   2/pli / faux _   3/_age","falzen,t   2/Falte,f   3/_ung,f",null,1165]
[null,"D-","pluriel,m / majorité","Mehrzahl,f",null,1166]
[null,"D-","plus ... plus,cjs","je ... desto,cjs",null,1167]
["C0708 M2401","D- Société","PME (Petites et Moyennes Entreprises)   2/ETI","KMU (Kleine und mittlere Unternehmen)   2/Entreprises de taille intermédiaire",null,1168]
[null,"D- ÉLEC","poignant   2/à suspense   3/tension, suspens, voltage","spannend,a   2/,@   3/_ung,f",null,1169]
[null,"D- TYPO","point (.)   2/double _ (:)   3/_-virgule (;)","Punkt,m   2/Doppel_   3/Strich_ (Semikolon,nt)",null,1170]
[null,"D-","point de vue <fig>, manière de voir","Gesichtspunkt,m (Ansicht,f)",null,1171]
[null,"D-","point de vue <örtl.>","Standpunkt,m (Aussicht(_,m),f)",null,1172]
[null,"D- TYPO","point d'interrogation (?)   2/caractère spécial","Fragezeichen,nt   2/Sonder_",null,1173]
[null,"D-","point zéro/de départ   2/_ de référence   3/_ de repère   4/_ de vue   5/_ essentiel   6/_ mort","Ausgangspunkt,m   2/Bezugs_   3/Kontroll_   4/Stand_   5/Haupt_   6/toter _",null,1174]
["M0209","D- TYPO","pointer, braquer (sur/vers), tourner, porter, axer / juger   2/redresser   3/dresser,t préparer, assaisonner, faire, causer, occasionner","richten,t (auf/nach)   2/gerade _   3/anR_,t",null,1175]
[null,"D-","poli   2/_tesse","höflich,a   2/_keit,f",null,1176]
["C0908","D-","pollution,f","Verschmutzung,f",null,1177]
["C0507","ALIM D-","pommes de terre","Kartoffel(n),f",null,1178]
[null,"D-","porte   2/_ coulissante   3/_ en accordéon, à soufflet","Tür,f   2/Schiebe_   3/Harmonika_",null,1179]
[null,"D- COMM NB","porter en compte   2/débiter   3/ajouter   4/déduire (CPT)","buchen, ver-,t+A   2/ab_   3/ein_   4/aus_",null,1180]
[null,"D-","poser, placer (debout), mettre, régler, mettre au point {_ une question}   2/position, place, disp-, emplac-, pose, site","stellen,t+A (±ein_ fest_ bereit_) (÷stehen,i) {eine Frage _}   2/_ung,f",null,1181]
[null,"D-","posséder, être en _ssion de, détenir   2/_ssion, propriété","besitz\\en,t (_ass h bessessen)   2/,m",null,1182]
[null,"D-","poubelle","Mülleimer,m",null,1183]
[null,"D-","pour","für,pp+A",null,1184]
[null,"D-","pour (+I), afin de (+I),cjs","um ... zu (+I),cjs",null,1185]
[null,"D-","pour ainsi dire, comme qui dirait <fam>","sozusagen,@",null,1186]
[null,"D-","pour cela, à _, de _   2/en échange   3/être pour/contre","dafür,pr@+A   2/_ (zum Ersatz)   3/_/dagegen sein",null,1187]
[null,"D- NB","pour cent,m   2/en _   3/à quel _?   4/pourcentage   5/_,a","Prozent,nt (Anteil,m)   2/in _en   3/:zu wieviel _?   4/_satz,m   5/p_ual,a",null,1188]
[null,"D-","pour quoi,pr@ <interr ind.> à quelle fin?   2/pour le/laquelle <relativ>","wofür,pr@+A <interr ind.>   2/<relativ: für den,das,die>",null,1189]
[null,"D-","pourtant,@ à la vérité / assurément, bien sûr","allerdings,@ (=in der Tat) <unbetont> (zwar) / <betont> (gewiss)",null,1190]
[null,"D-","pousser, cogner, heurter (qc)   2/fermer en poussant; <fig:> arriver, survenir   3/broyer","stossen,t%+A,i (stösst stiess h gestossen)   2/zu_   3/zer_  (im Mörser; zu Pulver)",null,1191]
[null,"D-","pousser, faire glisser, rejeter (faute, resp.), <péj:> trafiquer   2/déraper","schieben,t (_ob h geschoben)   2/,i (ist)",null,1192]
[null,"D- PROF","poussière   2/aspirer   3/_ateur   4/em_ré","Staub,m   2/saugen,t   3/Staubsauger,m   4/ver_,a",null,1193]
[null,"D-","pouvoir   2/fort, influent","Macht,f   2/_\"ig,a",null,1194]
["C0906","D- ÉCON","pouvoir d'achat","Kaufkraft,f",null,1195]
[null,"D- Vb modalité","pouvoir, avoir la permission / interdiction de (=können à la forme interr)","dürfen (darf durfte h gedurft/dürfen subj.I dürfe II dürfte)",null,1196]
[null,"D- Vb modalité","pouvoir, être capable de (à la forme interr: dürfen)","können (kann konnte h gekonnt subj.I: er/sie könne II:könnte)",null,1197]
[null,"D-","pq, pour quelle raison/cause   2/_ pas?","warum,@ (weshalb,@)   2/_ nicht?",null,1198]
[null,"D-","précaire","prekär,a",null,1199]
[null,"D-","précaution, prudence","Vorsicht,f",null,1200]
[null,"D-","précédent,a (dernier(ère))","vorig(e),a",null,1201]
[null,"D-","précéder, marcher devant, <fig:> donner le bon exemple","voranGehen,i (i) (als erster gehen)",null,1202]
[null,"D-","préféré,m favori   2/<n+> _,a","Liebling,m   2/<n+>_s-,a",null,1203]
[null,"D-","premièrement, d'abord, avant, au préalable","erst,@ (zu_, anfangs, vorher, zunächst)",null,1204]
[null,"D-","prendre congé, faire ses adieux (à)   2/adopter, voter   3/adieu","verabschieden,t (s-)   3/Abschied,m",null,1205]
[null,"D-","prendre en charge, reprendre / se surmener   2/prise en en _, réception","über\\nehmen,t% / s-,i   2/_nahme,f",null,1206]
[null,"D-","prendre plaisir, apprécier, savourer   2/connaisseur(se), bon vivant","geniessen,t%+A (_iesst _oss h genossen)   2/_r(in,f),m",null,1207]
[null,"D-","prendre, se charger de   2/entre\\prise, exploitation   3/_prise, opération   4/_prenant","unternehmen,t% (h unternommen) (auf s- nehmen)   2/_ung,f   3/_en,nt   4/_end,a",null,1208]
[null,"D- TYPO","préparation d'impression","Druckvorstufe,f",null,1209]
[null,"D-","prépondérer, avoir la _ance, dominer, l'emporter sur   2/_ant","überwiegen,i% (h  _o_)   2/_d,a",null,1210]
[null,"D-","présen\\ce, _t (le temps _t), époque contemp.   2/_t, actuel   3/à _t, à l'heure a_elle, _tement","Gegenwart,f (Jetztzeit,f)   2/_\"ig,a   3/_\"ig,@",null,1211]
[null,"D-","présent,a existant, disponible","vorhanden,a (da, existierend, verfügbar)",null,1212]
[null,"CPT D- NB","présentation en tableau","tabellarische Fassung,f",null,1213]
[null,"D- TYPO","présentation, démonstration   2/_ graphique   3/interface graphique utilisateur","Darstellung,f   2/graphische _   3/graphische Benutzeroberfläche (E- GUI)",null,1214]
[null,"D- COMM","présenter / se-, poser sa candidature","bewerben,t% (für) (_irbt _arb h beworben) / s-,r",null,1215]
[null,"D-","présenter, mettre/placer devant   2/se _ (à qn)   3/se re_, s'imaginer, concevoir   4/_ (qn à qn)","vorStellen,t (qc à qn)   2/s-_,r+A (jdn)   3/s-_,r+D   4/(jdn jdm) _",null,1216]
["C0506","D-","présenter,t offrir","aufWeisen,t",null,1217]
[null,"D-","pressé","übereilt,a (unter Druck gesetzt)",null,1218]
[null,"D-","presser, comprimer, serrer","drücken,t (pressen,t <selten>)",null,{"$f":"F1219+1","v":1219}]
[null,"D-","presser, être urgent   2/:Ça ne _e pas","pressieren,i <fam>   2/:Das _t nicht",null,1220]
[null,"D-","presser, serrer, pousser (contre/à)   2/insister (sur qc)   3/se _ (autour de)","drängen,t (drücken, pressen) (gegen/zu)   2/_ (auf etw)   3/s- _,r (um)",null,1221]
["C0906","D-","prétention,f","Anspruch,m (\"e)",null,1222]
[null,"D-","prêter   2/frais de location","leihen,t (lieh h geliehen) (÷mieten)   2/Leihgebühr,f",null,1223]
[null,"D-","preuve, démonstration","Beweis(s -e),m",null,1224]
[null,"D-","prière, demande   2/SVP   3/_er (qn de f. qc), demander (qc à qn)","Bitte,f   2/,interj   3/_n,t (jdm etw zu t./jdn um etw) (bat h gebeten)",null,1225]
[null,"D-","principalement, avant tout","vornehmlich,@ (=besonders)",null,1226]
["C0201","D-","principe (en _)   2/par _","im Prinzip   2/prinzipiell,@",null,1227]
[null,"D-","pris à / à partir de / de <lieu, temps>   2/parti, perdu","ab,pp+D   2/,@ (± los)",null,1228]
[null,"D- PRINT","prise de pince","Grifferand,m",null,1229]
[null,"D- TECH","prise électrique (femelle)   2/fiche (de contact)   3/fil électrique   4/rallonge   5/fiche triple","Steckdose,f   2/Stecker,m   3/Kabel,f   4/Verlängerungskabel,f   5/Mehrfachstecker,m",null,1230]
[null,"D-","prison","Gefängnis,nt",null,1231]
[null,"D- COMM NB","prix courant   2/_ total/d'ensemble   3/_ imposé   4/_ recommandé   5/calc. de _   6/baisse de _","Preis\\liste,f   2/Gesammt_,m   3/_bindung,f   4/_empfehlung,f   5/_kalkulation,f   6/_abschlag,m",null,1232]
[null,"D- COMM NB","prix d'achat   2/_ de revient   3/_ de détail   4/_ en monnaie étrangère   5/_ de fabrique/production   6/_ de mise en route","Preis,m Kauf-   2/Einstands_   3/Laden_; Einzelhandels_   4/Fremdwärungs_   5/Herstellungs_   6/Einricht_",null,1233]
["C0301","D-","processus,m procédure,f / procéder,t","Verfahren,nt&t",null,1234]
[null,"D- JUR REL","proclamer, annoncer, révéler (qc à qn)   2/_ation, publication","verkünd(ig)en,t   2/_(ig)ung,f",null,1235]
[null,"D- REL","prodige, miracle, merveille","Wunder,nt",null,1236]
[null,"D- PROF","professionnel (un)","Profi(s),m Facharbeiter,m",null,1237]
["M0105","D-","profondeur de champ","Tienfenscharfe",null,1238]
[null,"D-","progrès","Fortschritt(e),m",null,1239]
[null,"D- REL","promettre   2/_sse","versprechen,t   2/,nt",null,1240]
[null,"CPT D-","Propriétés   3/Panneau de config","Eigenschaften   2/Systemsteuerung",null,1241]
[null,"D- LIVRE","prospectus / perspective, vue   2/catalogue","Prospekt,m (Werbeschrift)   2/Katalog,m",null,1242]
[null,"D-","prouver","beweisen,t%+A (_st _ies h bewiesen) (÷er_: passif)",null,1243]
["C0202","D-","provenance,f","Herkunft,f",null,1244]
[null,"D- PROV REL","proverbe","Sprichwort,nt (Sprüche,mP Salomos)",null,1245]
[null,"D- COMM","provision(s), réserve(s)   2/disponible, livrable","Vorrat(\"e),m   2/_\"tig,a (lieferbar)",null,1246]
[null,"D-","provisoire   2/_ment","vorläufig,a   2/eintsweilig,@",null,1247]
[null,"D- SPORT","provoquer (à), défier, challenger   2/provocation, défi, challenge","herausFordern,t (zu) (provozieren,t)   2/_ung,f (Provozierung,f)",null,1248]
[null,"D-","proximité, environs {à deux pas}   2/plus proche/précis   3/s'approcher","Nähe,f {in der _}   2/_r,a compar   3/s- _rn,r (_rherkommen)",null,1249]
[null,"D- LIVRE","publier, promulguer","veröffentlichen,t",null,1250]
["M0105","D-","puce","Chipsatz",null,1251]
[null,"D-","puer (qc), sentir mauvais   2/_ant, infect","stinken,i% (stank h gestunken) (nach etw)   2/_d,a",null,1252]
[null,"D-","punir   2/_tion   3/_ssable {acte _}","be)\\strafen,t&i (h,i be_t)   2/Strafe,f (Be_ung,f <selten>)   3/strafbar,a {Straftat,f}",null,1253]
[null,"D-","Q","Q",null,1254]
[null,"D-","quand, si, lorsque","wenn,cjs",null,1255]
[null,"D-","Quand? À quelle heure/moment?   2/Jusqu'à _?","Wann ?,@ interr (temps)   2/Bis _?",null,1256]
["C0507","D-","quartier extérieur","Aussenbezirk,m",null,1257]
[null,"D-","que","dass,cjs",null,1258]
[null,"D-","que, comme <compar> / quand, lorsque <action temps passé>","als,cjs",null,1259]
[null,"D-","quel(le)   2/_?, Le(la)_?   3/qui, le(la)_(le)","welch ein,pr (was für ein)   2/_e(r,n)? <pr interr>   3/_ <pr relativ>",null,1260]
[null,"DIAL","quelque chose, quelque, un peu","öppis D=etwas",null,1261]
[null,"D-","quelque chose, un peu de   2/un peu   3/_ de temps   4/_ plus tard","etwas (was),pr   2/,@   3/_ Zeit   4/_ später",null,1262]
[null,"D-","quelque(s) (un)e)s),pr indéf&a certain(e)s), un peu de","einige(r,s),pr indéf&a",null,1263]
[null,"D-","querelle, différent   2/disputer, être en dispute   3/contestation   4/belliqueux   5/point litigieux","Streit,m   2/s- _en,r% (mit/über+A) (stritt, h gestritten)   3/_igkeit,f   4/_end,a   5/_frage,f",null,1264]
[null,"D- COMM","questionnaire","Fragebogen,m",null,1265]
[null,"DIAL","qui","wär D=wer",null,1266]
[null,"DIAL","qui","wo D=",null,1267]
[null,"D-","Qui?   2/qui {pour _}   3/À _? {avec/de _}","Wer?,pr+N   2/Wen,pr+A {für _}  3Wem?,pr+D {mit/von _}",null,1268]
[null,"D-","quitter, abandonner   2/se fier (à qn/qc), compter (sur qn/qc)","verlassen,t% (_iess h _)   2/s- (auf jdn/etw) _",null,1269]
[null,"D-","quitter, vider, évacuer","raümen,t+A (verlassen)",null,1270]
[null,"D- @AD PART LING","QUOI..., Lequel? <substitut d'expressions prépositionnelles lorsque n désigne une chose>","wo(r)_? <pfx de pr@+AD>",null,1271]
[null,"D-","R","R",null,1272]
[null,"D-","r)assembler, réunir   2/collectionneur   3/collecte, collection","samm\\eln,t   2/_ler,m   3/_lung,f",null,1273]
[null,"D- W9x","Raccourci","Verknüpfung",null,1274]
[null,"CPT D-","raccourci clavier","Klavier Abkürzung,f",null,1275]
[null,"D-","raccourcir   2/écourter, abréger / diminuer, réduire","kürzen,t+A   2/ab- / ver-_ (±verringern,t)",null,1276]
[null,"D-","racine, radical, source, origine   2/:La source du mal","Wurzel(-,n),f   2/:Die _ des Übels",null,1277]
[null,"D- RELIU","rainure   2/rainer","Rill,m   2/rillen,t",null,1278]
[null,"D-","raison   2/_nable   3/dé_   4/dé_nable   5/:En dépit du bon sens","Vernunft,f   2/_ig,a   3/Un_   4/un_ig   5/:Gegen alle _",null,1279]
[null,"D- LING","rangée, file, colonne, suite, série   2/ordre (de priorité), suite, succession","Reihe,f   2/_nfolge,f",null,1280]
[null,"D-","ranger, classer, ordonner","ordnen,t",null,1281]
[null,"D-","rapide,a prompt   2/vite,@","rasch,a   2/,@",null,1282]
[null,"D-","rapport (humain), relation, _s","Umgang,m",null,{"$f":"F1283+1","v":1283}]
["M0104","D-","rapport prix-qualité","Preis-Leistungs-Verhältnis",null,1284]
[null,"D-","rapport(s) relations(s) (entre h/amoureux)   2/proportionnel(lement), relatif-","Verhältnis(se),nt (Beziehung)   2/_mässig,a&@ (relativ)",null,1285]
[null,"D-","rapport, compte rendu   2/_eur, conseiller","Refer\\at,nt   2/_ent,m",null,1286]
["C2310","CPT D-","rapport, relation, correspondance, liaison, connection   2/connecteur","Beziehung,f (Verbindung,f, Zusammenhang)   2/Verbinder",null,1287]
[null,"D-","rareté,f","Rarität",null,1288]
[null,"D-","rassasié, saturé  2_r, satisfaire","satt,a   2/_\"igen,t",null,1289]
[null,"D- CORR!","re)couvrir (de) / occuper {une maison/position} / percevoir {de l'argent}  2se référer/rapporter (à qn/qc)   3/se couvrir (le ciel)","beziehen,t (mit)   2/s-,r (auf jdm/etw) _   3/s-_,r",null,1290]
[null,"D-","re)présenter, décrire, dé)peindre, figurer / se-, se figurer","darStellen,t+A (veranschaulichen, vorzeigen) / s-,r (einBilden,r vorStellen,r)",null,1291]
[null,"D- COMM","réception   2/destinataire (récepteur)","Empfang,m   2/_\"er,m",null,1292]
["M0205","D-","recherche,f   2/_ sur le terrain/pratiques   3/chercheur,m","Forschung,f   2/Feld_   3/Forcher,m",null,1293]
[null,"D-","récolte, vendange","Lese(n),f",null,1294]
[null,"D- SALU","recommander, conseiller   2/_ation, éloge   3/:Avec mes/nos compliments","empfehlen,t% (_ahl h _ohlen)   2/_ung,f   3/:Mit besten _ungen <Idiom>",null,1295]
[null,"D-","récompenser (qn de qc)   2/être profitable, rentable   3/:Ça ne vaut pas la peine   4/récompense","lohnen,t   2/s-_,r   3/:Es _ s- nicht   4/Be_ung,f",null,1296]
[null,"D- REL","réconcilier / se-   2/réconciliation","versöhnen,t / s-,r   2/_ung,f",null,1297]
[null,"CPT D-","reconfigurer","neu gestalten,t",null,1298]
[null,"D- REL","réconfort, consolation   2/inconsolable, désolant   3/_er (de qc)   4/:Tu dis cela seul. pour me _er","Trost,m   2/_los,a   3/_\"n,t (über etw)   4/:Das sagst du nur, um mich zu _\"en",null,1299]
[null,"D- TYPO","reconnaissance optique","optische Zeichenerkennung,f",null,1300]
[null,"D-","reconnaître (qn), identifier","erkennen,t%+A (_ennt _annte h erkannt)",null,1301]
[null,"D-","reconnaître, avouer, accepter (fait, point de vue), homologuer   2/_ssance, aveu / approbation, acceptation","anErkennen,t% (_annte)   2/_ung,f",null,1302]
[null,"D- LIVRE","rédiger   2/contenir, comporter, renfermer   3/global,a d'ensemble","abFassen,t (verfassen)   2/umfassen,t (enthalten)   3/umfassend,a",null,1303]
[null,"D- TYPO","réduire","verkleinern, reduzieren, herabsetzen",null,1304]
[null,"CPT D-","référence horizontale (renvoi transversal/croisé)","Querverweis(e),m od. Quer verweis",null,1305]
[null,"D-","réfléchir à, délibérer","überlegen,t (h)",null,1306]
[null,"D-","refuser (ne pas accorder) / _ de fonctionner   2/défaillance, panne   3/refus   4/raté","versagen,t (abLehnen) / _,i (nicht funktionieren)   2/,nt (Defekt,m Störung,f Panne,f)   3/_ung,f   4/_er,m",null,1307]
[null,"D-","refuser, décliner, rejeter   2/refus, rejet   3/défavorable, négatif {se montrer _}","abLehnen,t (versagen, verweigern)   2/_ung,f   3/_end,a {sich _ verhalten}",null,1308]
[null,"D- COMM","regard, idée, opinion, point de vue   2/à l'essai","Ansicht,f (Gesichtspunkt,m)   2/zur _",null,1309]
[null,"D-","regarder, jeter un coup d'oeil, guigner","gucken,i",null,1310]
[null,"D- CORR","regret\\ter, plaindre   2/_   3/_able, à plaindre   4/:Ns ) délayer (","bedauern,t+A   2/,nt   3/_erlich,a (_erswert)   4/:Wir _ sehr",null,1311]
[null,"D-","regretter (se repentir)","bedauern,t bereuen,t (vergangene Tat), nachTrauern,i+D (vergangene Zeit)",null,1312]
[null,"D- PRINT","réimpression","Nachdruck,m",null,1313]
[null,"D- COMM NB","relevé de compte","Kontoauszug,m",null,1314]
[null,"D- LIVRE","relié   2/broché   3/cartonné   4/jaquette","gebunden,a   2/broschiert,a   3/kartonniert, Paperback   4/Schutzumschlag,f",null,1315]
[null,"D-","relier, combiner   2/s'unir","verbinden,t% (mit) (_and _unden)   2/s-,r",null,1316]
[null,"D- RELIU","reliure par collage (thermocollé)","Klebebindung,f",null,1317]
[null,"D- RELIU","reliure Wiro bl. avec un suspens","Wiro-Heftung weiss mit 1 Aufhänger",null,1318]
[null,"D-","remplir (de), accomplir, exaucer (espoir, désir) / s'accomplir","erfüllen,t (mit) / s-_,r",null,1319]
[null,"D- COMM NB","renchérir   2/_ssement","überTeuern,t (h ü_rt)   2/_rung,f",null,1320]
[null,"D-","rencontre\\r qn   2/_","begegnen,t   2/_ung,f",null,1321]
[null,"D-","rencontrer, toucher / se-   2/atteindre, toucher (le but)   3/rencontre","treffen,t% (_ifft _af h getroffen) /s-   2/,i (be_)   3/,nt",null,1322]
[null,"D- COMM","rendez-vous   2/_ <fam>","Verabredung,f (Vereinbarung)   2/Rendezvous,f",null,1323]
[null,"D-","rêne, bride, frein   2/débauché, incontrôlé","Zügel,m   2/zügellos,a",null,1324]
[null,"D-","renoncer (à)   2/_ment","verzicht\\en,i (auf+A) (aufGeben)   2/,m",null,1325]
[null,"D- COMM","rentable   2/_ilité","rentab\\el,a   2/_ilität,f",null,1326]
[null,"D-","renversé, inverse, contraire   2/au contraire, vice et versa   3/intervertir","umgekehrt,a   2/,@   3/_en,t",null,1327]
[null,"D- TECH","réparer   2/_ation(s)   3/frais de _ation","repar\\ieren,t   2/_ation,f (_atur,f)   3/_aturkosten,fP",null,1328]
[null,"D-","répartir   2/répartition","aufTeilen,t   2/Aufteilung,f",null,1329]
["C0201","D-","répercussion,f","Auswirkung,f",null,1330]
["C0301","D-","repérer / épier, découvrir","erspähen,t",null,1331]
[null,"CPT D- PAO","repères, guides   2/prg d'aide","Hilfslinien,fP   2/Hilfsprg,nt",null,1332]
[null,"D-","répliquer","entgegnen,t+D (auf)",null,1333]
[null,"D-","répondre (à), rétorquer   2/_se, réplique","erwidern,t (auf)   2/_ung,f",null,1334]
[null,"D-","répondre, répliquer   2/répondre (à qc)","antworten,t   2/be_,i,r (etw)",null,1335]
["C0507","D-","reportage,m","Reportage,f   2/:Es gibt eine _ über Salzburg",null,1336]
[null,"D- TECH","repositionner, déplacer, arranger, régler / s'adapter (à)   2/changement, adaptation","umStellen,t+A / s-,r (auf) (h umgestellt)   2/_ung,f",null,1337]
[null,"D-","représentant(e), remplaçant, adjoint (député, élu)   2/délégué","Vertreter,m(in,f) (Stell_) (Repräsentant)  2Delegierter,m Abgeordnete",null,1338]
[null,"D-","représentatif","repräsentativ,a",null,1339]
[null,"D-","reproche","Vorwurf(\"e),m",null,1340]
[null,"D-","reprocher (qc à qn) {je n'ai rien à me _}   2/reproche","vorWerfen,i% (jdm etw) {ich h. nichts mir _zu_}   2/Vorwurf,m",null,1341]
[null,"D-","réputation","Leumund,m",null,1342]
[null,"CPT D-","Réseau à distance","DFÜ-Netzwerk",null,1343]
[null,"D-","résistance à l'abrasion","Abriebfestigkeit,f",null,1344]
[null,"D- PHYS MIL","résistance, opposition (à)   2/trouver de la _","Widerstand,m (gegen)   2/_ finden",null,1345]
[null,"D-","respect <1>   2/_able   2/_er, craindre","Respekt,m   2/_able,a   3/_ieren,t (achten; ÷ehren)",null,1346]
[null,"D-","respectable","ehrbar,a",null,{"$f":"F1347+1","v":1347}]
[null,"D-","respectif, correspondant, du moment, du jour/mois/année   2/chaque fois, respectivement","jeweil\\ig,a   2/_s,@",null,1348]
[null,"ABK D-","respectivement, ou encore/plutôt/bien","beziehungsweise,@ (bzw.)",null,1349]
[null,"D- CORR","Responsable commercial dpt français","Verkaufsleiter von der französischen Abteilung   2/Abteilungsleiter der französische Abteilung",null,1350]
[null,"D- TECH","ressort (élastique)","Sprung)feder,f",null,1351]
[null,"D-","restant, de reste, résiduel","übrig,a",null,1352]
[null,"D-","reste, surplus, solde   2/_ant","Rest,m   2/_lich,a",null,1353]
[null,"D-","résultat, conclusion, conséquence","Ergebnis(se),nt (End, Ausgang, Folge)",null,1354]
[null,"D-","résulter, naître, se produire, arriver","entstehen,i% (entstand, i entstanden) etw",null,1355]
[null,"D- LITT","résumé,m   2/concentré, réuni","Zusammenfassung,f   2/kurz zusammengeFasst,Pp ",null,1356]
[null,"D- REL","résurrection","Auferstehung,f",null,1357]
[null,"D-","retirer (qc à qn)   2/se _, échapper","entziehen,t%+AD (_ieht _og h entgezogen)   2/s-_,r",null,1358]
[null,"D- LIVRE","retour(s) (de livres)   2/demande de _","Remittende,f   2/_n Anfrage,f",null,1359]
[null,"D- FIT LIVRE","retour, rentrée   2/récidive, rechute   3/restitution   4/déclin, dépression, récession   5/dos, verso, revers","Rück\\kehr,f   2/_fall,m   3/_gabe,f   4/_gang,m   5/_seite,f",null,1360]
[null,"D-","retourner (à nouveau)","wieder (irgendwohin) gehen,t (nach/zu)",null,1361]
[null,"D-","rétroactif","rückwirkend,a",null,1362]
[null,"D-","réunir, rassembler   2/se _","versammeln,t   2/s-,r",null,1363]
[null,"D-","réussir, venir à bien   2/_te   3/:J'arrive (à)   4/:Tout lui _","gelingen,i% (_ang i g_ungen)   2/,nt   3/:Es _gt mir (zu)   4/:Es _gt ihm alles",null,1364]
[null,"D-","réveillé   2/vigilant   3/se _er, s'éveiller","wach,a   2/_sam,a   3/_ werden, aufWachen,i (ist)",null,1365]
[null,"D-","réveiller, éveiller  2/réveil(le-matin)","wecken,t   2/_r,m",null,1366]
[null,"D-","revenir, retourner (de qq part)   2/_ (à l'état initial)","zurückKehren,i (von) (ist) (wiederKommen)   2/_ zu",null,1367]
[null,"D- RELIU","revêtement, housse","Überzug,m",null,1368]
[null,"D-","ridicule   2/_iser (qn)","lächerlich,a   2/(jdm) _ machen",null,1369]
[null,"D-","rincer","spülen,t (ab_, aus_)",null,1370]
[null,"D- TECH","robinet   2/joint","Wasser(Gaz)hahn,m   2/Stoss,m",null,1371]
["C0906","D-","roman ou film policier, polar","Krimi,m (fam)",null,1372]
[null,"D- NB","rond,m   2/_, a_i, circulaire   3/a_ir   4/tout autour, à la _e","Rund,nt   2/,a   3/_ machen   4/_herum,@",null,1373]
[null,"D-","ronfler","schnarchen,t",null,1374]
[null,"D-","royaume","Königreich,nt",null,1375]
[null,"CPT D-","RS (RS)  (carte _)   2/mode de passe (cde d'accès)   3/responsable sys   4/noeud   5/liaisons durable   6/chaîne","Netzwerk,nt (_karte)   2/Passwort,nt (Zugriffscode)   3/Systemverwalter   4/Knoten,m   5/dauerhafte Verbindungen   6/Schnittstelle",null,1376]
[null,"D-","rue transversale","Seitenstrasse,f",null,1377]
[null,"D- REL","ruse, stratagème   2/malin, rusé","List(en),f   2/_ig,a",null,1378]
[null,"D-","S","S",null,1379]
[null,"D-","s'absenter (momentanément)","wegGehen,i% (_eht _ging i weggegangen)",null,1380]
[null,"D-","sac(het)   2/porte-monnaie","Beutel,m   2/Geld_,m",null,1381]
[null,"D- REL","sage,a   2/_sse   3/_ment","weis\\e(r),a   2/_heit,f   3/_lich,@",null,1382]
[null,"D-","Saint,a","Sankt,a",null,1383]
["M0010","D-","saisir, attrapper, choisir, prendre, empoigner   2/avoir recours","ergreifen,t%+A (_eift _iff h ergriffen) (nehmen, ±be_)   2/zurückgreifen","LETZT. zurückgreifen. diese Geräte miteinander kommunizieren und auf gemeinsame Funktionsmöglichkeiten zurückgreifen können.",1384]
[null,"D-","saisissant, touchant, émouvant   2/prise, arrestation","ergreifend,a   2/E_ung,f",null,1385]
[null,"D-","saison(nier)   2/printemps (au) été automne hivers","Jahreszeit,f(lich,a)   2/Frühling,m (im) Sommer Herbst Winter",null,1386]
[null,"D- PROF","salaire (mensuel)   2/_ horaire   3/bulletin de paye   4/perte de gain","Lohn(\"e),m (Monatsgehalt,nt)   2/Stunden_   3/_abrechnung,f   4/_ausfall,m",null,1387]
["C0010","D-","sâle,a crasseux","dreckig,a",null,1388]
[null,"D- FIT","salive","Speichel,m",null,1389]
[null,"D-","s'amuser   2/plaisir {avec _}   3/joyeux   4/divertissement, plaisir","vergnügen s-,r (s- amusieren)   2/,nt {mit _}   3/_ügt,a (fröhlich)   4/_ung,f (Unterhaltung,f)",null,1390]
[null,"D-","sans","ohne,pp+A",null,1391]
[null,"D-","sans <+I>,cjs","ohne ... zu <+I>,cjs",null,1392]
[null,"D- COMM","sans engagement/obligation   2/qui n'engage à rien","unverbindlich,@   2/,a",null,1393]
[null,"D-","sans esprit, idiot   2/stupidité","geistlos,a   2/_keit,f",null,1394]
[null,"D- MIL SPORT","saut\\er, faire un _, bondir / éclater   2/_   3/avance, avantage","springen,i% (_gt _ang i gesprungen)   2/Sprung,m   3/Vorsprung,m",null,1395]
[null,"D-","schéma","Schema,nt",null,1396]
["C0201","D-","scientifique,a _ment,@","wissenschaftlich,a&@",null,1397]
[null,"D- TECH","scier   2/scie","sägen,t   2/Säge,f",null,1398]
[null,"D-","scrupule(s)   2/sans _","Skrupel(-),m   2/_los,a",null,1399]
[null,"D-","se déchirer, casser (corde, étoffe), tirer (sur)   2/tirer, faire / s'emparer de qc","reissen,i% (riss h gerissen) (an+D)   2/,t (Witz) / etw an s- _",null,1400]
[null,"D-","se prêter, convenir, être apte, avoir les qualités requises (à/comme/pour)","eignen s-,r (zu/als/für)",null,1401]
["C0209","D-","se venger","s- rächen",null,1402]
[null,"D-","secret, occulte   2/_   3/tenir _   4/mystérieux(sement)","geheim,a   2/_nis(se),nt   3/_Halten,t   4/_nisvoll,a&@",null,1403]
[null,"D- REL","séduire, pervertir   2/_uction   2/_uisant, attrayant","verführen,t   2/_ung,f   3/_erisch,a&@ (verlockend)",null,1404]
[null,"D- FIT","s'efforcer (de)   2/fatiguer, tendre","anStrengen,r s- (um zu)   2/,t",null,1405]
[null,"D-","séjour, stationnement   2/arrêt, retard (d'un train) / sans délai   3/(lieu de) _, domicile","Aufenthalt,m   2/_  (Verspätung) / ohne _   3/_sort,m",null,1406]
[null,"ALIM D-","sel   2/salé   3/prix _","Saltz,nt   2/ge_en,a <fig:> _ig,a   3/gepfeffert",null,1407]
[null,"D- FIT","selles,fP","Stuhlgang,m",null,1408]
[null,"D-","selon {que/si}, _ le cas, c'est _!   2/après que","je nachdem,@ {ob/wenn}   2/nachdem,cjs",null,1409]
[null,"D-","sembler, paraître, avoir l'air (de), res_ (à)   2/:Il ne _ pas très content   3/apparence","ausSehen,i% (wie/als+I)   2/:Er sieht nicht sehr zufrieden aus   3/,nt",null,1410]
[null,"D-","s'ennuyer/avoir envie (de qc/qn), soupirer (après qc)   2/désir, envie, nostalgie, langueur   3/langoureux, nostalgique, impatient   4/avec impatience, plein d'envie","sehn\\en s-,r (nach jdm/etw)   2/_sucht(\"e),f   3/_süch\\tig/svoll,a   4/,@ (mit _sucht)",null,{"$f":"F1411+1","v":1411}]
[null,"D-","sens (les 5 _)   2/insensé, stupide, vide de _   3/bêtise","Sinn(e(s),-e),m   2/_los,a   3/Un_,m",null,1412]
[null,"D-","sensible","empfindlich,a",null,1413]
[null,"D- TYPO","séparation des couleurs","Farbauszüge,f",null,1414]
[null,"D-","séparation des pouvoirs {le principe de la _}","Gewaltenteilung,f {das Prinzip der _}",null,1415]
[null,"D- REL","serpent, queue   2/:Faire la q.","Schlange,f   2/:S_ stehen",null,1416]
[null,"D-","serviable, prêt à aider   2/_, secourable   3/faible, impuissant","hilf\\sbereit,a   2/_reich,a   3/_los,a",null,1417]
[null,"D-","seulement   2/nu, pur, rien d'autre que   3/:Dis donc!","bloss,@   2/,a   3/:Sag _! <interj>",null,1418]
[null,"D-","sévère, strict, fort   2/sévérité   3/strictement défendu","streng,a   2/S_e,f   3/_ verboten",null,1419]
[null,"DIAL","si <affirm>   2/si _","môl,Dial   2/mo_,Dial",null,1420]
[null,"D-","si bien...que,cjs tel...que","so ... dass,cjs",null,1421]
[null,"D-","si,cjc","ob,cjs",null,1422]
[null,"D-","signature, signe","Signatur(en),f",null,1423]
[null,"D-","signet, logo","Signet,nt",null,1424]
["C0301","D-","silence,m mutisme","Schweigen,nt",null,1425]
[null,"D-","simple (en tennis)   2/seul(e), unique, isolé   3/séparément, individuellement   4/:entrer dans les détails","Einzel,nt   2/_n,a (einzig)   3/_n,@   4/:ins _ne gehen",null,1426]
[null,"D-","simplifier   2/_cation {par _}","vereinfachen,t+A   2/_ung,f {zur _}",null,1427]
[null,"D-","simultané   2/_ment, en même temps","gleichzeitig,a   2/,@ (zugleich,@)",null,1428]
[null,"D-","sinon, autrement","sonst,@",null,1429]
[null,"D-","situation, position <fig>","Lage(n),f",null,1430]
[null,"D-","slip, caleçon   2/sous-vêtements (linge de corps/dessous)   3/soutien-gorge","Unterhose,f   2/Unterwäsche,f   3/Büstenhalter,m (BT,m)",null,1431]
[null,"D-","s'occuper (de qn/qc), prendre soin de   2/se faire du soucis (pour), se soucier de","sorgen,i (für jdn/etw)   2/s-_,r (um)",null,1432]
[null,"D-","soif   2/avoir _   3/as_fé","Durst,m   2/_ haben, _(ü)en,i   3/_ig,a",null,1433]
[null,"D-","soigner, prendre/avoir soin, avoir la garde/charge   2/soin, assistance, encadrement","betreuen,t   2/_ung,f",null,1434]
[null,"D-","solidaire   2/se dé_riser (d'avec qn)","solidarisch,a   2/sich nicht _ erklären (mit jdm)",null,1435]
[null,"D-","son   2/_ner","Laut,m   2/_en,i (klingen)",null,1436]
[null,"DIAL","son   2/sa, ses","siin   2/siini D=",null,1437]
["C0906","D-","sonder,t espionner, <MIL> reconnaître, aller en reconnaissance","erkunden,t",null,1438]
[null,"D- DIAL","sottise, ânerie   2/Quelle _!","quatsch,m   2/So en _! D=",null,1439]
[null,"D- JUR NB","sou(lever / rompre, abroger, supprimer (loi)   2/:Places de parc supprimées   3/:abolition du prix de vente imposé","aufHeben,t%   2/:Parkfelder aufgehoben   3/:aufgehobener Ladenpreis",null,1440]
[null,"D-","soucis   2/soins   3/soigneux(sement), diligent, attentif, scrupuleux","Sorg\\e(n),f   3/_fältig,a&@",null,1441]
[null,"D- TECH","souder   2/fer à _","löten,t   2/Lötkolben,m",null,1442]
[null,"D- FIT","souffrir (de qc), avoir mal, être _ant   2/endurer, éprouver   3/_ance, peine, douleur   4/_ant","leiden,i% (an/unter etw) (litt h gelitten)   2/,t (dulden, ertragen)   3/,nt (Schmerz, Krankheit)   4/_d,a",null,1443]
[null,"D-","souhaité,a","beliebiger,a",null,1444]
[null,"D-","soulager, adoucir","lindern,t",null,1445]
[null,"D-","sourire,Vb&n (de)","lächeln,i&nt (über)",null,1446]
[null,"D- COMM","Sous réserve de modifications","Änderungen vorbehalten",null,1447]
[null,"D- SPAC","sous,pp moins, en dessous","unter,pp+AD",null,1448]
["C0301","D-","soutenir, endurer, subir","ausHalten,t",null,1449]
[null,"D- DIAL","souvent   2/parfois","mèngiƒ,Dial (=oft)   2/mèngmƒl,Dial (=manchmal)",null,1450]
[null,"D-","spatial (dans l'espace)","raümlich,a",null,1451]
[null,"D-","spirituel, religieux   2/clergé, gens d'église","geistlich,a   2/_keit,f",null,1452]
[null,"D-","splendeur, somptuosité, pompe   2/somptueux, superbe, magnifique","Pracht,f   2/_\"ig,a",null,1453]
[null,"D-","stopper, arrêter, bloquer (balle)","stoppen,t (anhalten)",null,1454]
[null,"D-","stupide, bête   2/_ité, sottise","dumm,a   2/_heit,f (Beschränkheit)",null,1455]
[null,"D-","subjectif","subjektiv (->objectiv)",null,1456]
[null,"D- LIVRE","succès, réussite   2/couronné de _   3/avec _   4/auteur/roman à _","Erfolg,m   2/von _ gekrönt   3/_reich,@   4/_sautor/_sroman,m",null,1457]
[null,"ALIM D-","sucre   2/_é   3/_r   4/:Casser du _ (sur le dos de qn)","Zucker,m   2/ge_t,a (ge)süss(t)   3/_n   4/:(über jdn) herZiehen",null,1458]
[null,"D-","Suisse romand,a   2/la _ _e","welsch,a   2/die _e Schweiz",null,1459]
[null,"D-","suisse,a helvétique   2/dialecte suisse alémanique","schweizerisch,a   2/Schweizerdeutsch,nt",null,1460]
[null,"D-","superficiel, hâtif   2/_ement","oberflächlich,a   2/,@",null,1461]
[null,"D-","superflu, inutile, surabondant   2/le _","überflüssig,a   2/Ü_e(s),nt",null,1462]
[null,"D-","supplémentaire, plus large, plus éloigné   2/en outre   3/et cetera (etc.)   4/rien de plus","weiter,a (zusätzlich, breiter, in Entfernung)   2/,@   3/und so _ (usw.)   4/_ nichts",null,1463]
[null,"D-","supposer, présumer   2/:à _ que","vorausSetzen,t   2/:_ge_t, dass",null,1464]
[null,"D-","supposer, présumer   2/présumé, supposé, probable   3/_ition, soupçon   4/laisser _, donner lieu de croire","vermuten,t   2/_lich,a   3/_ung,f   4/_ lassen",null,1465]
[null,"D-","sûr, en sécurité / certain, sûr (de+G)   2/certainement, sans (aucun) doute, assurément","sicher,a   2/,@ (_lich)",null,1466]
[null,"D- SPAC","sur, plus de, en dessus","über,pp+AD",null,1467]
[null,"D-","sur,pp (la table/demande), pour (tj), en (voyage), de (cette façon), à (la gare)   2/debout,@ levé, sur pied   3/à la","auf,pp+AD <dir+A / loc+D>   2/,@   3_s (auf das)",null,1468]
[null,"D-","surface, plan (math), superficie","Fläche,f",null,1469]
[null,"D-","surprendre, étonner   2/surprise   3/_enant","überraschen,t (h ü_t)   2/_ung,f   3/_end,a",null,1470]
[null,"D-","suspendre, arrêter, cesser / régler, mettre au point / mettre (dans/chez) / recruter, embaucher   2/arrêt, cessation / réglage / recrutement / attitude","einStellen,t (in+A/bei)   2/_ung,f",null,1471]
[null,"D- PROF","syndicat,m","Gewerkschaft(en),f",null,1472]
[null,"D- LING","syntaxe (règles pour la construction des phrases)","Syntax,f Satzlehre,f (Satzstellung,f)",null,1473]
["C1907","D- SPh","Système de caisse","Kassensystem mit Tablet, Tablet-Halterung, Belegdrucker, Kassenschublade, Barcode-Scanner, Zahlterminal",null,1474]
[null,"D-","T","T",null,{"$f":"F1475+1","v":1475}]
[null,"D- LIVRE","Table des mots-clés","Stichwortregister,nt Stichwortverzeichnis,nt",null,1476]
[null,"CPT D- TYPO","tabulation,f  2tabuler,t   3/signe de _   4/ligne de _","Tabulator,m   2/tabulieren,t   3/_markierung (_einstellung _stop)   4/_raster",null,1477]
[null,"D-","tâche, devoir, rôle, mission / abandon / expédition (poste), publication, insertion   2/mobilisation","Aufgabe,f (Auftrag, Arbeit, Pflicht) (->aufgeben)   2/Aufgebot,nt",null,1478]
[null,"D-","tache,f","Flecken,m",null,1479]
[null,"CPT D-","tambour","Trommel,f",null,1480]
[null,"D-","tant que,cjs","solange,cjs",null,1481]
["C0507","D-","tas,m","Haufen,m",null,1482]
["C0209","D-","taureau,m boeuf, mastodonte","Bulle,m",null,1483]
[null,"D- COMM NB","taxe sur la valeur ajoutée (TVA)   2/soumis à l'Icha","Mehrwertsteuer,f (MWSt)   2/wustpflichtig",null,1484]
[null,"D- TECH","technique,f&a","Technik,f   2/_sch,a",null,1485]
["C0906","D-","téléphone,m   2/par _   3/au _   4/conversation _ique   5/numéro de _","Telephon,nt   2/per _   3/am _   4/_gespräch,nt   6/_nummer,f",null,1486]
[null,"D-","tempête","Sturm,m",null,1487]
["C0102","D- VIDÉO","temps réel   2/largeur de bande","Echtzeiten   2/Brandbreiten",null,1488]
[null,"D-","temps, période, époque, moment, date, terme   2/pour peu de _ (à court terme)   3/de _ en _   4/pour tj   5/à _   6/pour l'instant","Zeit,f   2/auf kurze _   3/von _ zu _   4/für alle _en   5/recht_ig,a   6/zur _",null,1489]
[null,"D- COMM NB","tendance","Trend,f",null,1490]
[null,"D-","tenir, sou_, re_, supporter, arrêter   2/se (main)_, se conduire, se comporter","halten,t% (hält hielt h ge_) (ent_, an_, stützen, versprechen)   2/s-_,r (s- ver_)",null,1491]
[null,"D- TECH","terre   2/_stre   3/relier à la _","Erde,f   2/irdisch,a   3/_n,t",null,1492]
[null,"D- NB","tiers,m&a   2/quart","Drittel,nt&a   2/Viertel,nt&a",null,1493]
[null,"D- VÉGÉ","tilleul","Linde,f",null,1494]
[null,"D- LIVRE","tirage   2/première _ élevé/limité","Auflage,f   2/erste/höhe/limitierte _",null,1495]
[null,"D-","tirer, traîner, extraire (dent)   2/_ (s. qc) / s'é_","ziehen,t% (zog h gezogen)   2/,i (an) / s-_,r",null,1496]
["C0301","D-","tirer,t sortir","zücken,t",null,1497]
[null,"D- PROF","tissu   2/serviette   3/_ de bain   4/torchon   5/mouchoir","Tuch,nt   2/Hand_   3/Bade_   4/Geschirr_   5/Taschen_",null,1498]
["C0205","ANAT D-","tissus, trame","Gewebe,nt","LETZT. Gewebe. Name. Tiere deren Zellen zu Geweben organisiert sind.",1499]
[null,"D-","tolérer, accepter (que), supporter, subir","dulden,t (dass) (ertragen, erleiden)",null,1500]
["M0508","D-","tomber, faire une chute   2/:Einstein échoua","fallen,i% (fällt fiel i gefallen)   2/:Einstein fiel durch",null,1501]
[null,"D-","total,a {en tout}   2/_ité   3/le _ ","gesamt,a {ins_,@} (total)   2/_heit,f   3/_summe,f _betrag,m",null,1502]
[null,"CPT D- TYPO","touche,f   2/_ de retour/carriage return (CR) line feed (LF)   3/_s de fonction   4/pavé alphan.   5/saisir (:re_)","Taste(n),f   2/Eingabe_ Rück_ Wagenrücklauf_ Zeilenschaltung   3/Funktions_n   4/Zeichen_ alphan.   5/ein_n, eintippen, setzen (:neu _)",null,1503]
[null,"CPT D- TYPO","touche,f   2/Espace   3/Shift   4/CTRL   5/Caps lock   6/backspace (reculer d'un caractère)","Taste(n),f   2/Leer_   3/Umschalt_ (Umstellungs_)   4/STRG Kontrol_   5/Feststell_   6/Rück_ (Rückwärtssetzen um ein Zeichen)",null,1504]
[null,"D-","toucher, effleurer / se _   2/_ (nourrit.) délayer (couleur)   3/ne pas _","be\\rühren,t+A / s-,r   2/anR-,t   3/nicht be-",null,1505]
["M0906","D-","toujours   2/(mais) _ est-il que, toutefois   3/_ et encore","immer,@   2/(aber) _hin,@ (wenigstens)   3/_ wieder,@",null,1506]
[null,"D-","tourner   2/_ (autour de qc)   3/(re)_ / se re_ (vers qn)   5/(dis)tordre, fausser","drehen,t   2/(s- um etw) _,ri   3/um_,t / s-,r (nach jdm)   5/ver_,t",null,1507]
[null,"D- !","tourner (à dr./g.)   2/plier, courber, détourner, écarter","abBiegen,i% (_bt, bog ist abgebogen) (nach rechts/ l.)   2/,t% (h)",null,1508]
[null,"DIAL","tout","ôës D=alles",null,1509]
[null,"D-","tout au plus, au maximum","höchstens,@",null,1510]
[null,"D-","tout comme avant","nach wie vor",null,1511]
[null,"D-","tout le monde","jeder(mann),pr",null,1512]
["C2111","D-","tout va bien!","alles ist gut!",null,1513]
[null,"D-","traduire   2/in_sible,a   3/faute de traduction","übersetzen,t   2/un_tzbar,a   3/Ü_tzungsfehler,m",null,1514]
[null,"D-","trahison, perfidie","Verrat,m",null,1515]
[null,"D- TYPO","trait (-)   2/_ d'union   3/barre de fraction   4/césure,f","Strich,m   2/Binde_   3/Bruch_   4/Trenn_",null,1516]
[null,"CPT D- PROF","traitement de texte   2/tableur   3/base de données   4/échange de données","Textverarbeitung,f   2/Tabellenkalkulation,f   3/Datenbank,f   4/Datenaustausch",null,1517]
[null,"D- TYPO","trame   2/angle de _   3/boîte tramée","Raster,m   2/_winkel,m   3/_kasten(\"),m",null,1518]
[null,"D-","tranchant, épicé, perçant, dur, dangereux","scharf(\"er, am _\"sten),a (streng)",null,1519]
[null,"D- LIVRE RELIU","tranchefile,m","Kapitalband,m",null,1520]
["C0010","CPT D-","transmettre,t   2/flux de données   3/taux de transfert   4/transmission de fichier   5/supports de _","übertragen,t   2/Übertragungsrat   3/Übertragungsgeschwindigkeiten   4/Dateiübertragungs-   5/Übertragungsleitungen   3/Übertragungsmedien","LETZT. übertragen. Die Terminals übertragen und empfangen Daten.",1521]
[null,"D- PROF","transport\\er, acheminer   2/_   3/_eur","transport\\ieren,t (CH) / beförder\\n,t   2/_,nt / _ung,f   3/Spediteur,m",null,1522]
["M1003","D- PROF","travail,m   2/coûts du _   3/phase de _   4/mémoire de _   5/traitement,m","Arbeit,f   2/_skosten,fP   3/_sgang,m   4/_sspeicher,m   5/Ab_ung,f",null,1523]
[null,"D- PRINT","travaux de ville","Akzidenz(arbeit),f Geschäftsdrucksachen,fP",null,1524]
[null,"D- TYPO","tréma, voyelle infléchie","Umlaut,m",null,1525]
["M0504","D-","tribu, tronc","Stamm,m",null,1526]
[null,"D- REL","tribunal   2/plat   3/Jugement dernier","Gericht,nt (_hof,m), Tribunal)   2/_ (Essen)   3/das Letzte _",null,1527]
[null,"CPT D-","trier   2/_ alpha.","sortieren   2/alphabetisch ordnen (indizieren)",null,1528]
[null,"D- NB","triple {le _}   2/quadruple {après le _ème rappel}","dreifach,a {_e,nt} dreimalig,a   2/vierfach,a viermalig,a {nach _maliger Mahnungen}",null,1529]
[null,"D-","tromper / se _   2/_ie   3/_eur(-euse),a","täuschen,t / s-_,r   2/_ung,f   3/_end,a",null,1530]
["M0202","D- REL JUR NB","tromperie   2/_er   3/_eur   4/frauduleux(-sement)   5/:faillite f.","Betrug,m   2/_ügen,t (_og h betrogen)   3/_üger,m   4/_ügerisch,a&@   5/:_\"e(r) Bankrott,m",null,1531]
[null,"D- TECH","trou   2/_er, perforer","Loch(\"er),nt   2/_en,t",null,1532]
[null,"D-","trouver une bonne excuse","herausReden s-,r",null,1533]
[null,"D-","tuer, assassiner, faire mourir / se","umBringen,t% (h umgebracht) / s- (töten, ermorden)",null,1534]
[null,"D-","tuyau, truc","Tip(s),m <fam>",null,1535]
[null,"D-","U","U",null,1536]
[null,"D-","un ... de ce genre/comme ça (s/terminaison)   2/un(e) tel(le), pareil(le)","Solch ein ... <pr démonstr.>   2/Ein solch(e,n),a",null,1537]
[null,"D-","un peu","ein bisschen",null,1538]
[null,"D- DIAL","une fois","aïniƒ,Dial ëmôl,Dial",null,{"$f":"F1539+1","v":1539}]
[null,"D-","union, unification   2/unir, unifier","Vereinigung,f   2/vereinigen,t",null,1540]
["M0010","CPT D- NB","unité (math), élément   2/unitaire, cohérent   3/_, uniformité   4/_ centrale","Einheit(en),f   2/_lich,a   3/_lichkeit,f (Zusammenhang,m)   4/Zentraleinheit,f",null,1541]
[null,"D-","urgent, pressant","dringend,a",null,1542]
[null,"D-","usé par le temps","abgenutzt,a",null,1543]
["M0906","D-","utile(ment)   2/inutile   3/:ça ne sert à rien   4/:À quoi bon?   5/inutilité,f","nützlich,a&@   2/nutzlos,a (vergeblich)   3/:das nützt nichts   4/:Was nützt das?   5/Nutzlosigkeit,f",null,1544]
[null,"D-","V","V",null,1545]
[null,"D-","vain -> vaniteux, présomptueux   2/vanité, présomption","eitel,a (±vergeblich, nutzlos)   2/_keit,f",null,1546]
[null,"D-","vain(ement) -> inutile-,  infructueux   2/vanité, inutilité   3/en _","vergeblich,a&@ (nutzlos/±eitel)   2/_keit,f   3/_, umsonst,@",null,1547]
[null,"D-","vainqueur   2/_cre, battre, l'emporter (sur qn/qc), surmonter, maîtriser   3/_cu","Sieger(in),m   2/be_en,t (jdn/etw)   3/B_te(r),m",null,1548]
[null,"D-","valoir,t   2/être valable,i regarder, concerner (qn), faire autorité","gelten,t% (gelte gilt galt h gegolten)   2/,i% (jdm) (gültig sein)",null,1549]
[null,"D-","variante,f (à choix)   2/variation","Abwandlung,f (allg) Variante,f (Text)   2/Veränderung,f _ (Unterschied,m)",null,1550]
[null,"D-","varié, divers, différent","verschieden,a (±unterschiedlich)",null,1551]
["C0205","D- TRANSPORT","vélo   2/pédales   3/guidon","Fahrrad,nt   2/Tretkurbeln   3/Lenkstange,f",null,1552]
["C0507","D-","venir, aller, arriver","kommen,i (kommt, kam, ist ge_)",null,1553]
[null,"D-","victime, sacrifice, offrande   2/sacrifier","Opfer,nt   2/_n,t",null,1554]
[null,"D-","vide,a   2/_,m   3/_r   4/poids à _   5/point mort","leer,a   2/_e,f   3/_en,t   4/_gewicht,nt   5/_lauf,m",null,1555]
["C0906","D-","ville,f   2/l'intérieur de la _   3/plan de _ avec lignes de bus   4/arrêt de bus","Stadt,f   2/Innen-_   3/_plan,m mit Bus Linien   4/Bushaltestelle,f",null,1556]
[null,"D-","violent, passionné   2/violence, intensité","heftig,a   2/_keit,f",null,1557]
["C0507","AUDIO D-","violon,m   2/leçon de _","Geige,f   2/_nunterricht,m",null,1558]
[null,"D-","virage, courbe","Kurve,f",null,1559]
[null,"D- TYPO","virgule (,)   2/_ flottante","Komma,nt   2/Fliess_",null,1560]
["M0507","D- TECH","vis   2/_ser / dé_ser   3/tournevis   4/clé à écrous   5/serrurier","Schraube,f   2/_n,t / ab_n,i   3/_nzieher,m   4/_nschlüssel,m   5/Schlosser",null,1561]
[null,"D-","visiter, aller voir","besichtigen,t+A",null,1562]
[null,"D-","vivres, denrées, produits alim.","Lebensmittel,ntP",null,1563]
[null,"D- LING","vocabulaire, lexique","Wortschatz,m",null,1564]
[null,"D-","voir (qn/qc)   2/±regarder qn/qc   3/regarder qn f. qc   4/:Je ne l'ai pas vu venir","sehen,t (jdn/etw)   2/±jdn/etw ansehen/anschauen   3/zu_, zuschauen jdm bei+D   4/:Ich habe ihn nicht kommen _ (nicht 'gesehen')",null,1565]
[null,"D- W9x","Voisinage RS","NWK Umgebung",null,1566]
[null,"D- TRANSPORT","voiture (auto)   2/camion (par _)   3/moto   4/véhicule","Wagen,m (Auto,nt)   2/Lastkraft_ LKW (mit _)   3/Motorrad,nt   4/Gefährt,nt Vorderrad ",null,1567]
[null,"D-","volontaire, bénévole, spontané   2/de bon gré, bénévolement","freiwillig,a   2/,@",null,1568]
[null,"D- RELIU","volume cartonné","Pappband,m Pappeinband,m",null,1569]
[null,"D- Vb modalité","vouloir (f. qc/que), désirer <décision de volonté>   2/_, volonté","wollen,t/i (etw zu t./dass) (wünschen,fordern) (will wollte h gewollt/_ subj.I wolle II:wollte)   2/,nt",null,1570]
["C0507","D-","voyager   2/partir en voyage   3/être en _","reisen,t   2/ver_   3/verreist",null,1571]
[null,"D-","vrai   2/_semblable   3/in)_semblance","wahr,a (aufrichtig)   2/_ scheinlich,@   3/Un)_ scheinlichkeit,f",null,1572]
[null,"D-","vue d'ensemble   2/embrasser dans son _   3/à saisir dans son _","Überschau,f (Überblick,m)   2/_en,t (h _t)   3/_bar,a",null,1573]
[null,"D-","W","W",null,1574]
[null,"DIAL","Wenn du einmal","einisch D=wenn du einmal",null,1575]
[null,"D-","X","X",null,1576]
[null,"D-","Y","Y",null,1577]
[null,"D-","Z","Z",null,1578]
[null,"D-","zone, région, territoire, domaine (d'activité)","Gebiet,nt (±Gegend,f) / Domain (CPT)",null,1579]
[null,"CPT D-","zoom,m   2/_er,t","Zoom,nt   2/_en,t",null,1580]